Workbook

Sheet Cover
A1: Cover
A3: Workbook title: | B3: Cost sharing & total costs reconciliation
A4: Version: | B4: 4a
A5: Filename: | B5: Cost-sharing-&-total-costs-Reconcilation-Mar-2023 v4a
A6: Date: | B6: 2023-03-29
A7: Author: | B7: Ofwat
A8: Author contact information: | B8: pr24queries@ofwat.gov.uk
A11: Summary of workbook: | B11: The cost sharing reconciliation model calculates any adjustment for underperformance or outperformance against forecast totex at the PR19 final determinations.
B12: Separate adjustments are made for wage growth, net totex and business rates and abstraction charges.
B13: The price base of the model is 2017-18 FYA CPIH with time value of money adjustments to 2024-25 present values using
B14: the FD wholesale WACC deflated for long-term CPIH.
A16: Known limitations: | B16: This model is subject to consultation and consequently may be subject to further changes.
A18: Instructions: | B18: na
A20: Amendments: | B20: Below are details of changes to the model from the version 3e published on 13/07/2021. The changes fix issues that have been identified and implement improvements for clarity and ease of use.
B22: Category | C22: Sheet(s) in current model | D22: Description of change(s) made | E22: Model link(s)
B23: Refinement | C23: InpActive, Green Recovery, Thame Tideway Tunnel | D23: Previous iterations of the model had a separate Tideway and green elements. These have now all been incorporated into a single model replacing the existing versions. | E23: na
B24: Refinement | C24: InpActive, Cost sharing calculations, Bioresouces | D24: Inputs and calculations for any items excluded as part of the CMA determinations have been added. This has been implemented for all controls, for bioresources this is shown on the bioresources sheet. | E24: =InpActive!E63 -> Actuals for CMA excluded items - WR - nominal
E25: =InpActive!E64 -> Allowance for CMA excluded items - WR - real
E26: =InpActive!E65 -> CMA excluded items sharing rate - WR - real
E27: ='Cost sharing calculations'!$E$165 -> Allowable adjustment for CMA exclusioned items - WR - Real
B28: Refinement | C28: InpActive, Abstraction & Rates | D28: For WR and WN+ the sharing mechanism for business rates and abstraction charges have been split into to separate calculations with inputs added on InpActive. WNN+ and Bio controls have been updated to only show business rate calculations | E28: ='Abstraction & Rates'!$C$10 -> Uncertainty mechanism for business rates
E29: ='Abstraction & Rates'!C45 -> Uncertainty mechanism for abstraction charges
B30: Refinement | C30: Green recovery | D30: The green recovery sharing rate has been updated to be calculated on the basis on totex across all controls instead of on a control by control basis. This aligns with our published approach to green recovery cost sharing. | E30: ='Green Recovery'!A9 -> ACTIVE GREEN RECOVERY COST SHARING RATE
B31: Refinement | C31: Outputs | D31: Total RCV and Revenue outputs have been added for each control to simplify populating the PR24 business plan tables. | E31: =Outputs!$E$25 -> Total Revenue adjustment for cost sharing - WR - Real
E32: =Outputs!$E$31 -> Total RCV adjustment for cost sharing - WR - Real
A35: References: | B35: Totex allowances made in the final determinations
B36: PAYG rates from the final determinations
B37: OBR Forecast wage growth from the final determinations
B38: WACC from the final determinations
B39: Cost sharing rates and ex ante allowances from frinal determinations
B40: ASHE Gross Hourly Wage index
B41: Actual CPIH index published by the ONS
A43: Error Checks: | B43: Total error check status
B44: =Check!$F$8 -> 0
A47: END OF SHEET

Sheet Documentation-->

Sheet Style Guide
A1: =RIGHT(CELL("filename", $A$1), LEN(CELL("filename", $A$1)) - SEARCH("]", CELL("filename", $A$1))) -> 
A3: SHEET TABS
H5: Light Yellow | J5: Input sheets
H7: No colour (default Excel tab colour) | J7: Calculation and documentation sheets
H9: Pale Blue | J9: Key output sheets
H11: Turquoise | J11: Quality control sheets
H13: Yellow | J13: To be completed, temporary, restructured, or deleted
A16: COLOUR
B18: Font colour only
H19: Blue font | J19: Imported from another sheet
H21: Red font | J21: Exported to another sheet (except from Input sheets)
H23: Black font | J23: Within sheet link or calculation
B25: Font + shade combinations
H26: Black font + Light Yellow shade | J26: Inputs
H28: Black font + Light Yellow shade with grey stripe | J28: Inputs that are not expected to be changed
H30: Black font + Light Grey shade on entire row | J30: Within-worksheet counter-flow
H32: Blue font + Light Grey shade on entire row | J32: Between-worksheet counter-flow
H34: Empty Cell with Light Grey shade | J34: Empty cells being deliberately referenced
B36: Other
H37: Black font + Pale Blue shade on entire row | J37: Section separator
H39: Light Turquoise shade | J39: Stored/dead/hard coded outputs
H41: Tan shade | J41: Pre-model time line actuals
H43: Yellow shade | J43: Work in progress / temporary
H45: Lime shade | J45: Values or logic to be reviewed
B47: Error checks
H48: Green shade | J48: OK
H50: Red shade | J50: Error
A52: End of sheet

Sheet ToC
A1: =RIGHT(CELL("filename", $A$1), LEN(CELL("filename", $A$1)) - SEARCH("]", CELL("filename", $A$1))) -> 
B3: ASSUMPTIONS | D3: INPUTS | F3: CALCULATIONS | H3: OUTPUTS | J3: Quality Control
B5: =Cover!A1 -> Cover | D5: =InpActive!A1 ->  | F5: =Index!A1 ->  | H5: =Outputs!A1 ->  | J5: =Check!A1 -> 
B6: Model documentation sheet | D6: Inputs sheet | F6: All the indexation related calculations are done in this sheet. | H6: Main ouput sheet showing total cost sharing adjustments | J6: Contains all the model integrity checks and alerts
B8: ='Style Guide'!A1 ->  | F8: =Time!A1 -> 
B9: Explanation of different formatting types | F9: The model timeline and flag calculations are done in this sheet.
B11: =A1 ->  | F11: ='Cost sharing calculations'!A1 -> 
B12: Table of contents | F12: Calculates the cost sharing adjustments to be made at PR24
F14: Abstraction & Rates
F15: Calculates the sharing adjustments for business rates and abstraction charges to be made at PR24
F17: Thames Tideway Tunnel
F18: Calculates the sharing adjustments for Thames Tideway Tunnel to be made PR24
F20: Green recovery
F21: Calculates the cost sharing adjustments for green recovery to be made at PR24
A23: End of sheet

Sheet Inputs-->

Sheet InpActive
A1: =RIGHT(CELL("filename", $A$1), LEN(CELL("filename", $A$1)) - SEARCH("]", CELL("filename", $A$1))) -> 
E2: =Time!E$22 -> Model Period BEG | J2: =Time!J$22 -> 2019-04-01 | K2: =Time!K$22 -> 2020-04-01 | L2: =Time!L$22 -> 2021-04-01 | M2: =Time!M$22 -> 2022-04-01 | N2: =Time!N$22 -> 2023-04-01 | O2: =Time!O$22 -> 2024-04-01 | P2: =Time!P$22 -> 2025-04-01
E3: =Time!E$23 -> Model Period END | F3: =Check!F$8 -> 0 | G3: Error chks | J3: =Time!J$23 -> 2020-03-31 | K3: =Time!K$23 -> 2021-03-31 | L3: =Time!L$23 -> 2022-03-31 | M3: =Time!M$23 -> 2023-03-31 | N3: =Time!N$23 -> 2024-03-31 | O3: =Time!O$23 -> 2025-03-31 | P3: =Time!P$23 -> 2026-03-31
E4: =Time!E$59 -> Pre Forecast vs Forecast | J4: =Time!J$59 -> Pre Fcst | K4: =Time!K$59 -> Forecast | L4: =Time!L$59 -> Forecast | M4: =Time!M$59 -> Forecast | N4: =Time!N$59 -> Forecast | O4: =Time!O$59 -> Forecast | P4: =Time!P$59 -> Post-Fcst
E5: =Time!E$101 -> Financial Year Ending | J5: =Time!J$101 -> 2020 | K5: =Time!K$101 -> 2021 | L5: =Time!L$101 -> 2022 | M5: =Time!M$101 -> 2023 | N5: =Time!N$101 -> 2024 | O5: =Time!O$101 -> 2025 | P5: =Time!P$101 -> 2026
E6: =Time!E$11 -> Model column counter | F6: Constant | G6: Unit | H6: Total | J6: =Time!J$11 -> 1 | K6: =Time!K$11 -> 2 | L6: =Time!L$11 -> 3 | M6: =Time!M$11 -> 4 | N6: =Time!N$11 -> 5 | O6: =Time!O$11 -> 6 | P6: =Time!P$11 -> 7
A8: TIME
E10: First date of time ruler | F10: 2019-04-01 | G10: date
E12: Last Pre Forecast Date | F12: 2020-03-31 | G12: date
E14: Acquisition date (midnight) | F14: 2020-03-31 | G14: date
E15: Length of forecast period | F15: 5 | G15: years
E16: Last forecast date | F16: =DATE(YEAR(F14)+F15,MONTH(F14),DAY(F14)) -> 2025-03-31 | G16: date
E19: Operation Start Date (midnight) | F19: 2021-03-31 | G19: date
E20: Operation Finish Date (midnight) | F20: 2025-03-31 | G20: date
E21: First Modelling Column Financial Year Number | F21: 2020 | G21: year
E22: Financial Year End Month Number | F22: 3 | G22: month #
A25: TOTEX INPUTS
B27: Water Resources
C28: Wage adjustment
D29: 2017/18 CPIH | E29: Base Costs - WR - Real | F29: 23.9 | G29: £m | H29: FD table 3.2
D30: 2017/18 CPIH | E30: Metering (excluding new connections) for meters requested by optants, customers and businesses - WR - Real | F30: 0 | G30: £m
E32: Opex split profile - Base costs - WR | G32: % | K32: 0.1683946929 | L32: 0.1651875934 | M32: 0.1621122924 | N32: 0.1539407785 | O32: 0.1495474914
E33: Capex Split Profile - Base costs - WR | G33: % | K33: 0.04059397241 | L33: 0.04656884281 | M33: 0.03852912749 | N33: 0.03703540989 | O33: 0.03808979879
E35: Opex split profile - Cost sharing - WR | G35: % | K35: 0.1620134326 | L35: 0.1579142349 | M35: 0.1539751423 | N35: 0.143845322 | O35: 0.1383051791
E36: Capex split profile - Cost sharing - WR | G36: % | K36: 0.04931234755 | L36: 0.056570442 | M36: 0.0468040355 | N36: 0.04498951189 | O36: 0.04627035209
E38: Business Rates forecast profile - WR | G38: % | K38: 0.2 | L38: 0.2 | M38: 0.2 | N38: 0.2 | O38: 0.2
E39: Abstraction Charges forecast profile - WR | G39: % | K39: 0.2 | L39: 0.2 | M39: 0.2 | N39: 0.2 | O39: 0.2
C41: Net totex for cost sharing reconcilation
D42: nominal | E42: Net totex for cost sharing reconciliation - WR - Nominal | G42: £m | K42: 5.589517177 | L42: 4.179262986 | M42: 5.312828526 | N42: 4.702373382 | O42: =+N42*1.03 -> 4.843444583
D43: 2017/18 CPIH | E43: Net totex available for cost sharing - WR - Real | F43: 19.7 | G43: £m
D45: 2017/18 CPIH | E45: Total final WINEP reconciliation - WR - real | G45: £m | K45: 0 | L45: 0 | M45: 0 | N45: 0 | O45: 0
C47: Business Rates and Abstraction
D48: 2017/18 CPIH | E48: Business rates - Forecast - WR - Real | F48: 1.017599644 | G48: £m
D49: 2017/18 CPIH | E49: Abstraction charges - Forecast - WR - Real | F49: 4.137898529 | G49: £m
D51: nominal | E51: Business rates - Actual - WR - Nominal | G51: £m | K51: 0.1472622341 | L51: 0.805973 | M51: 0.02787649657 | N51: 0.02982785133 | O51: 0.0313192439
D52: nominal | E52: Abstraction charges - Actual - WR - Nominal | G52: £m | K52: 0.98281566 | L52: 0.498 | M52: 1.025 | N52: 1.697 | O52: =+N52*1.03 -> 1.74791
E54: Weighted average PAYG rate - WR | F54: 0.8149413966 | G54: %
D56: 2017/18 CPIH | E56: Ex ante allowance above Ofwat forecast - Water Resources - Real | F56: 0 | G56: £m
C58: Bad Debt
D59: 2017/18 CPIH | E59: Business retail bad debt liability due to covid liquidity measures - WR - real | G59: £m
D60: 2017/18 CPIH | E60: Total Wholesaler Liability - WR - real | G60: £m
C62: CMA exclusions
D63: nominal | E63: Actuals for CMA excluded items - WR - nominal | G63: £m
D64: 2017/18 CPIH | E64: Allowance for CMA excluded items - WR - real | G64: £m
E65: CMA excluded items sharing rate - WR - real | G65: %
B67: Water Network
C68: Wage adjustment
D69: 2017/18 CPIH | E69: Base Costs - WN - Real | F69: 179.9 | G69: £m
D70: 2017/18 CPIH | E70: Metering (excluding new connections) for meters requested by optants, customers and businesses - WN - Real | F70: 19.1197087 | G70: £m
E72: Opex Split Profile - Base costs - WN | G72: % | K72: 0.1146103775 | L72: 0.1121484093 | M72: 0.109856421 | N72: 0.1055795052 | O72: 0.1026075971
E73: Capex Split Profile - Base costs - WN | G73: % | K73: 0.09616836961 | L73: 0.1056974678 | M73: 0.09925033319 | N73: 0.07816525988 | O73: 0.07591625944
E75: Opex split profile - Cost sharing - WN | G75: % | K75: 0.09072383237 | L75: 0.08772263773 | M75: 0.08411334324 | N75: 0.07942812894 | O75: 0.07576446717
E76: Capex split profile - Cost sharing - WN | G76: % | K76: 0.1221519135 | L76: 0.1429271416 | M76: 0.123291897 | N76: 0.09837516267 | O76: 0.09550147582
E78: Business Rates forecast profile - WN | G78: % | K78: 0.2 | L78: 0.2 | M78: 0.2 | N78: 0.2 | O78: 0.2
E79: Abstraction Charges forecast profile - WN | G79: % | K79: 0.2 | L79: 0.2 | M79: 0.2 | N79: 0.2 | O79: 0.2
C81: Net totex for cost sharing reconcilation
D82: nominal | E82: Net totex for cost sharing reconciliation - WN - Nominal | G82: £m | K82: 47.17582352 | L82: 48.67351384 | M82: 53.72664838 | N82: 52.93168357 | O82: =+N82*1.03 -> 54.51963408
D83: 2017/18 CPIH | E83: Net totex available for cost sharing - WN - Real | F83: 184.2 | G83: £m
D85: 2017/18 CPIH | E85: Total final WINEP reconciliation - WN - real | G85: £m | K85: 0 | L85: 0 | M85: 0 | N85: 0 | O85: 0
C87: Business Rates and Abstraction
D88: 2017/18 CPIH | E88: Business rates - Forecast - WN - Real | F88: 14.13927926 | G88: £m
D89: 2017/18 CPIH | E89: Abstraction charges - Forecast - WN - Real | F89: 0 | G89: £m
D91: nominal | E91: Business rates - Actual - WN - Nominal | G91: £m | K91: 3.228500171 | L91: 1.785641 | M91: 3.40562711 | N91: 3.190237289 | O91: =+N91*1.03 -> 3.285944407
D92: nominal | E92: Abstraction charges - Actual - WN - Nominal | G92: £m | K92: 0 | L92: 0 | M92: 0 | N92: 0 | O92: 0
E94: Weighted average PAYG rate - WN | F94: 0.4923980313 | G94: %
D96: 2017/18 CPIH | E96: Ex ante allowance above Ofwat forecast - Water Network - Real | F96: 0 | G96: £m
C98: Bad Debt
D99: 2017/18 CPIH | E99: Business retail bad debt liability due to covid liquidity measures - WN - real | G99: £m
D100: 2017/18 CPIH | E100: Total Wholesaler Liability - WN - real | G100: £m
C102: CMA exclusions
D103: nominal | E103: Actuals for CMA excluded items - WN - nominal | G103: £m
D104: 2017/18 CPIH | E104: Allowance for CMA excluded items - WN - real | G104: £m
E105: CMA excluded items sharing rate - WN - real | G105: %
B107: Wastewater Network
C108: Wage adjustment
D109: 2017/18 CPIH | E109: Base Costs - WWN - Real | G109: £m
D110: 2017/18 CPIH | E110: Metering (excluding new connections) for meters requested by optants, customers and businesses - WWN - Real | G110: £m
D111: 2017/18 CPIH | E111: WINEP / NEP ~ In-the-Round - WWN - Real | G111: £m
E113: Opex Split Profile - Base costs - WWN | G113: %
E114: Capex Split Profile - Base costs - WWN | G114: %
E116: Opex split profile - Cost sharing - WWN | G116: %
E117: Capex split profile - Cost sharing - WWN | G117: %
E119: Business Rates forecast profile - WWN | G119: %
C121: Net totex for cost sharing reconcilation
D122: nominal | E122: Net totex for cost sharing reconciliation - WWN - nominal | G122: £m
D123: 2017/18 CPIH | E123: Net totex available for cost sharing - WWN - Real | G123: £m
D125: 2017/18 CPIH | E125: Total final WINEP reconciliation - WWN - real | G125: £m
C127: Business Rates and Abstraction
D128: 2017/18 CPIH | E128: Business rates - Forecast - WWN - Real | G128: £m
D130: nominal | E130: Business rates - Actual - WWN - Nominal | G130: £m
E132: Weighted average PAYG rate - WWN | G132: %
D134: 2017/18 CPIH | E134: Ex ante allowance above Ofwat forecast - Wastewater Network - Real | G134: £m
C136: Bad Debt
D137: 2017/18 CPIH | E137: Business retail bad debt liability due to covid liquidity measures - WWN - real | G137: £m
D138: 2017/18 CPIH | E138: Total Wholesaler Liability - WWN - real | G138: £m
C140: CMA exclusions
D141: nominal | E141: Actuals for CMA excluded items - WWN - nominal | G141: £m
D142: 2017/18 CPIH | E142: Allowance for CMA excluded items - WWN - real | G142: £m
E143: CMA excluded items sharing rate - WWN - real | G143: %
B145: Bioresources
D146: Business Rates and Abstraction
D147: 2017/18 CPIH | E147: Base Costs - BIO - Real | G147: £m
D148: 2017/18 CPIH | E148: WINEP / NEP ~ In-the-Round - BIO - Real | G148: £m
E150: Opex Split Profile - Base costs - BIO | G150: %
E151: Capex Split Profile - Base costs - BIO | G151: %
D153: 2017/18 CPIH | E153: Business rates - Forecast - BIO - Real | G153: £m
D155: nominal | E155: Business rates - Actual - BIO - Nominal | G155: £m
E157: Business Rates forecast profile - BIO | G157: % | K157: 0.2 | L157: 0.2 | M157: 0.2 | N157: 0.2 | O157: 0.2
E159: Weighted average PAYG rate - BIO | G159: %
C161: CMA exclusions
D162: nominal | E162: Actuals for CMA excluded items - BIO - nominal | G162: £m
D163: 2017/18 CPIH | E163: Allowance for CMA excluded items - BIO - real | G163: £m
E164: CMA excluded items sharing rate - BIO - real | G164: %
B166: Thames Tideway
C167: Wage adjustment
D168: 2017/18 CPIH | E168: Base Costs - TTT - Real | G168: £m
E170: Opex Split Profile - Base costs - TTT | G170: %
E171: Capex Split Profile - Base costs - TTT | G171: %
E173: Opex split profile - Cost sharing - TTT | G173: %
E174: Capex split profile - Cost sharing - TTT | G174: %
C176: Net totex for cost sharing reconcilation
D177: nominal | E177: Net totex for cost sharing reconciliation - TTT - nominal | G177: £m
D178: 2017/18 CPIH | E178: Net totex available for cost sharing - TTT - Real | G178: £m
D180: 2017/18 CPIH | E180: Total final WINEP reconciliation - TTT - real | G180: £m
E182: Weighted average PAYG rate - TTT | G182: %
A185: GREEN RECOVERY
C187: Water Resources
E189: Actual Green Recovery Expenditure - WR - nominal | G189: £m | H189: =SUM(K189:O189) -> 0
E190: Total adjusted cost allowance - WR - real | G190: £m | H190: =SUM(K190:O190) -> 0
C192: Water Network
E194: Actual Green Recovery Expenditure - WN - nominal | G194: £m | H194: =SUM(K194:O194) -> 0
E195: Total adjusted cost allowance - WN - real | G195: £m | H195: =SUM(K195:O195) -> 0
C197: Wastewater Network
E199: Actual Green Recovery Expenditure - WWN - nominal | G199: £m | H199: =SUM(K199:O199) -> 0
E200: Total adjusted cost allowance - WWN - real | G200: £m | H200: =SUM(K200:O200) -> 0
D203: Green Recovery Sharing Rates
E204: Green Recovery Outperformance Rate | F204: 0.1 | G204: %
E205: Green Recovery Underperformance Rate | F205: 0.5 | G205: %
A207: INFLATION
D209: Base Year
E210: Consumer Price Index (with housing) for April | F210: 103.2 | G210: Index
E211: Consumer Price Index (with housing) for May | F211: 103.5 | G211: Index
E212: Consumer Price Index (with housing) for June | F212: 103.5 | G212: Index
E213: Consumer Price Index (with housing) for July | F213: 103.5 | G213: Index
E214: Consumer Price Index (with housing) for August | F214: 104 | G214: Index
E215: Consumer Price Index (with housing) for September | F215: 104.3 | G215: Index
E216: Consumer Price Index (with housing) for October | F216: 104.4 | G216: Index
E217: Consumer Price Index (with housing) for November | F217: 104.7 | G217: Index
E218: Consumer Price Index (with housing) for December | F218: 105 | G218: Index
E219: Consumer Price Index (with housing) for January | F219: 104.5 | G219: Index
E220: Consumer Price Index (with housing) for February | F220: 104.9 | G220: Index
E221: Consumer Price Index (with housing) for March | F221: 105.1 | G221: Index
D223: Period
E224: Consumer Price Index (with housing) for April | G224: Index | J224: 107.6 | K224: 108.6 | L224: 110.4 | M224: 119 | N224: 128.3 | O224: 132.2 | P224: 134.8
E225: Consumer Price Index (with housing) for May | G225: Index | J225: 107.9 | K225: 108.6 | L225: 111 | M225: 119.7 | N225: 129.1 | O225: 132.7 | P225: 135.4
E226: Consumer Price Index (with housing) for June | G226: Index | J226: 107.9 | K226: 108.8 | L226: 111.4 | M226: 120.5 | N226: 129.4 | O226: 133.3 | P226: 135.9
E227: Consumer Price Index (with housing) for July | G227: Index | J227: 108 | K227: 109.2 | L227: 111.4 | M227: 121.2 | N227: 129 | O227: 132.2 | P227: 134.9
E228: Consumer Price Index (with housing) for August | G228: Index | J228: 108.3 | K228: 108.8 | L228: 112.1 | M228: 121.8 | N228: 129.4 | O228: 132.6 | P228: 135.3
E229: Consumer Price Index (with housing) for September | G229: Index | J229: 108.4 | K229: 109.2 | L229: 112.4 | M229: 122.3 | N229: 130.1 | O229: 133.4 | P229: 136
E230: Consumer Price Index (with housing) for October | G230: Index | J230: 108.3 | K230: 109.2 | L230: 113.4 | M230: 124.3 | N230: 130.2 | O230: 133.5 | P230: 136.1
E231: Consumer Price Index (with housing) for November | G231: Index | J231: 108.5 | K231: 109.1 | L231: 114.1 | M231: 124.8 | N231: 130 | O231: 133.3 | P231: 135.9
E232: Consumer Price Index (with housing) for December | G232: Index | J232: 108.5 | K232: 109.4 | L232: 114.7 | M232: 125.3 | N232: 130.5 | O232: 133.8 | P232: 136.4
E233: Consumer Price Index (with housing) for January | G233: Index | J233: 108.3 | K233: 109.3 | L233: 114.6 | M233: 124.8 | N233: 130 | O233: 133.3 | P233: 135.9
E234: Consumer Price Index (with housing) for February | G234: Index | J234: 108.6 | K234: 109.4 | L234: 115.4 | M234: 126 | N234: 130.8 | O234: 134.1 | P234: 136.8
E235: Consumer Price Index (with housing) for March | G235: Index | J235: 108.6 | K235: 109.7 | L235: 116.5 | M235: 126.8 | N235: 131.6 | O235: 134.9 | P235: 137.6
A238: WAGE GROWTH
D240: Wage Growth
E241: OBR Forecast wage growth for PR19 FD | G241: % | J241: 0.01 | K241: 0.011 | L241: 0.011 | M241: 0.012 | N241: 0.013 | O241: 0.013
E242: ASHE Gross Hourly Wage All - Nominal | G242: £ / hour | J242: 17.27 | K242: 17.63 | L242: 17.97 | M242: 18.71 | N242: =+M242*1.045 -> 19.55195 | O242: =+N242*1.045 -> 20.43178775
D244: Percentage totex linked to wage growth
E245: Percentage totex linked to wage growth - WR | F245: 0.386 | G245: %
E247: Percentage totex linked to wage growth - WN | F247: 0.386 | G247: %
E249: Percentage totex linked to wage growth - WWN | F249: 0.386 | G249: %
E251: Percentage totex linked to wage growth - BIO | F251: 0.386 | G251: %
E253: Percentage totex linked to wage growth - TTT | F253: 0.386 | G253: %
A256: COST SHARING INPUTS
D258: Totex cost sharing rates
E259: Outperformance Rate - WR | F259: 0.45 | G259: %
E260: Underperformance Rate - WR | F260: 0.55 | G260: %
E262: Outperformance Rate - WN | F262: 0.45 | G262: %
E263: Underperformance Rate - WN | F263: 0.55 | G263: %
E265: Outperformance Rate - WWN | G265: %
E266: Underperformance Rate - WWN | G266: %
E268: Outperformance Rate - TTT | G268: %
E269: Underperformance Rate - TTT | G269: %
D271: Abstraction and Business rate cost sharing rates
E272: Cost sharing rates Business rates - Overperformance | F272: 0.25 | G272: %
E273: Cost sharing rates Business rates - Underperformance | F273: 0.25 | G273: %
E274: Cost sharing rates Abstraction - Overperformance | F274: 0.25 | G274: %
E275: Cost sharing rates Abstraction - Underperformance | F275: 0.25 | G275: %
A277: FINANCING INPUTS
B279: Model Tolerance
E280: Financing cost index | G280: Index | K280: 4 | L280: 3 | M280: 2 | N280: 1 | O280: 0
E282: Real WACC CPIH Deflated - WR | F282: 0.0292 | G282: %
E283: Real WACC CPIH Deflated - WN | F283: 0.0292 | G283: %
E284: Real WACC CPIH Deflated - WWN | G284: %
E285: Real WACC CPIH Deflated - BIO | G285: %
E286: Real WACC CPIH Deflated - TTT | G286: %
A288: NON CHANGEABLE INPUTS
B290: Model Tolerance
... 3 more rows

Sheet Calc-->

Sheet Index
A1: =RIGHT(CELL("filename", $A$1), LEN(CELL("filename", $A$1)) - SEARCH("]", CELL("filename", $A$1))) -> 
E2: =Time!E$22 -> Model Period BEG | J2: =Time!J$22 -> 2019-04-01 | K2: =Time!K$22 -> 2020-04-01 | L2: =Time!L$22 -> 2021-04-01 | M2: =Time!M$22 -> 2022-04-01 | N2: =Time!N$22 -> 2023-04-01 | O2: =Time!O$22 -> 2024-04-01 | P2: =Time!P$22 -> 2025-04-01
E3: =Time!E$23 -> Model Period END | F3: =Check!F$8 -> 0 | G3: Error chks | J3: =Time!J$23 -> 2020-03-31 | K3: =Time!K$23 -> 2021-03-31 | L3: =Time!L$23 -> 2022-03-31 | M3: =Time!M$23 -> 2023-03-31 | N3: =Time!N$23 -> 2024-03-31 | O3: =Time!O$23 -> 2025-03-31 | P3: =Time!P$23 -> 2026-03-31
E4: =Time!E$59 -> Pre Forecast vs Forecast | J4: =Time!J$59 -> Pre Fcst | K4: =Time!K$59 -> Forecast | L4: =Time!L$59 -> Forecast | M4: =Time!M$59 -> Forecast | N4: =Time!N$59 -> Forecast | O4: =Time!O$59 -> Forecast | P4: =Time!P$59 -> Post-Fcst
E5: =Time!E$101 -> Financial Year Ending | J5: =Time!J$101 -> 2020 | K5: =Time!K$101 -> 2021 | L5: =Time!L$101 -> 2022 | M5: =Time!M$101 -> 2023 | N5: =Time!N$101 -> 2024 | O5: =Time!O$101 -> 2025 | P5: =Time!P$101 -> 2026
E6: =Time!E$11 -> Model column counter | F6: Constant | G6: Unit | H6: Total | J6: =Time!J$11 -> 1 | K6: =Time!K$11 -> 2 | L6: =Time!L$11 -> 3 | M6: =Time!M$11 -> 4 | N6: =Time!N$11 -> 5 | O6: =Time!O$11 -> 6 | P6: =Time!P$11 -> 7
A8: CPI(H) INDEXATION
C10: Average CPI(H) - base index
E11: =InpActive!E210 -> Consumer Price Index (with housing) for April | F11: =InpActive!F210 -> 103.2 | G11: =InpActive!G210 -> Index
E12: =InpActive!E211 -> Consumer Price Index (with housing) for May | F12: =InpActive!F211 -> 103.5 | G12: =InpActive!G211 -> Index
E13: =InpActive!E212 -> Consumer Price Index (with housing) for June | F13: =InpActive!F212 -> 103.5 | G13: =InpActive!G212 -> Index
E14: =InpActive!E213 -> Consumer Price Index (with housing) for July | F14: =InpActive!F213 -> 103.5 | G14: =InpActive!G213 -> Index
E15: =InpActive!E214 -> Consumer Price Index (with housing) for August | F15: =InpActive!F214 -> 104 | G15: =InpActive!G214 -> Index
E16: =InpActive!E215 -> Consumer Price Index (with housing) for September | F16: =InpActive!F215 -> 104.3 | G16: =InpActive!G215 -> Index
E17: =InpActive!E216 -> Consumer Price Index (with housing) for October | F17: =InpActive!F216 -> 104.4 | G17: =InpActive!G216 -> Index
E18: =InpActive!E217 -> Consumer Price Index (with housing) for November | F18: =InpActive!F217 -> 104.7 | G18: =InpActive!G217 -> Index
E19: =InpActive!E218 -> Consumer Price Index (with housing) for December | F19: =InpActive!F218 -> 105 | G19: =InpActive!G218 -> Index
E20: =InpActive!E219 -> Consumer Price Index (with housing) for January | F20: =InpActive!F219 -> 104.5 | G20: =InpActive!G219 -> Index
E21: =InpActive!E220 -> Consumer Price Index (with housing) for February | F21: =InpActive!F220 -> 104.9 | G21: =InpActive!G220 -> Index
E22: =InpActive!E221 -> Consumer Price Index (with housing) for March | F22: =InpActive!F221 -> 105.1 | G22: =InpActive!G221 -> Index
E23: CPIH 2017/18 FYA - Base Year | F23: =AVERAGE(F11:F22) -> 104.2166667 | G23: Index
C25: CPI(H): Financial year average - index
E26: =InpActive!E224 -> Consumer Price Index (with housing) for April | F26: =InpActive!F224 -> 0 | G26: =InpActive!G224 -> Index | H26: =InpActive!H224 -> 0 | I26: =InpActive!I224 -> 0 | J26: =InpActive!J224 -> 107.6 | K26: =InpActive!K224 -> 108.6 | L26: =InpActive!L224 -> 110.4 | M26: =InpActive!M224 -> 119 | N26: =InpActive!N224 -> 128.3 | O26: =InpActive!O224 -> 132.2 | P26: =InpActive!P224 -> 134.8
E27: =InpActive!E225 -> Consumer Price Index (with housing) for May | F27: =InpActive!F225 -> 0 | G27: =InpActive!G225 -> Index | H27: =InpActive!H225 -> 0 | I27: =InpActive!I225 -> 0 | J27: =InpActive!J225 -> 107.9 | K27: =InpActive!K225 -> 108.6 | L27: =InpActive!L225 -> 111 | M27: =InpActive!M225 -> 119.7 | N27: =InpActive!N225 -> 129.1 | O27: =InpActive!O225 -> 132.7 | P27: =InpActive!P225 -> 135.4
E28: =InpActive!E226 -> Consumer Price Index (with housing) for June | F28: =InpActive!F226 -> 0 | G28: =InpActive!G226 -> Index | H28: =InpActive!H226 -> 0 | I28: =InpActive!I226 -> 0 | J28: =InpActive!J226 -> 107.9 | K28: =InpActive!K226 -> 108.8 | L28: =InpActive!L226 -> 111.4 | M28: =InpActive!M226 -> 120.5 | N28: =InpActive!N226 -> 129.4 | O28: =InpActive!O226 -> 133.3 | P28: =InpActive!P226 -> 135.9
E29: =InpActive!E227 -> Consumer Price Index (with housing) for July | F29: =InpActive!F227 -> 0 | G29: =InpActive!G227 -> Index | H29: =InpActive!H227 -> 0 | I29: =InpActive!I227 -> 0 | J29: =InpActive!J227 -> 108 | K29: =InpActive!K227 -> 109.2 | L29: =InpActive!L227 -> 111.4 | M29: =InpActive!M227 -> 121.2 | N29: =InpActive!N227 -> 129 | O29: =InpActive!O227 -> 132.2 | P29: =InpActive!P227 -> 134.9
E30: =InpActive!E228 -> Consumer Price Index (with housing) for August | F30: =InpActive!F228 -> 0 | G30: =InpActive!G228 -> Index | H30: =InpActive!H228 -> 0 | I30: =InpActive!I228 -> 0 | J30: =InpActive!J228 -> 108.3 | K30: =InpActive!K228 -> 108.8 | L30: =InpActive!L228 -> 112.1 | M30: =InpActive!M228 -> 121.8 | N30: =InpActive!N228 -> 129.4 | O30: =InpActive!O228 -> 132.6 | P30: =InpActive!P228 -> 135.3
E31: =InpActive!E229 -> Consumer Price Index (with housing) for September | F31: =InpActive!F229 -> 0 | G31: =InpActive!G229 -> Index | H31: =InpActive!H229 -> 0 | I31: =InpActive!I229 -> 0 | J31: =InpActive!J229 -> 108.4 | K31: =InpActive!K229 -> 109.2 | L31: =InpActive!L229 -> 112.4 | M31: =InpActive!M229 -> 122.3 | N31: =InpActive!N229 -> 130.1 | O31: =InpActive!O229 -> 133.4 | P31: =InpActive!P229 -> 136
E32: =InpActive!E230 -> Consumer Price Index (with housing) for October | F32: =InpActive!F230 -> 0 | G32: =InpActive!G230 -> Index | H32: =InpActive!H230 -> 0 | I32: =InpActive!I230 -> 0 | J32: =InpActive!J230 -> 108.3 | K32: =InpActive!K230 -> 109.2 | L32: =InpActive!L230 -> 113.4 | M32: =InpActive!M230 -> 124.3 | N32: =InpActive!N230 -> 130.2 | O32: =InpActive!O230 -> 133.5 | P32: =InpActive!P230 -> 136.1
E33: =InpActive!E231 -> Consumer Price Index (with housing) for November | F33: =InpActive!F231 -> 0 | G33: =InpActive!G231 -> Index | H33: =InpActive!H231 -> 0 | I33: =InpActive!I231 -> 0 | J33: =InpActive!J231 -> 108.5 | K33: =InpActive!K231 -> 109.1 | L33: =InpActive!L231 -> 114.1 | M33: =InpActive!M231 -> 124.8 | N33: =InpActive!N231 -> 130 | O33: =InpActive!O231 -> 133.3 | P33: =InpActive!P231 -> 135.9
E34: =InpActive!E232 -> Consumer Price Index (with housing) for December | F34: =InpActive!F232 -> 0 | G34: =InpActive!G232 -> Index | H34: =InpActive!H232 -> 0 | I34: =InpActive!I232 -> 0 | J34: =InpActive!J232 -> 108.5 | K34: =InpActive!K232 -> 109.4 | L34: =InpActive!L232 -> 114.7 | M34: =InpActive!M232 -> 125.3 | N34: =InpActive!N232 -> 130.5 | O34: =InpActive!O232 -> 133.8 | P34: =InpActive!P232 -> 136.4
E35: =InpActive!E233 -> Consumer Price Index (with housing) for January | F35: =InpActive!F233 -> 0 | G35: =InpActive!G233 -> Index | H35: =InpActive!H233 -> 0 | I35: =InpActive!I233 -> 0 | J35: =InpActive!J233 -> 108.3 | K35: =InpActive!K233 -> 109.3 | L35: =InpActive!L233 -> 114.6 | M35: =InpActive!M233 -> 124.8 | N35: =InpActive!N233 -> 130 | O35: =InpActive!O233 -> 133.3 | P35: =InpActive!P233 -> 135.9
E36: =InpActive!E234 -> Consumer Price Index (with housing) for February | F36: =InpActive!F234 -> 0 | G36: =InpActive!G234 -> Index | H36: =InpActive!H234 -> 0 | I36: =InpActive!I234 -> 0 | J36: =InpActive!J234 -> 108.6 | K36: =InpActive!K234 -> 109.4 | L36: =InpActive!L234 -> 115.4 | M36: =InpActive!M234 -> 126 | N36: =InpActive!N234 -> 130.8 | O36: =InpActive!O234 -> 134.1 | P36: =InpActive!P234 -> 136.8
E37: =InpActive!E235 -> Consumer Price Index (with housing) for March | F37: =InpActive!F235 -> 0 | G37: =InpActive!G235 -> Index | H37: =InpActive!H235 -> 0 | I37: =InpActive!I235 -> 0 | J37: =InpActive!J235 -> 108.6 | K37: =InpActive!K235 -> 109.7 | L37: =InpActive!L235 -> 116.5 | M37: =InpActive!M235 -> 126.8 | N37: =InpActive!N235 -> 131.6 | O37: =InpActive!O235 -> 134.9 | P37: =InpActive!P235 -> 137.6
E38: CPIH 2017/18 FYA - Period | G38: Index | J38: =AVERAGE(J26:J37) -> 108.2416667 | K38: =AVERAGE(K26:K37) -> 109.1083333 | L38: 113.1166667 | M38: 123.0416667 | N38: 129.8666667 | O38: 133.275 | P38: 135.9166667
D40: CPI(H): Fin year average - inflate from base year average
E41: =E$23 -> CPIH 2017/18 FYA - Base Year | F41: =F$23 -> 104.2166667 | G41: Index
E42: =E$38 -> CPIH 2017/18 FYA - Period | F42: =F$38 -> 0 | G42: Index | H42: 0 | I42: 0 | J42: 108.2416667 | K42: 109.1083333 | L42: 113.1166667 | M42: 123.0416667 | N42: 129.8666667 | O42: 133.275 | P42: 135.9166667
E43: CPI(H): Fin year average - inflate from base year 2017-18 average - CALC | G43: % | J43: =IF($F41 = 0, 0, J42 / $F41) -> 1.038621462 | K43: =IF($F41 = 0, 0, K42 / $F41) -> 1.04693747 | L43: =IF($F41 = 0, 0, L42 / $F41) -> 1.085399008 | M43: 1.180633296 | N43: 1.246121862 | O43: 1.278826163 | P43: 1.304173996
A45: END OF SHEET

Sheet Time
A1: =RIGHT(CELL("filename", $A$1), LEN(CELL("filename", $A$1)) - SEARCH("]", CELL("filename", $A$1))) -> 
E2: =Time!E$22 -> Model Period BEG | J2: =Time!J$22 -> 2019-04-01 | K2: =Time!K$22 -> 2020-04-01 | L2: =Time!L$22 -> 2021-04-01 | M2: =Time!M$22 -> 2022-04-01 | N2: =Time!N$22 -> 2023-04-01 | O2: =Time!O$22 -> 2024-04-01 | P2: =Time!P$22 -> 2025-04-01
E3: =Time!E$23 -> Model Period END | F3: =Check!F$8 -> 0 | G3: Error chks | J3: =Time!J$23 -> 2020-03-31 | K3: =Time!K$23 -> 2021-03-31 | L3: =Time!L$23 -> 2022-03-31 | M3: =Time!M$23 -> 2023-03-31 | N3: =Time!N$23 -> 2024-03-31 | O3: =Time!O$23 -> 2025-03-31 | P3: =Time!P$23 -> 2026-03-31
E4: =Time!E$59 -> Pre Forecast vs Forecast | J4: =Time!J$59 -> Pre Fcst | K4: =Time!K$59 -> Forecast | L4: =Time!L$59 -> Forecast | M4: =Time!M$59 -> Forecast | N4: =Time!N$59 -> Forecast | O4: =Time!O$59 -> Forecast | P4: =Time!P$59 -> Post-Fcst
E5: =Time!E$101 -> Financial Year Ending | J5: =Time!J$101 -> 2020 | K5: =Time!K$101 -> 2021 | L5: =Time!L$101 -> 2022 | M5: =Time!M$101 -> 2023 | N5: =Time!N$101 -> 2024 | O5: =Time!O$101 -> 2025 | P5: =Time!P$101 -> 2026
E6: =Time!E$11 -> Model column counter | F6: Constant | G6: Unit | H6: Total | J6: =Time!J$11 -> 1 | K6: =Time!K$11 -> 2 | L6: =Time!L$11 -> 3 | M6: =Time!M$11 -> 4 | N6: =Time!N$11 -> 5 | O6: =Time!O$11 -> 6 | P6: =Time!P$11 -> 7
A8: MODEL PERIOD
B10: Model Column Counter
E11: Model column counter | G11: counter | J11: =I11 + 1 -> 1 | K11: =J11 + 1 -> 2 | L11: =K11 + 1 -> 3 | M11: 4 | N11: 5 | O11: 6 | P11: =O11 + 1 -> 7
E12: Model Column Total | F12: =MAX(J11:P11) -> 7 | G12: column
E14: =E$11 -> Model column counter | F14: 0 | G14: counter | H14: 0 | I14: 0 | J14: 1 | K14: 2 | L14: 3 | M14: 4 | N14: 5 | O14: 6 | P14: 7
E15: First model column flag | G15: flag | H15: =SUM(J15:P15) -> 1 | J15: =IF( J14 = 1, 1, 0) -> 1 | K15: =IF( K14 = 1, 1, 0) -> 0 | L15: 0 | M15: 0 | N15: 0 | O15: 0 | P15: 0
E17: =InpActive!E$10 -> First date of time ruler | F17: =InpActive!F$10 -> 2019-04-01 | G17: =InpActive!G$10 -> date
E18: First model period BEG | F18: =DATE(YEAR(F17), MONTH(F17), 1) -> 2019-04-01 | G18: month
E20: =E$18 -> First model period BEG | F20: =F$18 -> 2019-04-01 | G20: =G$18 -> month
E21: =E$15 -> First model column flag | F21: 0 | G21: flag | H21: 1 | I21: 0 | J21: 1 | K21: 0 | L21: 0 | M21: 0 | N21: 0 | O21: 0 | P21: 0
E22: Model Period BEG | G22: date | J22: =IF( J21 = 1, $F20, I23 + 1) -> 2019-04-01 | K22: =IF( K21 = 1, $F20, J23 + 1) -> 2020-04-01 | L22: 2021-04-01 | M22: 2022-04-01 | N22: 2023-04-01 | O22: 2024-04-01 | P22: =IF( P21 = 1, $F20, O23 + 1) -> 2025-04-01
E23: Model Period END | G23: date | J23: =DATE(YEAR(J22), MONTH(J22) + 12, DAY(1) - 1) -> 2020-03-31 | K23: 2021-03-31 | L23: 2022-03-31 | M23: 2023-03-31 | N23: 2024-03-31 | O23: 2025-03-31 | P23: 2026-03-31
E25: =E$23 -> Model Period END | F25: 00:00:00 | G25: date | H25: 00:00:00 | I25: 00:00:00 | J25: 2020-03-31 | K25: 2021-03-31 | L25: 2022-03-31 | M25: 2023-03-31 | N25: 2024-03-31 | O25: 2025-03-31 | P25: 2026-03-31
D26: less | E26: =E$22 -> Model Period BEG | F26: 00:00:00 | G26: date | H26: 00:00:00 | I26: 00:00:00 | J26: 2019-04-01 | K26: 2020-04-01 | L26: 2021-04-01 | M26: 2022-04-01 | N26: 2023-04-01 | O26: 2024-04-01 | P26: 2025-04-01
E27: Days in Model Period | G27: days | H27: =SUM(J27:P27) -> 2557 | J27: =J25 - J26 + 1 -> 366 | K27: 365 | L27: 365 | M27: 365 | N27: 366 | O27: 365 | P27: 365
A30: PRE FORECAST PERIOD
E32: =InpActive!E$12 -> Last Pre Forecast Date | F32: =InpActive!F$12 -> 2020-03-31 | G32: =InpActive!G$12 -> date
E33: =E$23 -> Model Period END | F33: 00:00:00 | G33: date | H33: 00:00:00 | I33: 00:00:00 | J33: 2020-03-31 | K33: 2021-03-31 | L33: 2022-03-31 | M33: 2023-03-31 | N33: 2024-03-31 | O33: 2025-03-31 | P33: 2026-03-31
E34: Last Pre Forecast Flag | G34: flag | H34: =SUM(J34:P34) -> 1 | J34: =IF(J33 = $F32, 1, 0) -> 1 | K34: 0 | L34: 0 | M34: 0 | N34: 0 | O34: 0 | P34: 0
E35: Pre Forecast Period Flag | G35: flag | H35: =SUM(J35:P35) -> 1 | J35: =IF($F32 >= J33, 1, 0) -> 1 | K35: =IF($F32 >= K33, 1, 0) -> 0 | L35: 0 | M35: 0 | N35: 0 | O35: 0 | P35: 0
E36: Pre Forecast Period Total | F36: =SUM(J35:P35) -> 1 | G36: columns
E38: =InpActive!E$14 -> Acquisition date (midnight) | F38: =InpActive!F$14 -> 2020-03-31 | G38: =InpActive!G$14 -> date
E39: =E$23 -> Model Period END | F39: 00:00:00 | G39: date | H39: 00:00:00 | I39: 00:00:00 | J39: 2020-03-31 | K39: 2021-03-31 | L39: 2022-03-31 | M39: 2023-03-31 | N39: 2024-03-31 | O39: 2025-03-31 | P39: 2026-03-31
E40: Acquisition / initial balance date flag | G40: flag | H40: =SUM(J40:P40) -> 1 | J40: =IF(J39 = $F38, 1, 0) -> 1 | K40: 0 | L40: 0 | M40: 0 | N40: 0 | O40: 0 | P40: 0
A43: FORECAST PERIOD
E45: =E$34 -> Last Pre Forecast Flag | F45: 0 | G45: flag | H45: 1 | I45: 0 | J45: 1 | K45: 0 | L45: 0 | M45: 0 | N45: 0 | O45: 0 | P45: 0
E46: 1st Forecast Period Flag | G46: flag | H46: =SUM(J46:P46) -> 1 | J46: =I45 -> 0 | K46: =J45 -> 1 | L46: 0 | M46: 0 | N46: 0 | O46: 0 | P46: =O45 -> 0
E48: =InpActive!E$16 -> Last forecast date | F48: =InpActive!F$16 -> 2025-03-31 | G48: =InpActive!G$16 -> date
E49: =E$23 -> Model Period END | F49: 00:00:00 | G49: date | H49: 00:00:00 | I49: 00:00:00 | J49: 2020-03-31 | K49: 2021-03-31 | L49: 2022-03-31 | M49: 2023-03-31 | N49: 2024-03-31 | O49: 2025-03-31 | P49: 2026-03-31
E50: Last Forecast Period Flag | G50: flag | H50: =SUM(J50:P50) -> 1 | J50: =IF(AND($F48 > I49, $F48 <= J49), 1, 0) -> 0 | K50: =IF(AND($F48 > J49, $F48 <= K49), 1, 0) -> 0 | L50: 0 | M50: 0 | N50: 0 | O50: 1 | P50: =IF(AND($F48 > O49, $F48 <= P49), 1, 0) -> 0
E52: =E$46 -> 1st Forecast Period Flag | F52: 0 | G52: flag | H52: 1 | I52: 0 | J52: 0 | K52: 1 | L52: 0 | M52: 0 | N52: 0 | O52: 0 | P52: 0
E53: =E$50 -> Last Forecast Period Flag | F53: 0 | G53: flag | H53: 1 | I53: 0 | J53: 0 | K53: 0 | L53: 0 | M53: 0 | N53: 0 | O53: 1 | P53: 0
E54: Forecast Period Flag | G54: flag | H54: =SUM(J54:P54) -> 5 | J54: =J52 - I53 + I54 -> 0 | K54: =K52 - J53 + J54 -> 1 | L54: 1 | M54: 1 | N54: 1 | O54: 1 | P54: =P52 - O53 + O54 -> 0
E55: Forecast Period Total | F55: =SUM(J54:P54) -> 5 | G55: columns
E57: =E$35 -> Pre Forecast Period Flag | F57: 0 | G57: flag | H57: 1 | I57: 0 | J57: 1 | K57: 0 | L57: 0 | M57: 0 | N57: 0 | O57: 0 | P57: 0
E58: =E$54 -> Forecast Period Flag | F58: 0 | G58: flag | H58: 5 | I58: 0 | J58: 0 | K58: 1 | L58: 1 | M58: 1 | N58: 1 | O58: 1 | P58: 0
E59: Pre Forecast vs Forecast | G59: flag | J59: =IF(J57 = 1, "Pre Fcst", IF(J58 = 1, "Forecast", "Post-Fcst")) -> Pre Fcst | K59: Forecast | L59: Forecast | M59: Forecast | N59: Forecast | O59: Forecast | P59: Post-Fcst
A62: POST FORECAST PERIOD
E64: =E$50 -> Last Forecast Period Flag | F64: 0 | G64: flag | H64: 1 | I64: 0 | J64: 0 | K64: 0 | L64: 0 | M64: 0 | N64: 0 | O64: 1 | P64: 0
E65: 1st Post Last Forecast Period Flag | G65: flag | H65: =SUM(J65:P65) -> 1 | J65: =I64 -> 0 | K65: =J64 -> 0 | L65: 0 | M65: 0 | N65: 0 | O65: 0 | P65: =O64 -> 1
E67: =E$65 -> 1st Post Last Forecast Period Flag | F67: 0 | G67: flag | H67: 1 | I67: 0 | J67: 0 | K67: 0 | L67: 0 | M67: 0 | N67: 0 | O67: 0 | P67: 1
E68: Post Forecast Period Flag | G68: flag | H68: =SUM(J68:P68) -> 1 | J68: =I68 + J67 -> 0 | K68: =J68 + K67 -> 0 | L68: 0 | M68: 0 | N68: 0 | O68: 0 | P68: =O68 + P67 -> 1
E69: Post Forecast Period Total | F69: =SUM(J68:P68) -> 1 | G69: columns
A72: MODELLING PERIOD CHECK
E74: =E$12 -> Model Column Total | F74: =F$12 -> 7 | G74: =G$12 -> column
D75: less | E75: =E$36 -> Pre Forecast Period Total | F75: =F$36 -> 1 | G75: =G$36 -> columns
D76: less | E76: =E$55 -> Forecast Period Total | F76: =F$55 -> 5 | G76: =G$55 -> columns
D77: less | E77: =E$69 -> Post Forecast Period Total | F77: =F$69 -> 1 | G77: =G$69 -> columns
E78: Modelling Period Check | F78: =IF(F74 - SUM(F75:F77) <> 0, 1, 0) -> 0 | G78: check
A81: PARTIAL PERIOD FLAG (PPF)
C82: This is an example of a part period flag. It is not currently used.
B83: Operation Partial Period Flag (PPF)
E84: =E$18 -> First model period BEG | F84: =F$18 -> 2019-04-01 | G84: =G$18 -> month
E85: =InpActive!E$20 -> Operation Finish Date (midnight) | F85: =InpActive!F$20 -> 2025-03-31 | G85: =InpActive!G$20 -> date
E86: =E$22 -> Model Period BEG | F86: 00:00:00 | G86: date | H86: 00:00:00 | I86: 00:00:00 | J86: 2019-04-01 | K86: 2020-04-01 | L86: 2021-04-01 | M86: 2022-04-01 | N86: 2023-04-01 | O86: 2024-04-01 | P86: 2025-04-01
E87: =E$23 -> Model Period END | F87: 00:00:00 | G87: date | H87: 00:00:00 | I87: 00:00:00 | J87: 2020-03-31 | K87: 2021-03-31 | L87: 2022-03-31 | M87: 2023-03-31 | N87: 2024-03-31 | O87: 2025-03-31 | P87: 2026-03-31
E88: Days in Operation Period | G88: days | H88: =SUM(J88:P88) -> 2192 | J88: =MAX(0, (MIN($F85, J87) - MAX($F84, J86) + 1)) -> 366 | K88: 365 | L88: 365 | M88: 365 | N88: 366 | O88: 365 | P88: 0
E90: =E$88 -> Days in Operation Period | F90: 0 | G90: days | H90: 2192 | I90: 0 | J90: 366 | K90: 365 | L90: 365 | M90: 365 | N90: 366 | O90: 365 | P90: 0
E91: =E$27 -> Days in Model Period | F91: 0 | G91: days | H91: 2557 | I91: 0 | J91: 366 | K91: 365 | L91: 365 | M91: 365 | N91: 366 | O91: 365 | P91: 365
E92: Operation Period PPF | G92: factor | H92: =SUM(J92:P92) -> 6 | J92: =J90 / J91 -> 1 | K92: 1 | L92: 1 | M92: 1 | N92: 1 | O92: 1 | P92: 0
A95: FINANCIAL YEAR
E97: =InpActive!E21 -> First Modelling Column Financial Year Number | F97: =InpActive!F21 -> 2020 | G97: =InpActive!G21 -> year
E98: =InpActive!E22 -> Financial Year End Month Number | F98: =InpActive!F22 -> 3 | G98: =InpActive!G22 -> month #
E99: =E$23 -> Model Period END | F99: 00:00:00 | G99: date | H99: 00:00:00 | I99: 00:00:00 | J99: 2020-03-31 | K99: 2021-03-31 | L99: 2022-03-31 | M99: 2023-03-31 | N99: 2024-03-31 | O99: 2025-03-31 | P99: 2026-03-31
E100: =E$15 -> First model column flag | F100: 0 | G100: flag | H100: 1 | I100: 0 | J100: 1 | K100: 0 | L100: 0 | M100: 0 | N100: 0 | O100: 0 | P100: 0
E101: Financial Year Ending | G101: year # | J101: =IF(J100 = 1, $F97, IF(J99 > (DATE(I101, $F98 + 1, 1) - 1), I101 + 1, I101)) -> 2020 | K101: =IF(K100 = 1, $F97, IF(K99 > (DATE(J101, $F98 + 1, 1) - 1), J101 + 1, J101)) -> 2021 | L101: 2022 | M101: 2023 | N101: 2024 | O101: 2025 | P101: =IF(P100 = 1, $F97, IF(P99 > (DATE(O101, $F98 + 1, 1) - 1), O101 + 1, O101)) -> 2026
A104: END OF SHEET

Sheet Cost sharing calculations
A1: =RIGHT(CELL("filename", $A$1), LEN(CELL("filename", $A$1)) - SEARCH("]", CELL("filename", $A$1))) -> 
E2: =Time!E$22 -> Model Period BEG | J2: =Time!J$22 -> 2019-04-01 | K2: =Time!K$22 -> 2020-04-01 | L2: =Time!L$22 -> 2021-04-01 | M2: =Time!M$22 -> 2022-04-01 | N2: =Time!N$22 -> 2023-04-01 | O2: =Time!O$22 -> 2024-04-01 | P2: =Time!P$22 -> 2025-04-01
E3: =Time!E$23 -> Model Period END | F3: =Check!F$8 -> 0 | G3: Error chks | J3: =Time!J$23 -> 2020-03-31 | K3: =Time!K$23 -> 2021-03-31 | L3: =Time!L$23 -> 2022-03-31 | M3: =Time!M$23 -> 2023-03-31 | N3: =Time!N$23 -> 2024-03-31 | O3: =Time!O$23 -> 2025-03-31 | P3: =Time!P$23 -> 2026-03-31
E4: =Time!E$59 -> Pre Forecast vs Forecast | J4: =Time!J$59 -> Pre Fcst | K4: =Time!K$59 -> Forecast | L4: =Time!L$59 -> Forecast | M4: =Time!M$59 -> Forecast | N4: =Time!N$59 -> Forecast | O4: =Time!O$59 -> Forecast | P4: =Time!P$59 -> Post-Fcst
E5: =Time!E$101 -> Financial Year Ending | J5: =Time!J$101 -> 2020 | K5: =Time!K$101 -> 2021 | L5: =Time!L$101 -> 2022 | M5: =Time!M$101 -> 2023 | N5: =Time!N$101 -> 2024 | O5: =Time!O$101 -> 2025 | P5: =Time!P$101 -> 2026
E6: =Time!E$11 -> Model column counter | F6: Constant | G6: Unit | H6: Total | J6: =Time!J$11 -> 1 | K6: =Time!K$11 -> 2 | L6: =Time!L$11 -> 3 | M6: =Time!M$11 -> 4 | N6: =Time!N$11 -> 5 | O6: =Time!O$11 -> 6 | P6: =Time!P$11 -> 7
A8: WAGE GROWTH ADJUSTER
C10: Cumulative actual real wage growth
E11: =InpActive!E242 -> ASHE Gross Hourly Wage All - Nominal | F11: =InpActive!F242 -> 0 | G11: =InpActive!G242 -> £ / hour | H11: =InpActive!H242 -> 0 | I11: =InpActive!I242 -> 0 | J11: =InpActive!J242 -> 17.27 | K11: =InpActive!K242 -> 17.63 | L11: =InpActive!L242 -> 17.97 | M11: =InpActive!M242 -> 18.71 | N11: =InpActive!N242 -> 19.55195 | O11: =InpActive!O242 -> 20.43178775 | P11: =InpActive!P242 -> 0
E12: =Index!E$43 -> CPI(H): Fin year average - inflate from base year 2017-18 average - CALC | F12: =Index!F$43 -> 0 | G12: =Index!G$43 -> % | H12: =Index!H$43 -> 0 | I12: =Index!I$43 -> 0 | J12: =Index!J$43 -> 1.038621462 | K12: =Index!K$43 -> 1.04693747 | L12: =Index!L$43 -> 1.085399008 | M12: =Index!M$43 -> 1.180633296 | N12: =Index!N$43 -> 1.246121862 | O12: =Index!O$43 -> 1.278826163 | P12: =Index!P$43 -> 1.304173996
E13: ASHE GROSS HOURLY WAGE ALL - Real | G13: £ / hour | J13: =IF( J11 = 0, 0, J11 / J12) -> 16.62780969 | K13: 16.83959215 | L13: 16.55612347 | M13: 15.84742702 | N13: 15.69023914 | O13: 15.97698603 | P13: 0
E15: =E$13 -> ASHE GROSS HOURLY WAGE ALL - Real | F15: 0 | G15: £ / hour | H15: 0 | I15: 0 | J15: 16.62780969 | K15: 16.83959215 | L15: 16.55612347 | M15: 15.84742702 | N15: 15.69023914 | O15: 15.97698603 | P15: 0
E16: ASHE GROSS HOURLY WAGE ALL - Cumulative growth - Real | G16: % | J16: =IF( J15 = 0, 0, J15 / $J$15) -> 1 | K16: =IF( K15 = 0, 0, K15 / $J$15) -> 1.012736642 | L16: 0.9956887759 | M16: 0.9530676213 | N16: 0.9436143084 | O16: 0.9608593275 | P16: 0
C18: Real adjustment factor for wage growth
E19: =InpActive!E241 -> OBR Forecast wage growth for PR19 FD | F19: =InpActive!F241 -> 0 | G19: =InpActive!G241 -> % | H19: =InpActive!H241 -> 0 | I19: =InpActive!I241 -> 0 | J19: =InpActive!J241 -> 0.01 | K19: =InpActive!K241 -> 0.011 | L19: =InpActive!L241 -> 0.011 | M19: =InpActive!M241 -> 0.012 | N19: =InpActive!N241 -> 0.013 | O19: =InpActive!O241 -> 0.013 | P19: =InpActive!P241 -> 0
E20: =Time!E45 -> Last Pre Forecast Flag | F20: =Time!F45 -> 0 | G20: =Time!G45 -> flag | H20: =Time!H45 -> 1 | I20: =Time!I45 -> 0 | J20: =Time!J45 -> 1 | K20: =Time!K45 -> 0 | L20: =Time!L45 -> 0 | M20: =Time!M45 -> 0 | N20: =Time!N45 -> 0 | O20: =Time!O45 -> 0 | P20: =Time!P45 -> 0
E21: Forecast wage growth for adjuster | G21: % | J21: =IF(J20 = 1, 1, I21 * (J19 + 1)) -> 1 | K21: =IF(K20 = 1, 1, J21 * (K19 + 1)) -> 1.011 | L21: 1.022121 | M21: 1.034386452 | N21: 1.047833476 | O21: 1.061455311 | P21: 1.061455311
E23: =E$16 -> ASHE GROSS HOURLY WAGE ALL - Cumulative growth - Real | F23: 0 | G23: % | H23: 0 | I23: 0 | J23: 1 | K23: 1.012736642 | L23: 0.9956887759 | M23: 0.9530676213 | N23: 0.9436143084 | O23: 0.9608593275 | P23: 0
E24: =E$21 -> Forecast wage growth for adjuster | F24: 0 | G24: % | H24: 0 | I24: 0 | J24: 1 | K24: 1.011 | L24: 1.022121 | M24: 1.034386452 | N24: 1.047833476 | O24: 1.061455311 | P24: 1.061455311
E25: =Time!E$54 -> Forecast Period Flag | F25: =Time!F$54 -> 0 | G25: =Time!G$54 -> flag | H25: =Time!H$54 -> 5 | I25: =Time!I$54 -> 0 | J25: =Time!J$54 -> 0 | K25: =Time!K$54 -> 1 | L25: =Time!L$54 -> 1 | M25: =Time!M$54 -> 1 | N25: =Time!N$54 -> 1 | O25: =Time!O$54 -> 1 | P25: =Time!P$54 -> 0
E26: Real adjustment factor for wages | G26: % | J26: =IF( J25 = 1, J23/J24, 0) -> 0 | K26: 1.001717747 | L26: 0.9741398288 | M26: 0.9213844781 | N26: 0.9005384254 | O26: 0.9052282442 | P26: 0
A28: WATER SERVICES COMBINED
C30: Active Sharing Rates -WR/WN
E32: =E$134 -> Total variance to forecast net totex for cost sharing - WR | F32: =F$134 -> 2.243757543 | G32: =G$134 -> £m
E33: =E$292 -> Total variance to forecast net totex for cost sharing - WN | F33: =F$292 -> 42.48704127 | G33: =G$292 -> £m
E34: Total variance to forecast net totex for cost sharing - WATER | F34: =SUM(F32:F33) -> 44.73079882 | G34: £m
E36: =E$34 -> Total variance to forecast net totex for cost sharing - WATER | F36: =F$34 -> 44.73079882 | G36: =G$34 -> £m
E37: =InpActive!E$259 -> Outperformance Rate - WR | F37: =InpActive!F$259 -> 0.45 | G37: =InpActive!G$259 -> %
E38: =InpActive!E$260 -> Underperformance Rate - WR | F38: =InpActive!F$260 -> 0.55 | G38: =InpActive!G$260 -> %
E39: ="Active Sharing Rate - "& INDEX(E37:E38,MATCH(F39,F37:F38,0)) -> Active Sharing Rate - Underperformance Rate - WR | F39: =IF(F36<0,F37,F38) -> 0.55 | G39: %
E42: =E$34 -> Total variance to forecast net totex for cost sharing - WATER | F42: =F$34 -> 44.73079882 | G42: =G$34 -> £m
E43: =InpActive!E$262 -> Outperformance Rate - WN | F43: =InpActive!F$262 -> 0.45 | G43: =InpActive!G$262 -> %
E44: =InpActive!E$263 -> Underperformance Rate - WN | F44: =InpActive!F$263 -> 0.55 | G44: =InpActive!G$263 -> %
E45: ="Active Sharing Rate - "& INDEX(E43:E44,MATCH(F45,F43:F44,0)) -> Active Sharing Rate - Underperformance Rate - WN | F45: =IF(F42<0,F43,F44) -> 0.55 | G45: %
A47: WATER RESOURCES
C49: Adjustment For Wage Growth
D51: Totex for wage adjustment
E52: =InpActive!E$29 -> Base Costs - WR - Real | F52: =InpActive!F$29 -> 23.9 | G52: =InpActive!G$29 -> £m
E53: =InpActive!E$30 -> Metering (excluding new connections) for meters requested by optants, customers and businesses - WR - Real | F53: =InpActive!F$30 -> 0 | G53: =InpActive!G$30 -> £m
E54: Totex available for wage indexation adjustment - WR - Real | F54: =SUM(F52:F53) -> 23.9 | G54: £m
D56: Profile for totex for wage adjustment
E57: =InpActive!E$32 -> Opex split profile - Base costs - WR | F57: =InpActive!F$32 -> 0 | G57: =InpActive!G$32 -> % | H57: =InpActive!H$32 -> 0 | I57: =InpActive!I$32 -> 0 | J57: =InpActive!J$32 -> 0 | K57: =InpActive!K$32 -> 0.1683946929 | L57: =InpActive!L$32 -> 0.1651875934 | M57: =InpActive!M$32 -> 0.1621122924 | N57: =InpActive!N$32 -> 0.1539407785 | O57: =InpActive!O$32 -> 0.1495474914 | P57: =InpActive!P$32 -> 0
E58: =InpActive!E$33 -> Capex Split Profile - Base costs - WR | F58: =InpActive!F$33 -> 0 | G58: =InpActive!G$33 -> % | H58: =InpActive!H$33 -> 0 | I58: =InpActive!I$33 -> 0 | J58: =InpActive!J$33 -> 0 | K58: =InpActive!K$33 -> 0.04059397241 | L58: =InpActive!L$33 -> 0.04656884281 | M58: =InpActive!M$33 -> 0.03852912749 | N58: =InpActive!N$33 -> 0.03703540989 | O58: =InpActive!O$33 -> 0.03808979879 | P58: =InpActive!P$33 -> 0
E59: Totex profile - Base costs - WR | G59: % | H59: =SUM(J59:P59) -> 1 | J59: =SUM(J57:J58) -> 0 | K59: =SUM(K57:K58) -> 0.2089886653 | L59: =SUM(L57:L58) -> 0.2117564362 | M59: 0.2006414199 | N59: 0.1909761884 | O59: 0.1876372902 | P59: 0
E60: Totex profile - Base costs - 5 year percentage - WR | F60: =H$59 -> 1 | G60: %
E62: =E$60 -> Totex profile - Base costs - 5 year percentage - WR | F62: =F$60 -> 1 | G62: =G$60 -> %
E63: WR Totex profile 100% check | F63: =IF(OR($F$62 = 1, F62 = 0), 0, 1) -> 0 | G63: Check
E65: =E$54 -> Totex available for wage indexation adjustment - WR - Real | F65: =F$54 -> 23.9 | G65: =G$54 -> £m
E66: =Time!E$54 -> Forecast Period Flag | F66: =Time!F$54 -> 0 | G66: =Time!G$54 -> flag | H66: =Time!H$54 -> 5 | I66: =Time!I$54 -> 0 | J66: =Time!J$54 -> 0 | K66: =Time!K$54 -> 1 | L66: =Time!L$54 -> 1 | M66: =Time!M$54 -> 1 | N66: =Time!N$54 -> 1 | O66: =Time!O$54 -> 1 | P66: =Time!P$54 -> 0
E67: =E$59 -> Totex profile - Base costs - WR | F67: 0 | G67: % | H67: 1 | I67: 0 | J67: 0 | K67: 0.2089886653 | L67: 0.2117564362 | M67: 0.2006414199 | N67: 0.1909761884 | O67: 0.1876372902 | P67: 0
E68: Profiled Totex available for wage indexation adjustment - WR - Real | G68: £m | H68: =SUM(J68:P68) -> 23.9 | J68: =IF(J66 = 1, J67 * $F65, 0) -> 0 | K68: 4.994829101 | L68: 5.060978824 | M68: 4.795329936 | N68: 4.564330902 | O68: 4.484531236 | P68: 0
D70: Totex applicable for wage adjustment by year
E71: =InpActive!E$245 -> Percentage totex linked to wage growth - WR | F71: =InpActive!F$245 -> 0.386 | G71: =InpActive!G$245 -> %
E72: =E68 -> Profiled Totex available for wage indexation adjustment - WR - Real | F72: 0 | G72: £m | H72: 23.9 | I72: 0 | J72: 0 | K72: 4.994829101 | L72: 5.060978824 | M72: 4.795329936 | N72: 4.564330902 | O72: 4.484531236 | P72: 0
E73: Profiled Net totex available for wage adj - WR - Real | G73: £m | H73: =SUM(J73:P73) -> 9.2254 | J73: =J72 * $F71 -> 0 | K73: 1.928004033 | L73: 1.953537826 | M73: 1.850997355 | N73: 1.761831728 | O73: 1.731029057 | P73: 0
D75: Adjustment factor for wage linked totex
E76: =Time!E$54 -> Forecast Period Flag | F76: =Time!F$54 -> 0 | G76: =Time!G$54 -> flag | H76: =Time!H$54 -> 5 | I76: =Time!I$54 -> 0 | J76: =Time!J$54 -> 0 | K76: =Time!K$54 -> 1 | L76: =Time!L$54 -> 1 | M76: =Time!M$54 -> 1 | N76: =Time!N$54 -> 1 | O76: =Time!O$54 -> 1 | P76: =Time!P$54 -> 0
E77: =E$73 -> Profiled Net totex available for wage adj - WR - Real | F77: 0 | G77: £m | H77: 9.2254 | I77: 0 | J77: 0 | K77: 1.928004033 | L77: 1.953537826 | M77: 1.850997355 | N77: 1.761831728 | O77: 1.731029057 | P77: 0
E78: =E$26 -> Real adjustment factor for wages | F78: 0 | G78: % | H78: 0 | I78: 0 | J78: 0 | K78: 1.001717747 | L78: 0.9741398288 | M78: 0.9213844781 | N78: 0.9005384254 | O78: 0.9052282442 | P78: 0
E79: Profiled adjustment wage related totex - WR - Real | G79: £m | H79: =SUM(J79:P79) -> 8.693388656 | J79: =IF(J76 = 1, J77 * J78, 0) -> 0 | K79: 1.931315856 | L79: 1.903019003 | M79: 1.705480232 | N79: 1.58659717 | O79: 1.566976394 | P79: 0
D81: Variance to forecast wage linked totex
E82: =E$79 -> Profiled adjustment wage related totex - WR - Real | F82: 0 | G82: £m | H82: 8.693388656 | I82: 0 | J82: 0 | K82: 1.931315856 | L82: 1.903019003 | M82: 1.705480232 | N82: 1.58659717 | O82: 1.566976394 | P82: 0
E83: =E$73 -> Profiled Net totex available for wage adj - WR - Real | F83: 0 | G83: £m | H83: 9.2254 | I83: 0 | J83: 0 | K83: 1.928004033 | L83: 1.953537826 | M83: 1.850997355 | N83: 1.761831728 | O83: 1.731029057 | P83: 0
E84: Variance to forecast totex for wage adjustment - WR | G84: £m | H84: =SUM(J84:P84) -> -0.5320113437 | J84: =J82 - J83 -> 0 | K84: =K82 - K83 -> 0.003311823206 | L84: -0.05051882272 | M84: -0.1455171231 | N84: -0.175234558 | O84: -0.1640526632 | P84: 0
D86: Wage totex overfunded/unfunded at PR19
E87: =E$84 -> Variance to forecast totex for wage adjustment - WR | F87: =F$84 -> 0 | G87: £m | H87: -0.5320113437 | I87: 0 | J87: 0 | K87: =K$84 -> 0.003311823206 | L87: -0.05051882272 | M87: -0.1455171231 | N87: -0.175234558 | O87: -0.1640526632 | P87: 0
E88: =E129 -> Time value of money factor - WR | F88: 0 | G88: Factor | H88: 0 | I88: 0 | J88: 1 | K88: 1.122016155 | L88: 1.090182817 | M88: 1.05925264 | N88: 1.0292 | O88: 1 | P88: 1
E89: Variance to forecast totex for wage adjustment - NPV adjusted - WR | G89: £m | H89: =SUM(J89:P89) -> -0.5499023003 | J89: =J87*J88 -> 0 | K89: =K87*K88 -> 0.003715919141 | L89: =L87*L88 -> -0.05507475247 | M89: -0.1541393968 | N89: -0.180351407 | O89: -0.1640526632 | P89: 0
E90: (Under)/Overfunded wage related totex at PR19 - WR | F90: =H89 * -1 -> 0.5499023003 | G90: £m
C92: Cost sharing on net totex availale for reconcilation
E94: =InpActive!E$42 -> Net totex for cost sharing reconciliation - WR - Nominal | F94: =InpActive!F$42 -> 0 | G94: =InpActive!G$42 -> £m | H94: =InpActive!H$42 -> 0 | I94: =InpActive!I$42 -> 0 | J94: =InpActive!J$42 -> 0 | K94: =InpActive!K$42 -> 5.589517177 | L94: =InpActive!L$42 -> 4.179262986 | M94: =InpActive!M$42 -> 5.312828526 | N94: =InpActive!N$42 -> 4.702373382 | O94: =InpActive!O$42 -> 4.843444583 | P94: =InpActive!P$42 -> 0
E95: =Index!E$43 -> CPI(H): Fin year average - inflate from base year 2017-18 average - CALC | F95: =Index!F$43 -> 0 | G95: =Index!G$43 -> % | H95: =Index!H$43 -> 0 | I95: =Index!I$43 -> 0 | J95: =Index!J$43 -> 1.038621462 | K95: =Index!K$43 -> 1.04693747 | L95: =Index!L$43 -> 1.085399008 | M95: =Index!M$43 -> 1.180633296 | N95: =Index!N$43 -> 1.246121862 | O95: =Index!O$43 -> 1.278826163 | P95: =Index!P$43 -> 1.304173996
E96: Actual net totex for cost sharing reconciliation - WR - Real | G96: £m | J96: =J94 / J95 -> 0 | K96: =K94 / K95 -> 5.3389217 | L96: 3.850439288 | M96: 4.499981954 | N96: 3.77360636 | O96: 3.787414366 | P96: 0
E98: =E$96 -> Actual net totex for cost sharing reconciliation - WR - Real | F98: =F$96 -> 0 | G98: £m | H98: 0 | I98: 0 | J98: 0 | K98: 5.3389217 | L98: 3.850439288 | M98: 4.499981954 | N98: 3.77360636 | O98: 3.787414366 | P98: 0
E99: =Time!E$54 -> Forecast Period Flag | F99: =Time!F$54 -> 0 | G99: =Time!G$54 -> flag | H99: =Time!H$54 -> 5 | I99: =Time!I$54 -> 0 | J99: =Time!J$54 -> 0 | K99: =Time!K$54 -> 1 | L99: =Time!L$54 -> 1 | M99: =Time!M$54 -> 1 | N99: =Time!N$54 -> 1 | O99: =Time!O$54 -> 1 | P99: =Time!P$54 -> 0
E100: Actual net totex for cost sharing reconciliation - WR - Real | G100: £m | H100: =SUM(J100:P100) -> 21.25036367 | J100: =J98 * J99 -> 0 | K100: 5.3389217 | L100: 3.850439288 | M100: 4.499981954 | N100: 3.77360636 | O100: 3.787414366 | P100: 0
D102: Profile for net totex for cost sharing
E104: =InpActive!E$35 -> Opex split profile - Cost sharing - WR | F104: =InpActive!F$35 -> 0 | G104: =InpActive!G$35 -> % | H104: =InpActive!H$35 -> 0 | I104: =InpActive!I$35 -> 0 | J104: =InpActive!J$35 -> 0 | K104: =InpActive!K$35 -> 0.1620134326 | L104: =InpActive!L$35 -> 0.1579142349 | M104: =InpActive!M$35 -> 0.1539751423 | N104: =InpActive!N$35 -> 0.143845322 | O104: =InpActive!O$35 -> 0.1383051791 | P104: =InpActive!P$35 -> 0
E105: =InpActive!E$36 -> Capex split profile - Cost sharing - WR | F105: =InpActive!F$36 -> 0 | G105: =InpActive!G$36 -> % | H105: =InpActive!H$36 -> 0 | I105: =InpActive!I$36 -> 0 | J105: =InpActive!J$36 -> 0 | K105: =InpActive!K$36 -> 0.04931234755 | L105: =InpActive!L$36 -> 0.056570442 | M105: =InpActive!M$36 -> 0.0468040355 | N105: =InpActive!N$36 -> 0.04498951189 | O105: =InpActive!O$36 -> 0.04627035209 | P105: =InpActive!P$36 -> 0
E106: Totex profile - Cost Sharing - WR | G106: % | H106: =SUM(J106:P106) -> 1 | J106: =SUM(J104:J105) -> 0 | K106: =SUM(K104:K105) -> 0.2113257802 | L106: 0.2144846769 | M106: 0.2007791778 | N106: 0.1888348339 | O106: 0.1845755312 | P106: 0
E107: Totex profile - Cost Sharing - 5 year percentage - WR | F107: =H$59 -> 1 | G107: %
E109: =E$60 -> Totex profile - Base costs - 5 year percentage - WR | F109: =F$60 -> 1 | G109: =G$60 -> %
E110: WR Totex profile - Cost sharing 100% check | F110: =IF(OR($F$109 = 1, F109 = 0), 0, 1) -> 0 | G110: Check
E112: =InpActive!E$43 -> Net totex available for cost sharing - WR - Real | F112: =InpActive!F$43 -> 19.7 | G112: =InpActive!G$43 -> £m
E113: =E$106 -> Totex profile - Cost Sharing - WR | F113: =F$106 -> 0 | G113: % | H113: 1 | I113: 0 | J113: 0 | K113: 0.2113257802 | L113: 0.2144846769 | M113: 0.2007791778 | N113: 0.1888348339 | O113: 0.1845755312 | P113: 0
E114: Net totex available for cost sharing profiled - WR - Real | G114: £m | H114: =SUM(J114:P114) -> 19.7 | J114: =J113 * $F112 -> 0 | K114: 4.163117869 | L114: 4.225348136 | M114: 3.955349802 | N114: 3.720046228 | O114: 3.636137965 | P114: 0
E116: =E$114 -> Net totex available for cost sharing profiled - WR - Real | F116: 0 | G116: £m | H116: 19.7 | I116: 0 | J116: 0 | K116: 4.163117869 | L116: 4.225348136 | M116: 3.955349802 | N116: 3.720046228 | O116: 3.636137965 | P116: 0
E117: =E$84 -> Variance to forecast totex for wage adjustment - WR | F117: 0 | G117: £m | H117: -0.5320113437 | I117: 0 | J117: 0 | K117: 0.003311823206 | L117: -0.05051882272 | M117: -0.1455171231 | N117: -0.175234558 | O117: -0.1640526632 | P117: 0
E118: =InpActive!E$45 -> Total final WINEP reconciliation - WR - real | F118: =InpActive!F$45 -> 0 | G118: =InpActive!G$45 -> £m | H118: =InpActive!H$45 -> 0 | I118: =InpActive!I$45 -> 0 | J118: =InpActive!J$45 -> 0 | K118: =InpActive!K$45 -> 0 | L118: =InpActive!L$45 -> 0 | M118: =InpActive!M$45 -> 0 | N118: =InpActive!N$45 -> 0 | O118: =InpActive!O$45 -> 0 | P118: =InpActive!P$45 -> 0
E119: Net totex available for cost sharing after adjustments profiled - WR - Real | G119: £m | H119: =SUM(J119:P119) -> 19.16798866 | J119: =SUM(J116:J118) -> 0 | K119: =SUM(K116:K118) -> 4.166429693 | L119: 4.174829313 | M119: 3.809832679 | N119: 3.54481167 | O119: 3.472085301 | P119: 0
D121: Variance to forecast net totex for cost sharing
E122: =E$100 -> Actual net totex for cost sharing reconciliation - WR - Real | F122: 0 | G122: £m | H122: 21.25036367 | I122: 0 | J122: 0 | K122: 5.3389217 | L122: 3.850439288 | M122: 4.499981954 | N122: 3.77360636 | O122: 3.787414366 | P122: 0
E123: =E$119 -> Net totex available for cost sharing after adjustments profiled - WR - Real | F123: 0 | G123: £m | H123: 19.16798866 | I123: 0 | J123: 0 | K123: 4.166429693 | L123: 4.174829313 | M123: 3.809832679 | N123: 3.54481167 | O123: 3.472085301 | P123: 0
E124: Variance to forecast net totex for cost sharing - WR | G124: £m | H124: =SUM(J124:P124) -> 2.082375011 | J124: =J122 - J123 -> 0 | K124: 1.172492007 | L124: -0.3243900247 | M124: 0.6901492744 | N124: 0.2287946899 | O124: 0.3153290647 | P124: 0
D126: Variance to forecast net totex for cost sharing - Time adjusted
E127: =InpActive!E$280 -> Financing cost index | F127: =InpActive!F$280 -> 0 | G127: =InpActive!G$280 -> Index | H127: =InpActive!H$280 -> 0 | I127: =InpActive!I$280 -> 0 | J127: =InpActive!J$280 -> 0 | K127: =InpActive!K$280 -> 4 | L127: =InpActive!L$280 -> 3 | M127: =InpActive!M$280 -> 2 | N127: =InpActive!N$280 -> 1 | O127: =InpActive!O$280 -> 0 | P127: =InpActive!P$280 -> 0
E128: =InpActive!E$282 -> Real WACC CPIH Deflated - WR | F128: =InpActive!F$282 -> 0.0292 | G128: =InpActive!G$282 -> %
E129: Time value of money factor - WR | G129: Factor | J129: =(1+$F128) ^ J127 -> 1 | K129: 1.122016155 | L129: 1.090182817 | M129: 1.05925264 | N129: 1.0292 | O129: 1 | P129: 1
E131: =E$124 -> Variance to forecast net totex for cost sharing - WR | F131: 0 | G131: £m | H131: 2.082375011 | I131: 0 | J131: 0 | K131: 1.172492007 | L131: -0.3243900247 | M131: 0.6901492744 | N131: 0.2287946899 | O131: 0.3153290647 | P131: 0
E132: =E$129 -> Time value of money factor - WR | F132: 0 | G132: Factor | H132: 0 | I132: 0 | J132: 1 | K132: 1.122016155 | L132: 1.090182817 | M132: 1.05925264 | N132: 1.0292 | O132: 1 | P132: 1
E133: Time adjusted variance to forecast net totex for cost sharing - WR | G133: £m | H133: =SUM(J133:P133) -> 2.243757543 | J133: =J131 * J132 -> 0 | K133: 1.315554974 | L133: -0.353644431 | M133: 0.7310424409 | N133: 0.2354754948 | O133: 0.3153290647 | P133: 0
E134: Total variance to forecast net totex for cost sharing - WR | F134: =$H133 -> 2.243757543 | G134: £m
D136: Under / Overperformance on net totex for cost sharing
E137: =E$134 -> Total variance to forecast net totex for cost sharing - WR | F137: =F$134 -> 2.243757543 | G137: =G$134 -> £m
E138: =E$39 -> Active Sharing Rate - Underperformance Rate - WR | F138: =F$39 -> 0.55 | G138: =G$39 -> %
E139: Active adjustment for cost sharing - Net totex for cost sharing - WR - Real | F139: =F137 * (1-F138) -> 1.009690895 | G139: £m
E141: =InpActive!E$56 -> Ex ante allowance above Ofwat forecast - Water Resources - Real | F141: =InpActive!F$56 -> 0 | G141: =InpActive!G$56 -> £m
E142: =E$106 -> Totex profile - Cost Sharing - WR | F142: =F$106 -> 0 | G142: % | H142: 1 | I142: 0 | J142: 0 | K142: 0.2113257802 | L142: 0.2144846769 | M142: 0.2007791778 | N142: 0.1888348339 | O142: 0.1845755312 | P142: 0
E143: Ex ante allowance profiled - WR - Real | G143: £m | H143: =SUM(J143:P143) -> 0 | J143: =J142 * $F141 -> 0 | K143: 0 | L143: 0 | M143: 0 | N143: 0 | O143: 0 | P143: 0
E145: =E$143 -> Ex ante allowance profiled - WR - Real | F145: 0 | G145: £m | H145: 0 | I145: 0 | J145: 0 | K145: 0 | L145: 0 | M145: 0 | N145: 0 | O145: 0 | P145: 0
E146: =E$129 -> Time value of money factor - WR | F146: 0 | G146: Factor | H146: 0 | I146: 0 | J146: 1 | K146: 1.122016155 | L146: 1.090182817 | M146: 1.05925264 | N146: 1.0292 | O146: 1 | P146: 1
E147: Ex ante allowance profiled - WR - Real - NPV adjusted | G147: £m | H147: =SUM(J147:P147) -> 0 | J147: =J145 * J146 -> 0 | K147: 0 | L147: 0 | M147: 0 | N147: 0 | O147: 0 | P147: 0
E148: NPV adjusted ex ante allowance - WR - Real | F148: =H147 -> 0 | G148: £m
E150: =InpActive!E$63 -> Actuals for CMA excluded items - WR - nominal | F150: =InpActive!F$63 -> 0 | G150: =InpActive!G$63 -> £m | H150: =InpActive!H$63 -> 0 | I150: =InpActive!I$63 -> 0 | J150: =InpActive!J$63 -> 0 | K150: =InpActive!K$63 -> 0 | L150: =InpActive!L$63 -> 0 | M150: =InpActive!M$63 -> 0 | N150: =InpActive!N$63 -> 0 | O150: =InpActive!O$63 -> 0 | P150: =InpActive!P$63 -> 0
E151: =Index!E$43 -> CPI(H): Fin year average - inflate from base year 2017-18 average - CALC | F151: =Index!F$43 -> 0 | G151: =Index!G$43 -> % | H151: =Index!H$43 -> 0 | I151: =Index!I$43 -> 0 | J151: =Index!J$43 -> 1.038621462 | K151: =Index!K$43 -> 1.04693747 | L151: =Index!L$43 -> 1.085399008 | M151: =Index!M$43 -> 1.180633296 | N151: =Index!N$43 -> 1.246121862 | O151: =Index!O$43 -> 1.278826163 | P151: =Index!P$43 -> 1.304173996
E152: Actuals for CMA excluded items - WR - real | G152: £m | J152: =J150 / J151 -> 0 | K152: =K150 / K151 -> 0 | L152: =L150 / L151 -> 0 | M152: 0 | N152: 0 | O152: 0 | P152: 0
E154: =InpActive!E$64 -> Allowance for CMA excluded items - WR - real | F154: =InpActive!F$64 -> 0 | G154: =InpActive!G$64 -> £m | H154: =InpActive!H$64 -> 0 | I154: =InpActive!I$64 -> 0 | J154: =InpActive!J$64 -> 0 | K154: =InpActive!K$64 -> 0 | L154: =InpActive!L$64 -> 0 | M154: =InpActive!M$64 -> 0 | N154: =InpActive!N$64 -> 0 | O154: =InpActive!O$64 -> 0 | P154: =InpActive!P$64 -> 0
E155: =E152 -> Actuals for CMA excluded items - WR - real | F155: =F152 -> 0 | G155: £m | H155: 0 | I155: 0 | J155: 0 | K155: =K152 -> 0 | L155: 0 | M155: 0 | N155: 0 | O155: 0 | P155: 0
E156: Variance to allowances for CMA excluded items - WR | G156: £m | H156: =SUM(J156:P156) -> 0 | J156: =J155-J154 -> 0 | K156: 0 | L156: =L155-L154 -> 0 | M156: 0 | N156: 0 | O156: 0 | P156: 0
E158: =E$156 -> Variance to allowances for CMA excluded items - WR | F158: =F$156 -> 0 | G158: £m | H158: 0 | I158: 0 | J158: 0 | K158: 0 | L158: 0 | M158: 0 | N158: 0 | O158: 0 | P158: 0
E159: =E$129 -> Time value of money factor - WR | F159: 0 | G159: Factor | H159: 0 | I159: 0 | J159: 1 | K159: 1.122016155 | L159: 1.090182817 | M159: 1.05925264 | N159: 1.0292 | O159: 1 | P159: 1
E160: Time value adjustmed variance to allowances for CMA excluded items - WR - real | G160: £m | H160: =SUM(J160:P160) -> 0 | J160: =J158 * J159 -> 0 | K160: =K158 * K159 -> 0 | L160: 0 | M160: 0 | N160: 0 | O160: 0 | P160: 0
E161: Total variance to allowances for CMA excluded items - WR | F161: =$H160 -> 0 | G161: £m
E163: =E161 -> Total variance to allowances for CMA excluded items - WR | F163: =F161 -> 0 | G163: £m
E164: =InpActive!E65 -> CMA excluded items sharing rate - WR - real | F164: =InpActive!F65 -> 0 | G164: =InpActive!G65 -> %
E165: Allowable adjustment for CMA exclusioned items - WR - Real | F165: =(F163* F164) * -1 -> 0 | G165: £m
E167: =E139 -> Active adjustment for cost sharing - Net totex for cost sharing - WR - Real | F167: =F139 -> 1.009690895 | G167: =G139 -> £m
E168: =E$148 -> NPV adjusted ex ante allowance - WR - Real | F168: =F$148 -> 0 | G168: =G$148 -> £m
E169: =E90 -> (Under)/Overfunded wage related totex at PR19 - WR | F169: =F90 -> 0.5499023003 | G169: =G90 -> £m
E170: =E$165 -> Allowable adjustment for CMA exclusioned items - WR - Real | F170: =F$165 -> 0 | G170: £m
E171: Total adjustment for cost sharing after ex ante allowance & wage adjustment - WR - Real | F171: =F167 - SUM(F168:F170) -> 0.4597885942 | G171: £m
C173: Wholesaler bad debt sharing adjustment
E175: =InpActive!E$59 -> Business retail bad debt liability due to covid liquidity measures - WR - real | F175: =InpActive!F$59 -> 0 | G175: =InpActive!G$59 -> £m
E176: =E$39 -> Active Sharing Rate - Underperformance Rate - WR | F176: =F$39 -> 0.55 | G176: =G$39 -> %
E177: Embedded customer share - WR | F177: =F175 * (1-F176) -> 0 | G177: £m
E179: =InpActive!E$60 -> Total Wholesaler Liability - WR - real | F179: =InpActive!F$60 -> 0 | G179: =InpActive!G$60 -> £m
E180: =E$39 -> Active Sharing Rate - Underperformance Rate - WR | F180: =F$39 -> 0.55 | G180: =G$39 -> %
E181: Wholesaler liability - WR | F181: =F179 * (F180) -> 0 | G181: £m
E183: =InpActive!E$59 -> Business retail bad debt liability due to covid liquidity measures - WR - real | F183: =InpActive!F$59 -> 0 | G183: =InpActive!G$59 -> £m
E184: =E$181 -> Wholesaler liability - WR | F184: =F$181 -> 0 | G184: £m
E185: Customer Liability | F185: =F183 - F184 -> 0 | G185: £m
E187: =E185 -> Customer Liability | F187: =F185 -> 0 | G187: £m
E188: =E177 -> Embedded customer share - WR | F188: =F177 -> 0 | G188: £m
E189: Wholesaler bad debt adjustment - WR | F189: =IF(F187 > F188, F187 - F188, 0) -> 0 | G189: £m
C191: Cost sharing adjustment RCV/Revenue Split
E193: =E$171 -> Total adjustment for cost sharing after ex ante allowance & wage adjustment - WR - Real | F193: =F$171 -> 0.4597885942 | G193: £m
E194: =InpActive!E$54 -> Weighted average PAYG rate - WR | F194: =InpActive!F$54 -> 0.8149413966 | G194: =InpActive!G$54 -> %
E195: Cost sharing revenue exc bad debt adjustment- WR - Real | F195: =F193 * ( $F$194) -> 0.3747007591 | G195: £m
E197: =E$195 -> Cost sharing revenue exc bad debt adjustment- WR - Real | F197: =F$195 -> 0.3747007591 | G197: £m
E198: =E189 -> Wholesaler bad debt adjustment - WR | F198: =F189 -> 0 | G198: =G189 -> £m
E199: Cost sharing revenue adjustment - WR - Real | F199: =SUM(F197:F198) -> 0.3747007591 | G199: £m
E201: =E$171 -> Total adjustment for cost sharing after ex ante allowance & wage adjustment - WR - Real | F201: =F$171 -> 0.4597885942 | G201: £m
E202: =InpActive!E$54 -> Weighted average PAYG rate - WR | F202: =InpActive!F$54 -> 0.8149413966 | G202: =InpActive!G$54 -> %
E203: Cost sharing RCV adjustment - WR - Real | F203: =F201 * (1 - $F$202) -> 0.08508783509 | G203: £m
A205: WATER NETWORK
C207: Adjustment For Wage Growth
D209: Totex for wage adjustment
E210: =InpActive!E$69 -> Base Costs - WN - Real | F210: =InpActive!F$69 -> 179.9 | G210: =InpActive!G$69 -> £m
E211: =InpActive!E$70 -> Metering (excluding new connections) for meters requested by optants, customers and businesses - WN - Real | F211: =InpActive!F$70 -> 19.1197087 | G211: =InpActive!G$70 -> £m
E212: Totex available for wage indexation adjustment - WN - Real | F212: =SUM(F210:F211) -> 199.0197087 | G212: £m
D214: Profile for totex for wage adjustment
E215: =InpActive!E$72 -> Opex Split Profile - Base costs - WN | F215: =InpActive!F$72 -> 0 | G215: =InpActive!G$72 -> % | H215: =InpActive!H$72 -> 0 | I215: =InpActive!I$72 -> 0 | J215: =InpActive!J$72 -> 0 | K215: =InpActive!K$72 -> 0.1146103775 | L215: =InpActive!L$72 -> 0.1121484093 | M215: =InpActive!M$72 -> 0.109856421 | N215: =InpActive!N$72 -> 0.1055795052 | O215: =InpActive!O$72 -> 0.1026075971 | P215: =InpActive!P$72 -> 0
E216: =InpActive!E$73 -> Capex Split Profile - Base costs - WN | F216: =InpActive!F$73 -> 0 | G216: =InpActive!G$73 -> % | H216: =InpActive!H$73 -> 0 | I216: =InpActive!I$73 -> 0 | J216: =InpActive!J$73 -> 0 | K216: =InpActive!K$73 -> 0.09616836961 | L216: =InpActive!L$73 -> 0.1056974678 | M216: =InpActive!M$73 -> 0.09925033319 | N216: =InpActive!N$73 -> 0.07816525988 | O216: =InpActive!O$73 -> 0.07591625944 | P216: =InpActive!P$73 -> 0
E217: Totex profile - Base costs - WN | G217: % | H217: =SUM(J217:P217) -> 1 | J217: =SUM(J215:J216) -> 0 | K217: =SUM(K215:K216) -> 0.2107787471 | L217: 0.2178458771 | M217: 0.2091067542 | N217: 0.1837447651 | O217: 0.1785238565 | P217: 0
E218: Totex profile - Base costs - 5 year percentage - WN | F218: =H$217 -> 1 | G218: %
E220: =E$218 -> Totex profile - Base costs - 5 year percentage - WN | F220: =F$218 -> 1 | G220: =G$218 -> %
E221: WN Totex profile - Base costs 100% check | F221: =IF(OR($F$220 = 1, F220 = 0), 0, 1) -> 0 | G221: Check
E223: =E$212 -> Totex available for wage indexation adjustment - WN - Real | F223: =F$212 -> 199.0197087 | G223: =G$212 -> £m
E224: =Time!E$54 -> Forecast Period Flag | F224: =Time!F$54 -> 0 | G224: =Time!G$54 -> flag | H224: =Time!H$54 -> 5 | I224: =Time!I$54 -> 0 | J224: =Time!J$54 -> 0 | K224: =Time!K$54 -> 1 | L224: =Time!L$54 -> 1 | M224: =Time!M$54 -> 1 | N224: =Time!N$54 -> 1 | O224: =Time!O$54 -> 1 | P224: =Time!P$54 -> 0
E225: =E$217 -> Totex profile - Base costs - WN | F225: 0 | G225: % | H225: 1 | I225: 0 | J225: 0 | K225: 0.2107787471 | L225: 0.2178458771 | M225: 0.2091067542 | N225: 0.1837447651 | O225: 0.1785238565 | P225: 0
E226: Profiled Totex available for wage indexation adjustment - WN - Real | G226: £m | H226: =SUM(J226:P226) -> 199.0197087 | J226: =IF(J224 = 1, J225 * $F223, 0) -> 0 | K226: 41.94912485 | L226: 43.355623 | M226: 41.61636532 | N226: 36.56882963 | O226: 35.52976592 | P226: 0
D228: Totex applicable for wage adjustment by year
E229: =InpActive!E$247 -> Percentage totex linked to wage growth - WN | F229: =InpActive!F$247 -> 0.386 | G229: =InpActive!G$247 -> %
E230: =E226 -> Profiled Totex available for wage indexation adjustment - WN - Real | F230: 0 | G230: £m | H230: 199.0197087 | I230: 0 | J230: 0 | K230: 41.94912485 | L230: 43.355623 | M230: 41.61636532 | N230: 36.56882963 | O230: 35.52976592 | P230: 0
E231: Profiled Net totex available for wage adj - WN - Real | G231: £m | H231: =SUM(J231:P231) -> 76.82160756 | J231: =J230 * $F229 -> 0 | K231: 16.19236219 | L231: 16.73527048 | M231: 16.06391701 | N231: 14.11556824 | O231: 13.71448964 | P231: 0
D233: Adjustment factor for wage linked totex
E234: =Time!E$54 -> Forecast Period Flag | F234: =Time!F$54 -> 0 | G234: =Time!G$54 -> flag | H234: =Time!H$54 -> 5 | I234: =Time!I$54 -> 0 | J234: =Time!J$54 -> 0 | K234: =Time!K$54 -> 1 | L234: =Time!L$54 -> 1 | M234: =Time!M$54 -> 1 | N234: =Time!N$54 -> 1 | O234: =Time!O$54 -> 1 | P234: =Time!P$54 -> 0
E235: =E$231 -> Profiled Net totex available for wage adj - WN - Real | F235: 0 | G235: £m | H235: 76.82160756 | I235: 0 | J235: 0 | K235: 16.19236219 | L235: 16.73527048 | M235: 16.06391701 | N235: 14.11556824 | O235: 13.71448964 | P235: 0
E236: =E$26 -> Real adjustment factor for wages | F236: 0 | G236: % | H236: 0 | I236: 0 | J236: 0 | K236: 1.001717747 | L236: 0.9741398288 | M236: 0.9213844781 | N236: 0.9005384254 | O236: 0.9052282442 | P236: 0
E237: Profiled adjustment wage related totex - WN - Real | G237: £m | H237: =SUM(J237:P237) -> 72.45006885 | J237: =IF(J234 = 1, J235 * J236, 0) -> 0 | K237: 16.22017657 | L237: 16.30249352 | M237: 14.80104379 | N237: 12.71161159 | O237: 12.41474338 | P237: 0
D239: Variance to forecast wage linked totex
E240: =E$237 -> Profiled adjustment wage related totex - WN - Real | F240: 0 | G240: £m | H240: 72.45006885 | I240: 0 | J240: 0 | K240: 16.22017657 | L240: 16.30249352 | M240: 14.80104379 | N240: 12.71161159 | O240: 12.41474338 | P240: 0
E241: =E$231 -> Profiled Net totex available for wage adj - WN - Real | F241: 0 | G241: £m | H241: 76.82160756 | I241: 0 | J241: 0 | K241: 16.19236219 | L241: 16.73527048 | M241: 16.06391701 | N241: 14.11556824 | O241: 13.71448964 | P241: 0
E242: Variance to forecast totex for wage adjustment - WN | G242: £m | H242: =SUM(J242:P242) -> -4.371538705 | J242: =J240 - J241 -> 0 | K242: 0.0278143821 | L242: -0.4327769604 | M242: -1.262873219 | N242: -1.403956644 | O242: -1.299746264 | P242: 0
D244: Wage totex overfunded/unfunded at PR19
E245: =E$242 -> Variance to forecast totex for wage adjustment - WN | F245: =F$242 -> 0 | G245: £m | H245: -4.371538705 | I245: 0 | J245: 0 | K245: 0.0278143821 | L245: -0.4327769604 | M245: -1.262873219 | N245: -1.403956644 | O245: -1.299746264 | P245: 0
E246: =E287 -> Time value of money factor - WN | F246: 0 | G246: Factor | H246: 0 | I246: 0 | J246: 1 | K246: =K287 -> 1.122016155 | L246: 1.090182817 | M246: 1.05925264 | N246: 1.0292 | O246: 1 | P246: 1
E247: Variance to forecast totex for wage adjustment - NPV adjusted - WN | G247: £m | H247: =SUM(J247:P247) -> -4.522998053 | J247: =J245*J246 -> 0 | K247: =K245*K246 -> 0.03120818607 | L247: =L245*L246 -> -0.4718060058 | M247: -1.337701791 | N247: -1.444952178 | O247: -1.299746264 | P247: 0
E248: (Under)/Overfunded wage related totex at PR19 - WN | F248: =H247 * -1 -> 4.522998053 | G248: £m
C251: Cost sharing on net totex availale for reconcilation
E253: =InpActive!E$82 -> Net totex for cost sharing reconciliation - WN - Nominal | F253: =InpActive!F$82 -> 0 | G253: =InpActive!G$82 -> £m | H253: =InpActive!H$82 -> 0 | I253: =InpActive!I$82 -> 0 | J253: =InpActive!J$82 -> 0 | K253: =InpActive!K$82 -> 47.17582352 | L253: =InpActive!L$82 -> 48.67351384 | M253: =InpActive!M$82 -> 53.72664838 | N253: =InpActive!N$82 -> 52.93168357 | O253: =InpActive!O$82 -> 54.51963408 | P253: =InpActive!P$82 -> 0
E254: =Index!E$43 -> CPI(H): Fin year average - inflate from base year 2017-18 average - CALC | F254: =Index!F$43 -> 0 | G254: =Index!G$43 -> % | H254: =Index!H$43 -> 0 | I254: =Index!I$43 -> 0 | J254: =Index!J$43 -> 1.038621462 | K254: =Index!K$43 -> 1.04693747 | L254: =Index!L$43 -> 1.085399008 | M254: =Index!M$43 -> 1.180633296 | N254: =Index!N$43 -> 1.246121862 | O254: =Index!O$43 -> 1.278826163 | P254: =Index!P$43 -> 1.304173996
E255: Actual net totex for cost sharing reconciliation - WN - Real | G255: £m | J255: =J253 / J254 -> 0 | K255: =K253 / K254 -> 45.0607843 | L255: =L253 / L254 -> 44.84389009 | M255: =M253 / M254 -> 45.50663493 | N255: =N253 / N254 -> 42.47713262 | O255: =O253 / O254 -> 42.63256073 | P255: =P253 / P254 -> 0
E257: =E$255 -> Actual net totex for cost sharing reconciliation - WN - Real | F257: =F$255 -> 0 | G257: £m | H257: 0 | I257: 0 | J257: 0 | K257: 45.0607843 | L257: 44.84389009 | M257: 45.50663493 | N257: 42.47713262 | O257: 42.63256073 | P257: 0
E258: =Time!E$54 -> Forecast Period Flag | F258: =Time!F$54 -> 0 | G258: =Time!G$54 -> flag | H258: =Time!H$54 -> 5 | I258: =Time!I$54 -> 0 | J258: =Time!J$54 -> 0 | K258: =Time!K$54 -> 1 | L258: =Time!L$54 -> 1 | M258: =Time!M$54 -> 1 | N258: =Time!N$54 -> 1 | O258: =Time!O$54 -> 1 | P258: =Time!P$54 -> 0
E259: Actual net totex for cost sharing reconciliation - WN - Real | G259: £m | H259: =SUM(J259:P259) -> 220.5210027 | J259: =J257 * J258 -> 0 | K259: 45.0607843 | L259: 44.84389009 | M259: 45.50663493 | N259: 42.47713262 | O259: 42.63256073 | P259: 0
D261: Profile for net totex for cost sharing
E262: =InpActive!E$75 -> Opex split profile - Cost sharing - WN | F262: =InpActive!F$75 -> 0 | G262: =InpActive!G$75 -> % | H262: =InpActive!H$75 -> 0 | I262: =InpActive!I$75 -> 0 | J262: =InpActive!J$75 -> 0 | K262: =InpActive!K$75 -> 0.09072383237 | L262: =InpActive!L$75 -> 0.08772263773 | M262: =InpActive!M$75 -> 0.08411334324 | N262: =InpActive!N$75 -> 0.07942812894 | O262: =InpActive!O$75 -> 0.07576446717 | P262: =InpActive!P$75 -> 0
E263: =InpActive!E$76 -> Capex split profile - Cost sharing - WN | F263: =InpActive!F$76 -> 0 | G263: =InpActive!G$76 -> % | H263: =InpActive!H$76 -> 0 | I263: =InpActive!I$76 -> 0 | J263: =InpActive!J$76 -> 0 | K263: =InpActive!K$76 -> 0.1221519135 | L263: =InpActive!L$76 -> 0.1429271416 | M263: =InpActive!M$76 -> 0.123291897 | N263: =InpActive!N$76 -> 0.09837516267 | O263: =InpActive!O$76 -> 0.09550147582 | P263: =InpActive!P$76 -> 0
E264: Totex profile - Cost Sharing - WN | G264: % | H264: =SUM(J264:P264) -> 1 | J264: =SUM(J262:J263) -> 0 | K264: =SUM(K262:K263) -> 0.2128757458 | L264: 0.2306497793 | M264: 0.2074052402 | N264: 0.1778032916 | O264: 0.171265943 | P264: 0
... 201 more rows

Sheet Abstraction & Rates
A1: =RIGHT(CELL("filename", $A$1), LEN(CELL("filename", $A$1)) - SEARCH("]", CELL("filename", $A$1)))&" Uncertainty Mechanism" -> 
E2: =Time!E$22 -> Model Period BEG | J2: =Time!J$22 -> 2019-04-01 | K2: =Time!K$22 -> 2020-04-01 | L2: =Time!L$22 -> 2021-04-01 | M2: =Time!M$22 -> 2022-04-01 | N2: =Time!N$22 -> 2023-04-01 | O2: =Time!O$22 -> 2024-04-01 | P2: =Time!P$22 -> 2025-04-01
E3: =Time!E$23 -> Model Period END | F3: =Check!F$8 -> 0 | G3: Error chks | J3: =Time!J$23 -> 2020-03-31 | K3: =Time!K$23 -> 2021-03-31 | L3: =Time!L$23 -> 2022-03-31 | M3: =Time!M$23 -> 2023-03-31 | N3: =Time!N$23 -> 2024-03-31 | O3: =Time!O$23 -> 2025-03-31 | P3: =Time!P$23 -> 2026-03-31
E4: =Time!E$59 -> Pre Forecast vs Forecast | J4: =Time!J$59 -> Pre Fcst | K4: =Time!K$59 -> Forecast | L4: =Time!L$59 -> Forecast | M4: =Time!M$59 -> Forecast | N4: =Time!N$59 -> Forecast | O4: =Time!O$59 -> Forecast | P4: =Time!P$59 -> Post-Fcst
E5: =Time!E$101 -> Financial Year Ending | J5: =Time!J$101 -> 2020 | K5: =Time!K$101 -> 2021 | L5: =Time!L$101 -> 2022 | M5: =Time!M$101 -> 2023 | N5: =Time!N$101 -> 2024 | O5: =Time!O$101 -> 2025 | P5: =Time!P$101 -> 2026
E6: =Time!E$11 -> Model column counter | F6: Constant | G6: Unit | H6: Total | J6: =Time!J$11 -> 1 | K6: =Time!K$11 -> 2 | L6: =Time!L$11 -> 3 | M6: =Time!M$11 -> 4 | N6: =Time!N$11 -> 5 | O6: =Time!O$11 -> 6 | P6: =Time!P$11 -> 7
A8: WATER RESOURCES
C10: Uncertainty mechanism for business rates
D12: Profile total forecast business rates
E13: =InpActive!E$48 -> Business rates - Forecast - WR - Real | F13: =InpActive!F$48 -> 1.017599644 | G13: =InpActive!G$48 -> £m
E14: =InpActive!E$38 -> Business Rates forecast profile - WR | F14: =InpActive!F$38 -> 0 | G14: =InpActive!G$38 -> % | H14: =InpActive!H$38 -> 0 | I14: =InpActive!I$38 -> 0 | J14: =InpActive!J$38 -> 0 | K14: =InpActive!K$38 -> 0.2 | L14: =InpActive!L$38 -> 0.2 | M14: =InpActive!M$38 -> 0.2 | N14: =InpActive!N$38 -> 0.2 | O14: =InpActive!O$38 -> 0.2 | P14: =InpActive!P$38 -> 0
E15: Business rates - Forecast Profiled - WR - Real | G15: £m | H15: =SUM(J15:P15) -> 1.017599644 | J15: =J14 * $F13 -> 0 | K15: 0.2035199288 | L15: 0.2035199288 | M15: 0.2035199288 | N15: 0.2035199288 | O15: 0.2035199288 | P15: 0
E17: =InpActive!E$51 -> Business rates - Actual - WR - Nominal | F17: =InpActive!F$51 -> 0 | G17: =InpActive!G$51 -> £m | H17: =InpActive!H$51 -> 0 | I17: =InpActive!I$51 -> 0 | J17: =InpActive!J$51 -> 0 | K17: =InpActive!K$51 -> 0.1472622341 | L17: =InpActive!L$51 -> 0.805973 | M17: =InpActive!M$51 -> 0.02787649657 | N17: =InpActive!N$51 -> 0.02982785133 | O17: =InpActive!O$51 -> 0.0313192439 | P17: =InpActive!P$51 -> 0
E18: =Index!E$43 -> CPI(H): Fin year average - inflate from base year 2017-18 average - CALC | F18: =Index!F$43 -> 0 | G18: =Index!G$43 -> % | H18: =Index!H$43 -> 0 | I18: =Index!I$43 -> 0 | J18: =Index!J$43 -> 1.038621462 | K18: =Index!K$43 -> 1.04693747 | L18: =Index!L$43 -> 1.085399008 | M18: =Index!M$43 -> 1.180633296 | N18: =Index!N$43 -> 1.246121862 | O18: =Index!O$43 -> 1.278826163 | P18: =Index!P$43 -> 1.304173996
E19: Business rates - Outturn - WR - Real | G19: £m | J19: =J17 / J18 -> 0 | K19: =K17 / K18 -> 0.1406600091 | L19: =L17 / L18 -> 0.7425591821 | M19: 0.02361147755 | N19: 0.02393654445 | O19: 0.02449061866 | P19: 0
D21: Variance to forecast business rates
E22: =E$19 -> Business rates - Outturn - WR - Real | F22: =F$19 -> 0 | G22: £m | H22: 0 | I22: 0 | J22: 0 | K22: 0.1406600091 | L22: 0.7425591821 | M22: 0.02361147755 | N22: 0.02393654445 | O22: 0.02449061866 | P22: 0
E23: =E$15 -> Business rates - Forecast Profiled - WR - Real | F23: 0 | G23: £m | H23: 1.017599644 | I23: 0 | J23: 0 | K23: 0.2035199288 | L23: 0.2035199288 | M23: 0.2035199288 | N23: 0.2035199288 | O23: 0.2035199288 | P23: 0
E24: Variance between forecast and outturn business rates - WR - Real | G24: £m | H24: =SUM(J24:P24) -> -0.06234181192 | J24: =J22 - J23 -> 0 | K24: -0.06285991964 | L24: 0.5390392533 | M24: -0.1799084512 | N24: -0.1795833843 | O24: -0.1790293101 | P24: 0
D26: Variance to forecast business rates – Time adjusted
E27: =E$24 -> Variance between forecast and outturn business rates - WR - Real | F27: 0 | G27: £m | H27: -0.06234181192 | I27: 0 | J27: 0 | K27: -0.06285991964 | L27: 0.5390392533 | M27: -0.1799084512 | N27: -0.1795833843 | O27: -0.1790293101 | P27: 0
E28: ='Cost sharing calculations'!E$129 -> Time value of money factor - WR | F28: ='Cost sharing calculations'!F$129 -> 0 | G28: ='Cost sharing calculations'!G$129 -> Factor | H28: ='Cost sharing calculations'!H$129 -> 0 | I28: ='Cost sharing calculations'!I$129 -> 0 | J28: ='Cost sharing calculations'!J$129 -> 1 | K28: ='Cost sharing calculations'!K$129 -> 1.122016155 | L28: ='Cost sharing calculations'!L$129 -> 1.090182817 | M28: ='Cost sharing calculations'!M$129 -> 1.05925264 | N28: ='Cost sharing calculations'!N$129 -> 1.0292 | O28: ='Cost sharing calculations'!O$129 -> 1 | P28: ='Cost sharing calculations'!P$129 -> 1
E29: Variance on business rates time value adjusted- WR - Real | G29: £m | H29: =SUM(J29:P29) -> -0.03730354477 | J29: =J27 * J28 -> 0 | K29: -0.07052984535 | L29: 0.5876513317 | M29: -0.1905685019 | N29: -0.1848272191 | O29: -0.1790293101 | P29: 0
E30: Adjustment for busines rates - WR - Real | F30: =H$29 -> -0.03730354477 | G30: £m
D32: Under / Overperformance business rates
E33: =InpActive!E$272 -> Cost sharing rates Business rates - Overperformance | F33: =InpActive!F$272 -> 0.25 | G33: =InpActive!G$272 -> %
E34: =E$30 -> Adjustment for busines rates - WR - Real | F34: =F$30 -> -0.03730354477 | G34: =G$30 -> £m
E35: Business Rates Outperformance Adjustment - WR - Real | F35: =IF( F34 < 0, $F$34 * (1 - F33), 0) -> -0.02797765857 | G35: £m
E37: =InpActive!E$273 -> Cost sharing rates Business rates - Underperformance | F37: =InpActive!F$273 -> 0.25 | G37: =InpActive!G$273 -> %
E38: =E$30 -> Adjustment for busines rates - WR - Real | F38: =F$30 -> -0.03730354477 | G38: =G$30 -> £m
E39: Business Rates Underperformance Adjustment - WR - Real | F39: =IF( F38 > 0, $F$38 * (1 - F37), 0) -> 0 | G39: £m
E41: =E$35 -> Business Rates Outperformance Adjustment - WR - Real | F41: =F$35 -> -0.02797765857 | G41: =G$35 -> £m
E42: =E$39 -> Business Rates Underperformance Adjustment - WR - Real | F42: =F$39 -> 0 | G42: =G$39 -> £m
E43: Active adjustment for business rates uncertainty mechanism - WR - Real | F43: =IF(F41 <> 0, F41, F42) -> -0.02797765857 | G43: £m
C45: Uncertainty mechanism for abstraction charges
D47: Profile total forecast abstraction charges
E48: =InpActive!E$49 -> Abstraction charges - Forecast - WR - Real | F48: =InpActive!F$48 -> 1.017599644 | G48: =InpActive!G$48 -> £m
E49: =InpActive!E$39 -> Abstraction Charges forecast profile - WR | F49: =InpActive!F$39 -> 0 | G49: =InpActive!G$39 -> % | H49: =InpActive!H$39 -> 0 | I49: =InpActive!I$39 -> 0 | J49: =InpActive!J$39 -> 0 | K49: =InpActive!K$39 -> 0.2 | L49: =InpActive!L$39 -> 0.2 | M49: =InpActive!M$39 -> 0.2 | N49: =InpActive!N$39 -> 0.2 | O49: =InpActive!O$39 -> 0.2 | P49: =InpActive!P$39 -> 0
E50: Abstraction charges - Forecast Profiled - WR - Real | G50: £m | H50: =SUM(J50:P50) -> 1.017599644 | J50: =J49 * $F48 -> 0 | K50: 0.2035199288 | L50: 0.2035199288 | M50: 0.2035199288 | N50: 0.2035199288 | O50: 0.2035199288 | P50: 0
E52: =InpActive!E$52 -> Abstraction charges - Actual - WR - Nominal | F52: =InpActive!F$52 -> 0 | G52: =InpActive!G$52 -> £m | H52: =InpActive!H$52 -> 0 | I52: =InpActive!I$52 -> 0 | J52: =InpActive!J$52 -> 0 | K52: =InpActive!K$52 -> 0.98281566 | L52: =InpActive!L$52 -> 0.498 | M52: =InpActive!M$52 -> 1.025 | N52: =InpActive!N$52 -> 1.697 | O52: =InpActive!O$52 -> 1.74791 | P52: =InpActive!P$52 -> 0
E53: =Index!E$43 -> CPI(H): Fin year average - inflate from base year 2017-18 average - CALC | F53: =Index!F$43 -> 0 | G53: =Index!G$43 -> % | H53: =Index!H$43 -> 0 | I53: =Index!I$43 -> 0 | J53: =Index!J$43 -> 1.038621462 | K53: =Index!K$43 -> 1.04693747 | L53: =Index!L$43 -> 1.085399008 | M53: =Index!M$43 -> 1.180633296 | N53: =Index!N$43 -> 1.246121862 | O53: =Index!O$43 -> 1.278826163 | P53: =Index!P$43 -> 1.304173996
E54: Abstraction charges - Outturn - WR - Real | G54: £m | J54: =J52 / J53 -> 0 | K54: =K52 / K53 -> 0.9387529706 | L54: =L52 / L53 -> 0.4588174451 | M54: 0.8681781239 | N54: 1.361825077 | O54: 1.366808132 | P54: 0
D56: Variance to forecast abstraction charges
E57: =E$54 -> Abstraction charges - Outturn - WR - Real | F57: =F$54 -> 0 | G57: £m | H57: 0 | I57: 0 | J57: 0 | K57: 0.9387529706 | L57: 0.4588174451 | M57: 0.8681781239 | N57: 1.361825077 | O57: 1.366808132 | P57: 0
E58: =E$50 -> Abstraction charges - Forecast Profiled - WR - Real | F58: =F$50 -> 0 | G58: £m | H58: 1.017599644 | I58: 0 | J58: 0 | K58: 0.2035199288 | L58: 0.2035199288 | M58: 0.2035199288 | N58: 0.2035199288 | O58: 0.2035199288 | P58: 0
E59: Variance between forecast and outturn abstraction charges - WR - Real | G59: £m | H59: =SUM(J59:P59) -> 3.976782105 | J59: =J57 - J58 -> 0 | K59: 0.7352330418 | L59: 0.2552975164 | M59: 0.6646581952 | N59: 1.158305148 | O59: 1.163288204 | P59: 0
D61: Variance to forecast abstraction charges – Time adjusted
E62: =E$59 -> Variance between forecast and outturn abstraction charges - WR - Real | F62: =F$59 -> 0 | G62: £m | H62: 3.976782105 | I62: 0 | J62: 0 | K62: 0.7352330418 | L62: 0.2552975164 | M62: 0.6646581952 | N62: 1.158305148 | O62: 1.163288204 | P62: 0
E63: ='Cost sharing calculations'!E$129 -> Time value of money factor - WR | F63: ='Cost sharing calculations'!F$129 -> 0 | G63: ='Cost sharing calculations'!G$129 -> Factor | H63: ='Cost sharing calculations'!H$129 -> 0 | I63: ='Cost sharing calculations'!I$129 -> 0 | J63: ='Cost sharing calculations'!J$129 -> 1 | K63: ='Cost sharing calculations'!K$129 -> 1.122016155 | L63: ='Cost sharing calculations'!L$129 -> 1.090182817 | M63: ='Cost sharing calculations'!M$129 -> 1.05925264 | N63: ='Cost sharing calculations'!N$129 -> 1.0292 | O63: ='Cost sharing calculations'!O$129 -> 1 | P63: ='Cost sharing calculations'!P$129 -> 1
E64: Variance on abstraction charges time value adjusted- WR - Real | G64: £m | H64: =SUM(J64:P64) -> 4.162721126 | J64: =J62 * J63 -> 0 | K64: 0.8249433509 | L64: 0.2783209656 | M64: 0.7040409479 | N64: 1.192127659 | O64: 1.163288204 | P64: 0
E65: Adjustment for abstraction charges - WR - Real | F65: =H$64 -> 4.162721126 | G65: £m
D67: Under / Overperformance abstraction charges
E68: =InpActive!E$274 -> Cost sharing rates Abstraction - Overperformance | F68: =InpActive!F$274 -> 0.25 | G68: =InpActive!G$274 -> %
E69: =E$65 -> Adjustment for abstraction charges - WR - Real | F69: =F$65 -> 4.162721126 | G69: £m
E70: Abstraction charges Outperformance Adjustment - WR - Real | F70: =IF( F69 < 0, $F$34 * (1 - F68), 0) -> 0 | G70: £m
E72: =InpActive!E$275 -> Cost sharing rates Abstraction - Underperformance | F72: =InpActive!F$275 -> 0.25 | G72: =InpActive!G$275 -> %
E73: =E$65 -> Adjustment for abstraction charges - WR - Real | F73: =F$65 -> 4.162721126 | G73: £m
E74: Abstraction charges Underperformance Adjustment - WR - Real | F74: =IF( F73 > 0, $F$38 * (1 - F72), 0) -> -0.02797765857 | G74: £m
E76: =E$70 -> Abstraction charges Outperformance Adjustment - WR - Real | F76: =F$70 -> 0 | G76: £m
E77: =E$74 -> Abstraction charges Underperformance Adjustment - WR - Real | F77: =F$74 -> -0.02797765857 | G77: £m
E78: Active adjustment for abstraction charges uncertainty mechanism - WR - Real | F78: =IF(F76 <> 0, F76, F77) -> -0.02797765857 | G78: £m
E80: =E43 -> Active adjustment for business rates uncertainty mechanism - WR - Real | F80: =F43 -> -0.02797765857 | G80: £m
E81: =E78 -> Active adjustment for abstraction charges uncertainty mechanism - WR - Real | F81: =F78 -> -0.02797765857 | G81: £m
E82: Active adjustment for abstraction charges & business rates uncertainty mechanism - WR - Real | F82: =SUM(F80:F81) -> -0.05595531715 | G82: £m
E84: =E82 -> Active adjustment for abstraction charges & business rates uncertainty mechanism - WR - Real | F84: =F82 -> -0.05595531715 | G84: £m
E85: =InpActive!E$54 -> Weighted average PAYG rate - WR | F85: =InpActive!F$54 -> 0.8149413966 | G85: =InpActive!G$54 -> %
E86: Revenue adjustment business rates and abstraction - WR - Real | F86: =F84 * $F$85 -> -0.04560030431 | G86: £m
E88: =E$82 -> Active adjustment for abstraction charges & business rates uncertainty mechanism - WR - Real | F88: =F$82 -> -0.05595531715 | G88: £m
E89: =InpActive!E$54 -> Weighted average PAYG rate - WR | F89: =InpActive!F$54 -> 0.8149413966 | G89: =InpActive!G$54 -> %
E90: RCV adjustment business rates and abstraction - WR - Real | F90: =F88 * (1 - $F$89) -> -0.01035501284 | G90: £m
A92: WATER NETWORK
C94: Uncertainty mechanism for business rates
D96: Profile total forecast business rates
E97: =InpActive!E$88 -> Business rates - Forecast - WN - Real | F97: =InpActive!F$88 -> 14.13927926 | G97: =InpActive!G$88 -> £m
E98: =InpActive!E$78 -> Business Rates forecast profile - WN | F98: =InpActive!F$78 -> 0 | G98: =InpActive!G$78 -> % | H98: =InpActive!H$78 -> 0 | I98: =InpActive!I$78 -> 0 | J98: =InpActive!J$78 -> 0 | K98: =InpActive!K$78 -> 0.2 | L98: =InpActive!L$78 -> 0.2 | M98: =InpActive!M$78 -> 0.2 | N98: =InpActive!N$78 -> 0.2 | O98: =InpActive!O$78 -> 0.2 | P98: =InpActive!P$78 -> 0
E99: Business rates - Forecast Profiled - WN - Real | G99: £m | H99: =SUM(J99:P99) -> 14.13927926 | J99: =J98 * $F97 -> 0 | K99: 2.827855852 | L99: 2.827855852 | M99: 2.827855852 | N99: 2.827855852 | O99: 2.827855852 | P99: 0
E101: =InpActive!E$91 -> Business rates - Actual - WN - Nominal | F101: =InpActive!F$91 -> 0 | G101: =InpActive!G$91 -> £m | H101: =InpActive!H$91 -> 0 | I101: =InpActive!I$91 -> 0 | J101: =InpActive!J$91 -> 0 | K101: =InpActive!K$91 -> 3.228500171 | L101: =InpActive!L$91 -> 1.785641 | M101: =InpActive!M$91 -> 3.40562711 | N101: =InpActive!N$91 -> 3.190237289 | O101: =InpActive!O$91 -> 3.285944407 | P101: =InpActive!P$91 -> 0
E102: =Index!E$43 -> CPI(H): Fin year average - inflate from base year 2017-18 average - CALC | F102: =Index!F$43 -> 0 | G102: =Index!G$43 -> % | H102: =Index!H$43 -> 0 | I102: =Index!I$43 -> 0 | J102: =Index!J$43 -> 1.038621462 | K102: =Index!K$43 -> 1.04693747 | L102: =Index!L$43 -> 1.085399008 | M102: =Index!M$43 -> 1.180633296 | N102: =Index!N$43 -> 1.246121862 | O102: =Index!O$43 -> 1.278826163 | P102: =Index!P$43 -> 1.304173996
E103: Business rates - Outturn - WN - Real | G103: £m | J103: =J101 / J102 -> 0 | K103: =K101 / K102 -> 3.083756445 | L103: =L101 / L102 -> 1.645147071 | M103: =M101 / M102 -> 2.884576541 | N103: =N101 / N102 -> 2.56013267 | O103: =O101 / O102 -> 2.569500454 | P103: =P101 / P102 -> 0
D105: Variance to forecast business rates
E106: =E$103 -> Business rates - Outturn - WN - Real | F106: =F$103 -> 0 | G106: £m | H106: 0 | I106: 0 | J106: 0 | K106: 3.083756445 | L106: 1.645147071 | M106: 2.884576541 | N106: 2.56013267 | O106: 2.569500454 | P106: 0
E107: =E$99 -> Business rates - Forecast Profiled - WN - Real | F107: 0 | G107: £m | H107: 14.13927926 | I107: 0 | J107: 0 | K107: 2.827855852 | L107: 2.827855852 | M107: 2.827855852 | N107: 2.827855852 | O107: 2.827855852 | P107: 0
E108: Variance between forecast and outturn business rates - WN - Real | G108: £m | H108: =SUM(J108:P108) -> -1.39616608 | J108: =J106 - J107 -> 0 | K108: 0.255900593 | L108: -1.182708781 | M108: 0.05672068904 | N108: -0.2677231822 | O108: -0.2583553986 | P108: 0
D110: Variance to forecast business rates – Time adjusted
E111: =E$108 -> Variance between forecast and outturn business rates - WN - Real | F111: 0 | G111: £m | H111: -1.39616608 | I111: 0 | J111: 0 | K111: 0.255900593 | L111: -1.182708781 | M111: 0.05672068904 | N111: -0.2677231822 | O111: -0.2583553986 | P111: 0
E112: ='Cost sharing calculations'!E$287 -> Time value of money factor - WN | F112: ='Cost sharing calculations'!F$287 -> 0 | G112: ='Cost sharing calculations'!G$287 -> Factor | H112: ='Cost sharing calculations'!H$287 -> 0 | I112: ='Cost sharing calculations'!I$287 -> 0 | J112: ='Cost sharing calculations'!J$287 -> 1 | K112: ='Cost sharing calculations'!K$287 -> 1.122016155 | L112: ='Cost sharing calculations'!L$287 -> 1.090182817 | M112: ='Cost sharing calculations'!M$287 -> 1.05925264 | N112: ='Cost sharing calculations'!N$287 -> 1.0292 | O112: ='Cost sharing calculations'!O$287 -> 1 | P112: ='Cost sharing calculations'!P$287 -> 1
E113: Variance on business rates time value adjusted- WN - Real | G113: £m | H113: =SUM(J113:P113) -> -1.476058749 | J113: =J111 * J112 -> 0 | K113: 0.2871245995 | L113: -1.289368791 | M113: 0.06008153961 | N113: -0.2755406991 | O113: -0.2583553986 | P113: 0
E114: Adjustment for busines rates for cost sharing - WN - Real | F114: =H$113 -> -1.476058749 | G114: £m
D116: Under / Overperformance business rates
E117: =InpActive!E$272 -> Cost sharing rates Business rates - Overperformance | F117: =InpActive!F$272 -> 0.25 | G117: =InpActive!G$272 -> %
E118: =E$114 -> Adjustment for busines rates for cost sharing - WN - Real | F118: =F$114 -> -1.476058749 | G118: =G$114 -> £m
E119: Business Rates Outperformance Adjustment - WN - Real | F119: =IF( F118 < 0, $F$118 * (1 - F117), 0) -> -1.107044062 | G119: £m
E121: =InpActive!E$273 -> Cost sharing rates Business rates - Underperformance | F121: =InpActive!F$273 -> 0.25 | G121: =InpActive!G$273 -> %
E122: =E$114 -> Adjustment for busines rates for cost sharing - WN - Real | F122: =F$114 -> -1.476058749 | G122: =G$114 -> £m
E123: Business Rates Underperformance Adjustment - WN - Real | F123: =IF( F122 > 0, $F$122 * (1 -F121), 0) -> 0 | G123: £m
E125: =E$119 -> Business Rates Outperformance Adjustment - WN - Real | F125: =F$119 -> -1.107044062 | G125: =G$119 -> £m
E126: =E$123 -> Business Rates Underperformance Adjustment - WN - Real | F126: =F$123 -> 0 | G126: =G$123 -> £m
E127: Active adjustment for business rates uncertainty mechanism - WN - Real | F127: =IF(F125 <> 0, F125, F126) -> -1.107044062 | G127: £m
C129: Uncertainty mechanism for Abstraction charges
D131: Profile total forecast and abstraction charges
E132: =InpActive!E$89 -> Abstraction charges - Forecast - WN - Real | F132: =InpActive!F$89 -> 0 | G132: =InpActive!G$89 -> £m
E133: =InpActive!E$79 -> Abstraction Charges forecast profile - WN | F133: =InpActive!F$79 -> 0 | G133: =InpActive!G$79 -> % | H133: =InpActive!H$79 -> 0 | I133: =InpActive!I$79 -> 0 | J133: =InpActive!J$79 -> 0 | K133: =InpActive!K$79 -> 0.2 | L133: =InpActive!L$79 -> 0.2 | M133: =InpActive!M$79 -> 0.2 | N133: =InpActive!N$79 -> 0.2 | O133: =InpActive!O$79 -> 0.2 | P133: =InpActive!P$79 -> 0
E134: Abstraction charges - Forecast Profiled - WN - Real | G134: £m | H134: =SUM(J134:P134) -> 0 | J134: =J133 * $F132 -> 0 | K134: 0 | L134: 0 | M134: 0 | N134: 0 | O134: 0 | P134: 0
E136: =InpActive!E92 -> Abstraction charges - Actual - WN - Nominal | F136: =InpActive!F92 -> 0 | G136: =InpActive!G92 -> £m | H136: =InpActive!H92 -> 0 | I136: =InpActive!I92 -> 0 | J136: =InpActive!J92 -> 0 | K136: =InpActive!K92 -> 0 | L136: =InpActive!L92 -> 0 | M136: =InpActive!M92 -> 0 | N136: =InpActive!N92 -> 0 | O136: =InpActive!O92 -> 0 | P136: =InpActive!P92 -> 0
E137: =Index!E$43 -> CPI(H): Fin year average - inflate from base year 2017-18 average - CALC | F137: =Index!F$43 -> 0 | G137: =Index!G$43 -> % | H137: =Index!H$43 -> 0 | I137: =Index!I$43 -> 0 | J137: =Index!J$43 -> 1.038621462 | K137: =Index!K$43 -> 1.04693747 | L137: =Index!L$43 -> 1.085399008 | M137: =Index!M$43 -> 1.180633296 | N137: =Index!N$43 -> 1.246121862 | O137: =Index!O$43 -> 1.278826163 | P137: =Index!P$43 -> 1.304173996
E138: Abstraction charges - Outturn - WN - Real | G138: £m | J138: =J136 / J137 -> 0 | K138: =K136 / K137 -> 0 | L138: =L136 / L137 -> 0 | M138: 0 | N138: 0 | O138: 0 | P138: 0
D140: Variance to forecast abstraction charges
E141: =E$138 -> Abstraction charges - Outturn - WN - Real | F141: =F$138 -> 0 | G141: £m | H141: 0 | I141: 0 | J141: 0 | K141: 0 | L141: 0 | M141: 0 | N141: 0 | O141: 0 | P141: 0
E142: =E$134 -> Abstraction charges - Forecast Profiled - WN - Real | F142: =F$134 -> 0 | G142: £m | H142: 0 | I142: 0 | J142: 0 | K142: 0 | L142: 0 | M142: 0 | N142: 0 | O142: 0 | P142: 0
E143: Variance between forecast and outturn abstraction charges - WR - Real | G143: £m | H143: =SUM(J143:P143) -> 0 | J143: =J141 - J142 -> 0 | K143: 0 | L143: 0 | M143: 0 | N143: 0 | O143: 0 | P143: 0
D145: Variance to forecast abstraction charges – Time adjusted
E146: =E$143 -> Variance between forecast and outturn abstraction charges - WR - Real | F146: =F$143 -> 0 | G146: £m | H146: 0 | I146: 0 | J146: 0 | K146: 0 | L146: 0 | M146: 0 | N146: 0 | O146: 0 | P146: 0
E147: ='Cost sharing calculations'!E$287 -> Time value of money factor - WN | F147: ='Cost sharing calculations'!F$287 -> 0 | G147: ='Cost sharing calculations'!G$287 -> Factor | H147: ='Cost sharing calculations'!H$287 -> 0 | I147: ='Cost sharing calculations'!I$287 -> 0 | J147: ='Cost sharing calculations'!J$287 -> 1 | K147: ='Cost sharing calculations'!K$287 -> 1.122016155 | L147: ='Cost sharing calculations'!L$287 -> 1.090182817 | M147: ='Cost sharing calculations'!M$287 -> 1.05925264 | N147: ='Cost sharing calculations'!N$287 -> 1.0292 | O147: ='Cost sharing calculations'!O$287 -> 1 | P147: ='Cost sharing calculations'!P$287 -> 1
E148: Variance on abstraction charges time value adjusted- WN - Real | G148: £m | H148: =SUM(J148:P148) -> 0 | J148: =J146 * J147 -> 0 | K148: 0 | L148: 0 | M148: 0 | N148: 0 | O148: 0 | P148: 0
E149: Adjustment for abstraction charges - WN - Real | F149: =H$148 -> 0 | G149: £m
D151: Under / Overperformance abstraction charges
E152: =InpActive!E$274 -> Cost sharing rates Abstraction - Overperformance | F152: =InpActive!F$274 -> 0.25 | G152: =InpActive!G$274 -> %
E153: =E$149 -> Adjustment for abstraction charges - WN - Real | F153: =F$149 -> 0 | G153: £m
E154: Abstraction charges Outperformance Adjustment - WN - Real | F154: =IF( F153 < 0, $F$153 * (1 - F152), 0) -> 0 | G154: £m
E156: =InpActive!E$275 -> Cost sharing rates Abstraction - Underperformance | F156: =InpActive!F$275 -> 0.25 | G156: =InpActive!G$275 -> %
E157: =E$149 -> Adjustment for abstraction charges - WN - Real | F157: =F$149 -> 0 | G157: £m
E158: Abstraction charges Underperformance Adjustment - WN - Real | F158: =IF( F157 > 0, $F$157 * (1 - F156), 0) -> 0 | G158: £m
E160: =E$154 -> Abstraction charges Outperformance Adjustment - WN - Real | F160: =F$154 -> 0 | G160: £m
E161: =E$158 -> Abstraction charges Underperformance Adjustment - WN - Real | F161: =F$158 -> 0 | G161: £m
E162: Active adjustment for abstraction charges uncertainty mechanism - WN - Real | F162: =IF(F160 <> 0, F160, F161) -> 0 | G162: £m
E164: =E127 -> Active adjustment for business rates uncertainty mechanism - WN - Real | F164: =F127 -> -1.107044062 | G164: £m
E165: =E162 -> Active adjustment for abstraction charges uncertainty mechanism - WN - Real | F165: =F162 -> 0 | G165: £m
E166: Active adjustment for abstraction charges & business rates uncertainty mechanism - WR - Real | F166: =SUM(F164:F165) -> -1.107044062 | G166: £m
E168: =E$166 -> Active adjustment for abstraction charges & business rates uncertainty mechanism - WR - Real | F168: =F$166 -> -1.107044062 | G168: £m
E169: =InpActive!E$94 -> Weighted average PAYG rate - WN | F169: =InpActive!F$94 -> 0.4923980313 | G169: =InpActive!G$94 -> %
E170: Revenue adjustment business rates and abstraction - WN - Real | F170: =F168 * $F$169 -> -0.5451063167 | G170: £m
E172: =E$166 -> Active adjustment for abstraction charges & business rates uncertainty mechanism - WR - Real | F172: =F$166 -> -1.107044062 | G172: £m
E173: =InpActive!E$94 -> Weighted average PAYG rate - WN | F173: =InpActive!F$94 -> 0.4923980313 | G173: =InpActive!G$94 -> %
E174: RCV adjustment business rates and abstraction - WN - Real | F174: =F172 * (1 - $F$173) -> -0.5619377453 | G174: £m
A176: WASTEWATER NETWORK
C178: Uncertainty mechanism for business rates
D180: Profile total forecast business rates
E181: =InpActive!E$128 -> Business rates - Forecast - WWN - Real | F181: =InpActive!F$128 -> 0 | G181: =InpActive!G$128 -> £m
E182: =InpActive!E$119 -> Business Rates forecast profile - WWN | F182: =InpActive!F$119 -> 0 | G182: =InpActive!G$119 -> % | H182: =InpActive!H$119 -> 0 | I182: =InpActive!I$119 -> 0 | J182: =InpActive!J$119 -> 0 | K182: =InpActive!K$119 -> 0 | L182: =InpActive!L$119 -> 0 | M182: =InpActive!M$119 -> 0 | N182: =InpActive!N$119 -> 0 | O182: =InpActive!O$119 -> 0 | P182: =InpActive!P$119 -> 0
E183: Business rates - Forecast Profiled - WWN - Real | G183: £m | H183: =SUM(J183:P183) -> 0 | J183: =J182 * $F181 -> 0 | K183: 0 | L183: 0 | M183: 0 | N183: 0 | O183: 0 | P183: 0
E185: =InpActive!E$130 -> Business rates - Actual - WWN - Nominal | F185: =InpActive!F$130 -> 0 | G185: =InpActive!G$130 -> £m | H185: =InpActive!H$130 -> 0 | I185: =InpActive!I$130 -> 0 | J185: =InpActive!J$130 -> 0 | K185: =InpActive!K$130 -> 0 | L185: =InpActive!L$130 -> 0 | M185: =InpActive!M$130 -> 0 | N185: =InpActive!N$130 -> 0 | O185: =InpActive!O$130 -> 0 | P185: =InpActive!P$130 -> 0
E186: =Index!E$43 -> CPI(H): Fin year average - inflate from base year 2017-18 average - CALC | F186: =Index!F$43 -> 0 | G186: =Index!G$43 -> % | H186: =Index!H$43 -> 0 | I186: =Index!I$43 -> 0 | J186: =Index!J$43 -> 1.038621462 | K186: =Index!K$43 -> 1.04693747 | L186: =Index!L$43 -> 1.085399008 | M186: =Index!M$43 -> 1.180633296 | N186: =Index!N$43 -> 1.246121862 | O186: =Index!O$43 -> 1.278826163 | P186: =Index!P$43 -> 1.304173996
E187: Business rates - Outturn - WWN - Real | G187: £m | J187: =J185 / J186 -> 0 | K187: =K185 / K186 -> 0 | L187: =L185 / L186 -> 0 | M187: =M185 / M186 -> 0 | N187: =N185 / N186 -> 0 | O187: =O185 / O186 -> 0 | P187: =P185 / P186 -> 0
D189: Variance to forecast business rates
E190: =E$187 -> Business rates - Outturn - WWN - Real | F190: =F$187 -> 0 | G190: £m | H190: 0 | I190: 0 | J190: 0 | K190: 0 | L190: 0 | M190: 0 | N190: 0 | O190: 0 | P190: 0
E191: =E$183 -> Business rates - Forecast Profiled - WWN - Real | F191: =F$183 -> 0 | G191: £m | H191: 0 | I191: 0 | J191: 0 | K191: 0 | L191: 0 | M191: 0 | N191: 0 | O191: 0 | P191: 0
E192: Variance between forecast and outturn business rates - WWN - Real | G192: £m | H192: =SUM(J192:P192) -> 0 | J192: =J190 - J191 -> 0 | K192: 0 | L192: 0 | M192: 0 | N192: 0 | O192: 0 | P192: 0
D194: Variance to forecast business rates - Time adjusted
E195: =E$192 -> Variance between forecast and outturn business rates - WWN - Real | F195: 0 | G195: £m | H195: 0 | I195: 0 | J195: 0 | K195: 0 | L195: 0 | M195: 0 | N195: 0 | O195: 0 | P195: 0
E196: ='Cost sharing calculations'!E$447 -> Time value of money factor - WWN | F196: ='Cost sharing calculations'!F$447 -> 0 | G196: ='Cost sharing calculations'!G$447 -> Factor | H196: ='Cost sharing calculations'!H$447 -> 0 | I196: ='Cost sharing calculations'!I$447 -> 0 | J196: ='Cost sharing calculations'!J$447 -> 1 | K196: ='Cost sharing calculations'!K$447 -> 1 | L196: ='Cost sharing calculations'!L$447 -> 1 | M196: ='Cost sharing calculations'!M$447 -> 1 | N196: ='Cost sharing calculations'!N$447 -> 1 | O196: ='Cost sharing calculations'!O$447 -> 1 | P196: ='Cost sharing calculations'!P$447 -> 1
E197: Variance on business rates time value adjusted- WWN - Real | G197: £m | H197: =SUM(J197:P197) -> 0 | J197: =J195 * J196 -> 0 | K197: 0 | L197: 0 | M197: 0 | N197: 0 | O197: 0 | P197: 0
E198: Adjustment for busines rates for cost sharing - WWN - Real | F198: =H$197 -> 0 | G198: £m
D200: Under / Overperformance business rates
E201: =InpActive!E$272 -> Cost sharing rates Business rates - Overperformance | F201: =InpActive!F$272 -> 0.25 | G201: =InpActive!G$272 -> %
E202: =E$198 -> Adjustment for busines rates for cost sharing - WWN - Real | F202: =F$198 -> 0 | G202: =G$198 -> £m
E203: Business Rates Outperformance Adjustment - WWN - Real | F203: =IF( F202 < 0, $F$202 * (1 - F201), 0) -> 0 | G203: £m
E205: =InpActive!E$273 -> Cost sharing rates Business rates - Underperformance | F205: =InpActive!F$273 -> 0.25 | G205: =InpActive!G$273 -> %
E206: =E$198 -> Adjustment for busines rates for cost sharing - WWN - Real | F206: =F$198 -> 0 | G206: =G$198 -> £m
E207: Business Rates Underperformance Adjustment - WWN - Real | F207: =IF( F206 > 0, $F$206 * (1 - F205), 0) -> 0 | G207: £m
E209: =E$203 -> Business Rates Outperformance Adjustment - WWN - Real | F209: =F$203 -> 0 | G209: =G$203 -> £m
E210: =E$207 -> Business Rates Underperformance Adjustment - WWN - Real | F210: =F$207 -> 0 | G210: =G$207 -> £m
E211: Active adjustment for business rates uncertainty mechanism - WWN - Real | F211: =IF(F209 <> 0, F209, F210) -> 0 | G211: £m
E213: =E$211 -> Active adjustment for business rates uncertainty mechanism - WWN - Real | F213: =F$211 -> 0 | G213: £m
E214: =InpActive!E$132 -> Weighted average PAYG rate - WWN | F214: =InpActive!F$132 -> 0 | G214: =InpActive!G$132 -> %
E215: Revenue adjustment business rates - WWN - Real | F215: =F213 * $F$214 -> 0 | G215: £m
E217: =E$211 -> Active adjustment for business rates uncertainty mechanism - WWN - Real | F217: =F$211 -> 0 | G217: £m
E218: =InpActive!E$132 -> Weighted average PAYG rate - WWN | F218: =InpActive!F$132 -> 0 | G218: =InpActive!G$132 -> %
E219: RCV adjustment business rates - WWN - Real | F219: =F217 * (1 - $F$218) -> 0 | G219: £m
A221: BIORESOURCES
C223: Uncertainty mechanism for business rates
D225: Profile total forecast business rates
E226: =InpActive!E$153 -> Business rates - Forecast - BIO - Real | F226: =InpActive!F$153 -> 0 | G226: =InpActive!G$153 -> £m
E227: =InpActive!E$157 -> Business Rates forecast profile - BIO | F227: =InpActive!F$157 -> 0 | G227: =InpActive!G$157 -> % | H227: =InpActive!H$157 -> 0 | I227: =InpActive!I$157 -> 0 | J227: =InpActive!J$157 -> 0 | K227: =InpActive!K$157 -> 0.2 | L227: =InpActive!L$157 -> 0.2 | M227: =InpActive!M$157 -> 0.2 | N227: =InpActive!N$157 -> 0.2 | O227: =InpActive!O$157 -> 0.2 | P227: =InpActive!P$157 -> 0
E228: Business rates - Forecast Profiled - BIO - Real | G228: £m | H228: =SUM(J228:P228) -> 0 | J228: =J227 * $F226 -> 0 | K228: 0 | L228: 0 | M228: 0 | N228: 0 | O228: 0 | P228: 0
E230: =InpActive!E$155 -> Business rates - Actual - BIO - Nominal | F230: =InpActive!F$155 -> 0 | G230: =InpActive!G$155 -> £m | H230: =InpActive!H$155 -> 0 | I230: =InpActive!I$155 -> 0 | J230: =InpActive!J$155 -> 0 | K230: =InpActive!K$155 -> 0 | L230: =InpActive!L$155 -> 0 | M230: =InpActive!M$155 -> 0 | N230: =InpActive!N$155 -> 0 | O230: =InpActive!O$155 -> 0 | P230: =InpActive!P$155 -> 0
E231: =Index!E$43 -> CPI(H): Fin year average - inflate from base year 2017-18 average - CALC | F231: =Index!F$43 -> 0 | G231: =Index!G$43 -> % | H231: =Index!H$43 -> 0 | I231: =Index!I$43 -> 0 | J231: =Index!J$43 -> 1.038621462 | K231: =Index!K$43 -> 1.04693747 | L231: =Index!L$43 -> 1.085399008 | M231: =Index!M$43 -> 1.180633296 | N231: =Index!N$43 -> 1.246121862 | O231: =Index!O$43 -> 1.278826163 | P231: =Index!P$43 -> 1.304173996
E232: Business rates - Outturn - BIO - Real | G232: £m | J232: =J230 / J231 -> 0 | K232: =K230 / K231 -> 0 | L232: =L230 / L231 -> 0 | M232: =M230 / M231 -> 0 | N232: =N230 / N231 -> 0 | O232: =O230 / O231 -> 0 | P232: =P230 / P231 -> 0
D234: Variance to forecast business rates
E235: =E$232 -> Business rates - Outturn - BIO - Real | F235: =F$232 -> 0 | G235: £m | H235: 0 | I235: 0 | J235: 0 | K235: 0 | L235: 0 | M235: 0 | N235: 0 | O235: 0 | P235: 0
E236: =E$228 -> Business rates - Forecast Profiled - BIO - Real | F236: =F$228 -> 0 | G236: £m | H236: 0 | I236: 0 | J236: 0 | K236: 0 | L236: 0 | M236: 0 | N236: 0 | O236: 0 | P236: 0
E237: Variance between forecast and outturn business rates - BIO - Real | G237: £m | H237: =SUM(J237:P237) -> 0 | J237: =J235 - J236 -> 0 | K237: 0 | L237: 0 | M237: 0 | N237: 0 | O237: 0 | P237: 0
D239: Variance to forecast business rates - Time adjusted
E240: =E$237 -> Variance between forecast and outturn business rates - BIO - Real | F240: 0 | G240: £m | H240: 0 | I240: 0 | J240: 0 | K240: 0 | L240: 0 | M240: 0 | N240: 0 | O240: 0 | P240: 0
E241: =Bioresources!E$49 -> Time value of money factor - BIO | F241: =Bioresources!F$49 -> 0 | G241: =Bioresources!G$49 -> Factor | H241: =Bioresources!H$49 -> 0 | I241: =Bioresources!I$49 -> 0 | J241: =Bioresources!J$49 -> 1 | K241: =Bioresources!K$49 -> 1 | L241: =Bioresources!L$49 -> 1 | M241: =Bioresources!M$49 -> 1 | N241: =Bioresources!N$49 -> 1 | O241: =Bioresources!O$49 -> 1 | P241: =Bioresources!P$49 -> 1
E242: Variance on business rates time value adjusted- BIO - Real | G242: £m | H242: =SUM(J242:P242) -> 0 | J242: =J240 * J241 -> 0 | K242: 0 | L242: 0 | M242: 0 | N242: 0 | O242: 0 | P242: 0
E243: Adjustment for busines rates for cost sharing - BIO - Real | F243: =H$242 -> 0 | G243: £m
D245: Under / Overperformance business rates
E246: =InpActive!E$272 -> Cost sharing rates Business rates - Overperformance | F246: =InpActive!F$272 -> 0.25 | G246: =InpActive!G$272 -> %
E247: =E$243 -> Adjustment for busines rates for cost sharing - BIO - Real | F247: =F$243 -> 0 | G247: =G$243 -> £m
E248: Business Rates Outperformance Adjustment - BIO - Real | F248: =IF( F247 < 0, $F$247 * (1 - F246), 0) -> 0 | G248: £m
E250: =InpActive!E$273 -> Cost sharing rates Business rates - Underperformance | F250: =InpActive!F$273 -> 0.25 | G250: =InpActive!G$273 -> %
E251: =E$243 -> Adjustment for busines rates for cost sharing - BIO - Real | F251: =F$243 -> 0 | G251: =G$243 -> £m
E252: Business Rates Underperformance Adjustment - BIO - Real | F252: =IF( F251 > 0, $F$251 * (1 - F250), 0) -> 0 | G252: £m
E254: =E$248 -> Business Rates Outperformance Adjustment - BIO - Real | F254: =F$248 -> 0 | G254: £m
E255: =E$252 -> Business Rates Underperformance Adjustment - BIO - Real | F255: =F$252 -> 0 | G255: £m
E256: Active adjustment for business rates uncertainty mechanism - BIO - Real | F256: =IF(F254 <> 0, F254, F255) -> 0 | G256: £m
E258: =E$256 -> Active adjustment for business rates uncertainty mechanism - BIO - Real | F258: =F$256 -> 0 | G258: £m
E259: =InpActive!E$159 -> Weighted average PAYG rate - BIO | F259: =InpActive!F$159 -> 0 | G259: =InpActive!G$159 -> %
E260: Revenue adjustment business rates - BIO - Real | F260: =F258 * $F$259 -> 0 | G260: £m
E262: =E$256 -> Active adjustment for business rates uncertainty mechanism - BIO - Real | F262: =F$256 -> 0 | G262: =G$256 -> £m
... 3 more rows

Sheet Bioresources (hidden)
A1: =RIGHT(CELL("filename", $A$1), LEN(CELL("filename", $A$1)) - SEARCH("]", CELL("filename", $A$1))) -> 
E2: =Time!E$22 -> Model Period BEG | J2: =Time!J$22 -> 2019-04-01 | K2: =Time!K$22 -> 2020-04-01 | L2: =Time!L$22 -> 2021-04-01 | M2: =Time!M$22 -> 2022-04-01 | N2: =Time!N$22 -> 2023-04-01 | O2: =Time!O$22 -> 2024-04-01 | P2: =Time!P$22 -> 2025-04-01
E3: =Time!E$23 -> Model Period END | F3: =Check!F$8 -> 0 | G3: Error chks | J3: =Time!J$23 -> 2020-03-31 | K3: =Time!K$23 -> 2021-03-31 | L3: =Time!L$23 -> 2022-03-31 | M3: =Time!M$23 -> 2023-03-31 | N3: =Time!N$23 -> 2024-03-31 | O3: =Time!O$23 -> 2025-03-31 | P3: =Time!P$23 -> 2026-03-31
E4: =Time!E$59 -> Pre Forecast vs Forecast | J4: =Time!J$59 -> Pre Fcst | K4: =Time!K$59 -> Forecast | L4: =Time!L$59 -> Forecast | M4: =Time!M$59 -> Forecast | N4: =Time!N$59 -> Forecast | O4: =Time!O$59 -> Forecast | P4: =Time!P$59 -> Post-Fcst
E5: =Time!E$101 -> Financial Year Ending | J5: =Time!J$101 -> 2020 | K5: =Time!K$101 -> 2021 | L5: =Time!L$101 -> 2022 | M5: =Time!M$101 -> 2023 | N5: =Time!N$101 -> 2024 | O5: =Time!O$101 -> 2025 | P5: =Time!P$101 -> 2026
E6: =Time!E$11 -> Model column counter | F6: Constant | G6: Unit | H6: Total | J6: =Time!J$11 -> 1 | K6: =Time!K$11 -> 2 | L6: =Time!L$11 -> 3 | M6: =Time!M$11 -> 4 | N6: =Time!N$11 -> 5 | O6: =Time!O$11 -> 6 | P6: =Time!P$11 -> 7
A8: BIORESOURCES
C10: Adjustment For Wage Growth
D12: Totex for wage adjustment
E13: =InpActive!E$147 -> Base Costs - BIO - Real | F13: =InpActive!F$147 -> 0 | G13: =InpActive!G$147 -> £m
E14: =InpActive!E$148 -> WINEP / NEP ~ In-the-Round - BIO - Real | F14: =InpActive!F$148 -> 0 | G14: =InpActive!G$148 -> £m
E15: Totex available for wage indexation adjustment - BIO - Real | F15: =SUM(F13:F14) -> 0 | G15: £m
D17: Profile for totex for wage adjustment
E18: =InpActive!E$150 -> Opex Split Profile - Base costs - BIO | F18: =InpActive!F$150 -> 0 | G18: =InpActive!G$150 -> % | H18: =InpActive!H$150 -> 0 | I18: =InpActive!I$150 -> 0 | J18: =InpActive!J$150 -> 0 | K18: =InpActive!K$150 -> 0 | L18: =InpActive!L$150 -> 0 | M18: =InpActive!M$150 -> 0 | N18: =InpActive!N$150 -> 0 | O18: =InpActive!O$150 -> 0 | P18: =InpActive!P$150 -> 0
E19: =InpActive!E$151 -> Capex Split Profile - Base costs - BIO | F19: =InpActive!F$151 -> 0 | G19: =InpActive!G$151 -> % | H19: =InpActive!H$151 -> 0 | I19: =InpActive!I$151 -> 0 | J19: =InpActive!J$151 -> 0 | K19: =InpActive!K$151 -> 0 | L19: =InpActive!L$151 -> 0 | M19: =InpActive!M$151 -> 0 | N19: =InpActive!N$151 -> 0 | O19: =InpActive!O$151 -> 0 | P19: =InpActive!P$151 -> 0
E20: Totex profile - BIO | G20: % | H20: =SUM(J20:P20) -> 0 | J20: =SUM(J18:J19) -> 0 | K20: 0 | L20: 0 | M20: 0 | N20: 0 | O20: 0 | P20: 0
E21: Totex profile - 5 year percentage - BIO | F21: =H$20 -> 0 | G21: %
E23: =E$21 -> Totex profile - 5 year percentage - BIO | F23: =F$21 -> 0 | G23: =G$21 -> %
E24: WWN Totex profile 100% check | F24: =IF(OR($F$23 = 1, F23 = 0), 0, 1) -> 0 | G24: Check
E26: =E$15 -> Totex available for wage indexation adjustment - BIO - Real | F26: =F$15 -> 0 | G26: =G$15 -> £m
E27: =Time!E$54 -> Forecast Period Flag | F27: =Time!F$54 -> 0 | G27: =Time!G$54 -> flag | H27: =Time!H$54 -> 5 | I27: =Time!I$54 -> 0 | J27: =Time!J$54 -> 0 | K27: =Time!K$54 -> 1 | L27: =Time!L$54 -> 1 | M27: =Time!M$54 -> 1 | N27: =Time!N$54 -> 1 | O27: =Time!O$54 -> 1 | P27: =Time!P$54 -> 0
E28: =E$20 -> Totex profile - BIO | F28: 0 | G28: % | H28: 0 | I28: 0 | J28: 0 | K28: 0 | L28: 0 | M28: 0 | N28: 0 | O28: 0 | P28: 0
E29: Profiled Totex available for wage indexation adjustment - BIO - Real | G29: £m | H29: =SUM(J29:P29) -> 0 | J29: =IF(J27 = 1, J28 * $F26, 0) -> 0 | K29: 0 | L29: 0 | M29: 0 | N29: 0 | O29: 0 | P29: 0
D31: Totex applicable for wage adjustment by year
E32: =InpActive!E$251 -> Percentage totex linked to wage growth - BIO | F32: =InpActive!F$251 -> 0.386 | G32: =InpActive!G$251 -> %
E33: =E29 -> Profiled Totex available for wage indexation adjustment - BIO - Real | F33: 0 | G33: £m | H33: 0 | I33: 0 | J33: 0 | K33: 0 | L33: 0 | M33: 0 | N33: 0 | O33: 0 | P33: 0
E34: Profiled Net totex available for wage adj - BIO - Real | G34: £m | H34: =SUM(J34:P34) -> 0 | J34: =J33 * $F32 -> 0 | K34: 0 | L34: 0 | M34: 0 | N34: 0 | O34: 0 | P34: 0
D36: Adjustment factor for wage linked totex
E37: =Time!E$54 -> Forecast Period Flag | F37: =Time!F$54 -> 0 | G37: =Time!G$54 -> flag | H37: =Time!H$54 -> 5 | I37: =Time!I$54 -> 0 | J37: =Time!J$54 -> 0 | K37: =Time!K$54 -> 1 | L37: =Time!L$54 -> 1 | M37: =Time!M$54 -> 1 | N37: =Time!N$54 -> 1 | O37: =Time!O$54 -> 1 | P37: =Time!P$54 -> 0
E38: =E$34 -> Profiled Net totex available for wage adj - BIO - Real | F38: 0 | G38: £m | H38: 0 | I38: 0 | J38: 0 | K38: 0 | L38: 0 | M38: 0 | N38: 0 | O38: 0 | P38: 0
E39: ='Cost sharing calculations'!E$26 -> Real adjustment factor for wages | F39: ='Cost sharing calculations'!F$26 -> 0 | G39: ='Cost sharing calculations'!G$26 -> % | H39: ='Cost sharing calculations'!H$26 -> 0 | I39: ='Cost sharing calculations'!I$26 -> 0 | J39: ='Cost sharing calculations'!J$26 -> 0 | K39: ='Cost sharing calculations'!K$26 -> 1.001717747 | L39: ='Cost sharing calculations'!L$26 -> 0.9741398288 | M39: ='Cost sharing calculations'!M$26 -> 0.9213844781 | N39: ='Cost sharing calculations'!N$26 -> 0.9005384254 | O39: ='Cost sharing calculations'!O$26 -> 0.9052282442 | P39: ='Cost sharing calculations'!P$26 -> 0
E40: Profiled adjustment wage related totex - BIO - Real | G40: £m | H40: =SUM(J40:P40) -> 0 | J40: =IF(J37 = 1, J38 * J39, 0) -> 0 | K40: 0 | L40: 0 | M40: 0 | N40: 0 | O40: 0 | P40: 0
D42: Variance to forecast wage linked totex
E43: =E$40 -> Profiled adjustment wage related totex - BIO - Real | F43: 0 | G43: £m | H43: 0 | I43: 0 | J43: 0 | K43: 0 | L43: 0 | M43: 0 | N43: 0 | O43: 0 | P43: 0
E44: =E$34 -> Profiled Net totex available for wage adj - BIO - Real | F44: 0 | G44: £m | H44: 0 | I44: 0 | J44: 0 | K44: 0 | L44: 0 | M44: 0 | N44: 0 | O44: 0 | P44: 0
E45: Variance to forecast totex for wage adjustment- BIO | G45: £m | H45: =SUM(J45:P45) -> 0 | J45: =J43 - J44 -> 0 | K45: 0 | L45: 0 | M45: 0 | N45: 0 | O45: 0 | P45: 0
E47: =InpActive!E$280 -> Financing cost index | F47: =InpActive!F$280 -> 0 | G47: =InpActive!G$280 -> Index | H47: =InpActive!H$280 -> 0 | I47: =InpActive!I$280 -> 0 | J47: =InpActive!J$280 -> 0 | K47: =InpActive!K$280 -> 4 | L47: =InpActive!L$280 -> 3 | M47: =InpActive!M$280 -> 2 | N47: =InpActive!N$280 -> 1 | O47: =InpActive!O$280 -> 0 | P47: =InpActive!P$280 -> 0
E48: =InpActive!E$285 -> Real WACC CPIH Deflated - BIO | F48: =InpActive!F$285 -> 0 | G48: =InpActive!G$285 -> %
E49: Time value of money factor - BIO | G49: Factor | J49: =(1+$F48) ^ J47 -> 1 | K49: 1 | L49: 1 | M49: 1 | N49: 1 | O49: 1 | P49: 1
D51: Wage totex overfunded/unfunded at PR19
E52: =E$45 -> Variance to forecast totex for wage adjustment- BIO | F52: 0 | G52: £m | H52: 0 | I52: 0 | J52: 0 | K52: 0 | L52: 0 | M52: 0 | N52: 0 | O52: 0 | P52: 0
E53: =E49 -> Time value of money factor - BIO | F53: 0 | G53: Factor | H53: 0 | I53: 0 | J53: 1 | K53: 1 | L53: 1 | M53: 1 | N53: 1 | O53: 1 | P53: 1
E54: Variance to forecast totex for wage adjustment - NPV adjusted - BIO | G54: £m | H54: =SUM(J54:P54) -> 0 | J54: =J52*J53 -> 0 | K54: 0 | L54: 0 | M54: 0 | N54: 0 | O54: 0 | P54: 0
E55: Total adjustment for wage related totex - BIO - Real | F55: =H54 -> 0 | G55: £m
C57: CMA exclusions
E59: =InpActive!E$163 -> Allowance for CMA excluded items - BIO - real | F59: =InpActive!F$163 -> 0 | G59: =InpActive!G$163 -> £m | H59: =InpActive!H$163 -> 0 | I59: =InpActive!I$163 -> 0 | J59: =InpActive!J$163 -> 0 | K59: =InpActive!K$163 -> 0 | L59: =InpActive!L$163 -> 0 | M59: =InpActive!M$163 -> 0 | N59: =InpActive!N$163 -> 0 | O59: =InpActive!O$163 -> 0 | P59: =InpActive!P$163 -> 0
E60: =Index!E$43 -> CPI(H): Fin year average - inflate from base year 2017-18 average - CALC | F60: =Index!F$43 -> 0 | G60: =Index!G$43 -> % | H60: =Index!H$43 -> 0 | I60: =Index!I$43 -> 0 | J60: =Index!J$43 -> 1.038621462 | K60: =Index!K$43 -> 1.04693747 | L60: =Index!L$43 -> 1.085399008 | M60: =Index!M$43 -> 1.180633296 | N60: =Index!N$43 -> 1.246121862 | O60: =Index!O$43 -> 1.278826163 | P60: =Index!P$43 -> 1.304173996
E61: Actuals for CMA excluded items - BIO - real | G61: £m | J61: =J59 / J60 -> 0 | K61: =K59 / K60 -> 0 | L61: =L59 / L60 -> 0 | M61: 0 | N61: 0 | O61: 0 | P61: 0
E63: =InpActive!E$162 -> Actuals for CMA excluded items - BIO - nominal | F63: =InpActive!F$141 -> 0 | G63: =InpActive!G$141 -> £m | H63: =InpActive!H$141 -> 0 | I63: =InpActive!I$141 -> 0 | J63: =InpActive!J$141 -> 0 | K63: =InpActive!K$141 -> 0 | L63: =InpActive!L$141 -> 0 | M63: =InpActive!M$141 -> 0 | N63: =InpActive!N$141 -> 0 | O63: =InpActive!O$141 -> 0 | P63: =InpActive!P$141 -> 0
E64: =E61 -> Actuals for CMA excluded items - BIO - real | F64: =F61 -> 0 | G64: £m | H64: 0 | I64: 0 | J64: 0 | K64: =K61 -> 0 | L64: =L61 -> 0 | M64: 0 | N64: 0 | O64: 0 | P64: 0
E65: Variance to allowances for CMA excluded items - BIO | G65: £m | H65: =SUM(J65:P65) -> 0 | J65: =J64-J63 -> 0 | K65: =K64-K63 -> 0 | L65: =L64-L63 -> 0 | M65: 0 | N65: 0 | O65: 0 | P65: 0
E66: Total variance to allowances for CMA excluded items - BIO | F66: =$H65 -> 0 | G66: £m
E68: =E$66 -> Total variance to allowances for CMA excluded items - BIO | F68: =F$66 -> 0 | G68: £m | H68: 0 | I68: 0 | J68: 0 | K68: 0 | L68: 0 | M68: 0 | N68: 0 | O68: 0 | P68: 0
E69: =E$49 -> Time value of money factor - BIO | F69: =F$49 -> 0 | G69: Factor | H69: 0 | I69: 0 | J69: 1 | K69: 1 | L69: 1 | M69: 1 | N69: 1 | O69: 1 | P69: 1
E70: Time value adjustmed variance to allowances for CMA excluded items - BIO - real | G70: £m | H70: =SUM(J70:P70) -> 0 | J70: =J68 * J69 -> 0 | K70: =K68 * K69 -> 0 | L70: 0 | M70: 0 | N70: 0 | O70: 0 | P70: 0
E71: Total variance to allowances for CMA excluded items - BIO - real | F71: =$H70 -> 0 | G71: £m
E73: =E71 -> Total variance to allowances for CMA excluded items - BIO - real | F73: =F71 -> 0 | G73: =G71 -> £m
E74: =InpActive!E164 -> CMA excluded items sharing rate - BIO - real | F74: =InpActive!F164 -> 0 | G74: =InpActive!G164 -> %
E75: Allowable adjustment for CMA exclusioned items - BIO - Real | F75: =(F73* F74) -> 0 | G75: £m
E77: =E55 -> Total adjustment for wage related totex - BIO - Real | F77: =F55 -> 0 | G77: £m
E78: =E75 -> Allowable adjustment for CMA exclusioned items - BIO - Real | F78: =F75 -> 0 | G78: £m
E79: Total adjustment for cost sharing - BIO - Real | F79: =SUM(F77:F78) -> 0 | G79: £m
E81: =E79 -> Total adjustment for cost sharing - BIO - Real | F81: =F79 -> 0 | G81: £m
E82: =InpActive!E159 -> Weighted average PAYG rate - BIO | F82: =InpActive!F159 -> 0 | G82: =InpActive!G159 -> %
E83: Cost sharing Revenue adjustment - BIO - Real | F83: =F82 * $F$527 -> 0 | G83: £m
E85: =E79 -> Total adjustment for cost sharing - BIO - Real | F85: =F79 -> 0 | G85: =G79 -> £m
E86: =InpActive!E159 -> Weighted average PAYG rate - BIO | F86: =InpActive!F159 -> 0 | G86: =InpActive!G159 -> %
E87: Cost sharing RCV adjustment - BIO - Real | F87: =F86 * (1 - $F$527) -> 0 | G87: £m
A92: END OF SHEET

Sheet Thames Tideway Tunnel (hidden)
A1: =RIGHT(CELL("filename", $A$1), LEN(CELL("filename", $A$1)) - SEARCH("]", CELL("filename", $A$1))) -> 
E2: =Time!E$22 -> Model Period BEG | J2: =Time!J$22 -> 2019-04-01 | K2: =Time!K$22 -> 2020-04-01 | L2: =Time!L$22 -> 2021-04-01 | M2: =Time!M$22 -> 2022-04-01 | N2: =Time!N$22 -> 2023-04-01 | O2: =Time!O$22 -> 2024-04-01 | P2: =Time!P$22 -> 2025-04-01
E3: =Time!E$23 -> Model Period END | F3: =Check!F$8 -> 0 | G3: Error chks | J3: =Time!J$23 -> 2020-03-31 | K3: =Time!K$23 -> 2021-03-31 | L3: =Time!L$23 -> 2022-03-31 | M3: =Time!M$23 -> 2023-03-31 | N3: =Time!N$23 -> 2024-03-31 | O3: =Time!O$23 -> 2025-03-31 | P3: =Time!P$23 -> 2026-03-31
E4: =Time!E$59 -> Pre Forecast vs Forecast | J4: =Time!J$59 -> Pre Fcst | K4: =Time!K$59 -> Forecast | L4: =Time!L$59 -> Forecast | M4: =Time!M$59 -> Forecast | N4: =Time!N$59 -> Forecast | O4: =Time!O$59 -> Forecast | P4: =Time!P$59 -> Post-Fcst
E5: =Time!E$101 -> Financial Year Ending | J5: =Time!J$101 -> 2020 | K5: =Time!K$101 -> 2021 | L5: =Time!L$101 -> 2022 | M5: =Time!M$101 -> 2023 | N5: =Time!N$101 -> 2024 | O5: =Time!O$101 -> 2025 | P5: =Time!P$101 -> 2026
E6: =Time!E$11 -> Model column counter | F6: Constant | G6: Unit | H6: Total | J6: =Time!J$11 -> 1 | K6: =Time!K$11 -> 2 | L6: =Time!L$11 -> 3 | M6: =Time!M$11 -> 4 | N6: =Time!N$11 -> 5 | O6: =Time!O$11 -> 6 | P6: =Time!P$11 -> 7
A8: THAMES TIDEWAY TUNNEL
C10: Adjustment For Wage Growth
D12: Profile for totex for wage adjustment
E13: =InpActive!E$170 -> Opex Split Profile - Base costs - TTT | F13: =InpActive!F$170 -> 0 | G13: =InpActive!G$170 -> % | H13: =InpActive!H$170 -> 0 | I13: =InpActive!I$170 -> 0 | J13: =InpActive!J$170 -> 0 | K13: =InpActive!K$170 -> 0 | L13: =InpActive!L$170 -> 0 | M13: =InpActive!M$170 -> 0 | N13: =InpActive!N$170 -> 0 | O13: =InpActive!O$170 -> 0 | P13: =InpActive!P$170 -> 0
E14: =InpActive!E$171 -> Capex Split Profile - Base costs - TTT | F14: =InpActive!F$171 -> 0 | G14: =InpActive!G$171 -> % | H14: =InpActive!H$171 -> 0 | I14: =InpActive!I$171 -> 0 | J14: =InpActive!J$171 -> 0 | K14: =InpActive!K$171 -> 0 | L14: =InpActive!L$171 -> 0 | M14: =InpActive!M$171 -> 0 | N14: =InpActive!N$171 -> 0 | O14: =InpActive!O$171 -> 0 | P14: =InpActive!P$171 -> 0
E15: Totex profile - TTT | G15: % | H15: =SUM(J15:P15) -> 0 | J15: =SUM(J13:J14) -> 0 | K15: 0 | L15: 0 | M15: 0 | N15: 0 | O15: 0 | P15: 0
E16: Totex profile - 5 year percentage - TTT | F16: =H15 -> 0 | G16: %
E18: =E$16 -> Totex profile - 5 year percentage - TTT | F18: =F$16 -> 0 | G18: =G$16 -> %
E19: TTT Totex profile 100% check | F19: =IF(OR($F$18 = 1, F18 = 0), 0, 1) -> 0 | G19: Check
E21: =InpActive!E$168 -> Base Costs - TTT - Real | F21: =InpActive!F$168 -> 0 | G21: =InpActive!G$168 -> £m
E22: =Time!E$54 -> Forecast Period Flag | F22: =Time!F$54 -> 0 | G22: =Time!G$54 -> flag | H22: =Time!H$54 -> 5 | I22: =Time!I$54 -> 0 | J22: =Time!J$54 -> 0 | K22: =Time!K$54 -> 1 | L22: =Time!L$54 -> 1 | M22: =Time!M$54 -> 1 | N22: =Time!N$54 -> 1 | O22: =Time!O$54 -> 1 | P22: =Time!P$54 -> 0
E23: =E$15 -> Totex profile - TTT | F23: 0 | G23: % | H23: 0 | I23: 0 | J23: 0 | K23: 0 | L23: 0 | M23: 0 | N23: 0 | O23: 0 | P23: 0
E24: Profiled Totex available for wage indexation adjustment - TTT - Real | G24: £m | H24: =SUM(J24:P24) -> 0 | J24: =IF(J22 = 1, J23 * $F21, 0) -> 0 | K24: 0 | L24: 0 | M24: 0 | N24: 0 | O24: 0 | P24: 0
D26: Totex applicable for wage adjustment by year
E27: =InpActive!E253 -> Percentage totex linked to wage growth - TTT | F27: =InpActive!F253 -> 0.386 | G27: =InpActive!G253 -> %
E28: =E24 -> Profiled Totex available for wage indexation adjustment - TTT - Real | F28: 0 | G28: £m | H28: 0 | I28: 0 | J28: 0 | K28: 0 | L28: 0 | M28: 0 | N28: 0 | O28: 0 | P28: 0
E29: Profiled Net totex available for wage adj - TTT - Real | G29: £m | H29: =SUM(J29:P29) -> 0 | J29: =J28 * $F27 -> 0 | K29: 0 | L29: 0 | M29: 0 | N29: 0 | O29: 0 | P29: 0
D31: Adjustment factor for wage linked totex
E32: =Time!E$54 -> Forecast Period Flag | F32: =Time!F$54 -> 0 | G32: =Time!G$54 -> flag | H32: =Time!H$54 -> 5 | I32: =Time!I$54 -> 0 | J32: =Time!J$54 -> 0 | K32: =Time!K$54 -> 1 | L32: =Time!L$54 -> 1 | M32: =Time!M$54 -> 1 | N32: =Time!N$54 -> 1 | O32: =Time!O$54 -> 1 | P32: =Time!P$54 -> 0
E33: =E$29 -> Profiled Net totex available for wage adj - TTT - Real | F33: 0 | G33: £m | H33: 0 | I33: 0 | J33: 0 | K33: 0 | L33: 0 | M33: 0 | N33: 0 | O33: 0 | P33: 0
E34: ='Cost sharing calculations'!E26 -> Real adjustment factor for wages | F34: ='Cost sharing calculations'!F26 -> 0 | G34: ='Cost sharing calculations'!G26 -> % | H34: ='Cost sharing calculations'!H26 -> 0 | I34: ='Cost sharing calculations'!I26 -> 0 | J34: ='Cost sharing calculations'!J26 -> 0 | K34: ='Cost sharing calculations'!K26 -> 1.001717747 | L34: ='Cost sharing calculations'!L26 -> 0.9741398288 | M34: ='Cost sharing calculations'!M26 -> 0.9213844781 | N34: ='Cost sharing calculations'!N26 -> 0.9005384254 | O34: ='Cost sharing calculations'!O26 -> 0.9052282442 | P34: ='Cost sharing calculations'!P26 -> 0
E35: Profiled adjustment wage related totex - TTT - Real | G35: £m | H35: =SUM(J35:P35) -> 0 | J35: =IF(J32 = 1, J33 * J34, 0) -> 0 | K35: 0 | L35: 0 | M35: 0 | N35: 0 | O35: 0 | P35: 0
D37: Variance to forecast wage linked totex
E38: =E$35 -> Profiled adjustment wage related totex - TTT - Real | F38: 0 | G38: £m | H38: 0 | I38: 0 | J38: 0 | K38: 0 | L38: 0 | M38: 0 | N38: 0 | O38: 0 | P38: 0
E39: =E$29 -> Profiled Net totex available for wage adj - TTT - Real | F39: 0 | G39: £m | H39: 0 | I39: 0 | J39: 0 | K39: 0 | L39: 0 | M39: 0 | N39: 0 | O39: 0 | P39: 0
E40: Variance to forecast totex for wage adjustment - TTT | G40: £m | H40: =SUM(J40:P40) -> 0 | J40: =J38 - J39 -> 0 | K40: 0 | L40: 0 | M40: 0 | N40: 0 | O40: 0 | P40: 0
D42: Wage totex overfunded/unfunded at PR19
E44: =InpActive!E280 -> Financing cost index | F44: =InpActive!F280 -> 0 | G44: =InpActive!G280 -> Index | H44: =InpActive!H280 -> 0 | I44: =InpActive!I280 -> 0 | J44: =InpActive!J280 -> 0 | K44: =InpActive!K280 -> 4 | L44: =InpActive!L280 -> 3 | M44: =InpActive!M280 -> 2 | N44: =InpActive!N280 -> 1 | O44: =InpActive!O280 -> 0 | P44: =InpActive!P280 -> 0
E45: =InpActive!E286 -> Real WACC CPIH Deflated - TTT | F45: =InpActive!F286 -> 0 | G45: =InpActive!G286 -> %
E46: Time value of money factor - TTT | G46: Factor | J46: =(1+$F45) ^ J44 -> 1 | K46: 1 | L46: 1 | M46: 1 | N46: 1 | O46: 1 | P46: 1
E48: =E$40 -> Variance to forecast totex for wage adjustment - TTT | F48: 0 | G48: £m | H48: 0 | I48: 0 | J48: 0 | K48: 0 | L48: 0 | M48: 0 | N48: 0 | O48: 0 | P48: 0
E49: =E46 -> Time value of money factor - TTT | F49: 0 | G49: Factor | H49: 0 | I49: 0 | J49: 1 | K49: 1 | L49: 1 | M49: 1 | N49: 1 | O49: 1 | P49: 1
E50: Variance to forecast totex for wage adjustment - NPV adjusted - WWN | G50: £m | H50: =SUM(J50:P50) -> 0 | J50: =J48*J49 -> 0 | K50: 0 | L50: 0 | M50: 0 | N50: 0 | O50: 0 | P50: 0
E51: (Under)/Overfunded wage related totex at PR19 - TTT | F51: =H50 * -1 -> 0 | G51: £m
C53: Cost sharing on net totex availale for reconcilation
E55: =InpActive!E$177 -> Net totex for cost sharing reconciliation - TTT - nominal | F55: =InpActive!F$177 -> 0 | G55: =InpActive!G$177 -> £m | H55: =InpActive!H$177 -> 0 | I55: =InpActive!I$177 -> 0 | J55: =InpActive!J$177 -> 0 | K55: =InpActive!K$177 -> 0 | L55: =InpActive!L$177 -> 0 | M55: =InpActive!M$177 -> 0 | N55: =InpActive!N$177 -> 0 | O55: =InpActive!O$177 -> 0 | P55: =InpActive!P$177 -> 0
E56: =Index!E$43 -> CPI(H): Fin year average - inflate from base year 2017-18 average - CALC | F56: =Index!F$43 -> 0 | G56: =Index!G$43 -> % | H56: =Index!H$43 -> 0 | I56: =Index!I$43 -> 0 | J56: =Index!J$43 -> 1.038621462 | K56: =Index!K$43 -> 1.04693747 | L56: =Index!L$43 -> 1.085399008 | M56: =Index!M$43 -> 1.180633296 | N56: =Index!N$43 -> 1.246121862 | O56: =Index!O$43 -> 1.278826163 | P56: =Index!P$43 -> 1.304173996
E57: Actual net totex for cost sharing reconciliation - TTT - Real | G57: £m | J57: =J55 / J56 -> 0 | K57: 0 | L57: 0 | M57: 0 | N57: 0 | O57: 0 | P57: 0
E59: =E$57 -> Actual net totex for cost sharing reconciliation - TTT - Real | F59: 0 | G59: £m | H59: 0 | I59: 0 | J59: 0 | K59: 0 | L59: 0 | M59: 0 | N59: 0 | O59: 0 | P59: 0
E60: =Time!E$54 -> Forecast Period Flag | F60: =Time!F$54 -> 0 | G60: =Time!G$54 -> flag | H60: =Time!H$54 -> 5 | I60: =Time!I$54 -> 0 | J60: =Time!J$54 -> 0 | K60: =Time!K$54 -> 1 | L60: =Time!L$54 -> 1 | M60: =Time!M$54 -> 1 | N60: =Time!N$54 -> 1 | O60: =Time!O$54 -> 1 | P60: =Time!P$54 -> 0
E61: Actual net totex for cost sharing reconciliation - TTT - Real | G61: £m | H61: =SUM(J61:P61) -> 0 | J61: =J59 * J60 -> 0 | K61: 0 | L61: 0 | M61: 0 | N61: 0 | O61: 0 | P61: 0
D63: Profile for net totex for cost sharing
E64: =InpActive!E173 -> Opex split profile - Cost sharing - TTT | F64: =InpActive!F173 -> 0 | G64: =InpActive!G173 -> % | H64: =InpActive!H173 -> 0 | I64: =InpActive!I173 -> 0 | J64: =InpActive!J173 -> 0 | K64: =InpActive!K173 -> 0 | L64: =InpActive!L173 -> 0 | M64: =InpActive!M173 -> 0 | N64: =InpActive!N173 -> 0 | O64: =InpActive!O173 -> 0 | P64: =InpActive!P173 -> 0
E65: =InpActive!E174 -> Capex split profile - Cost sharing - TTT | F65: =InpActive!F174 -> 0 | G65: =InpActive!G174 -> % | H65: =InpActive!H174 -> 0 | I65: =InpActive!I174 -> 0 | J65: =InpActive!J174 -> 0 | K65: =InpActive!K174 -> 0 | L65: =InpActive!L174 -> 0 | M65: =InpActive!M174 -> 0 | N65: =InpActive!N174 -> 0 | O65: =InpActive!O174 -> 0 | P65: =InpActive!P174 -> 0
E66: Totex profile - Cost Sharing - TTT | G66: % | H66: =SUM(J66:P66) -> 0 | J66: =SUM(J64:J65) -> 0 | K66: 0 | L66: 0 | M66: 0 | N66: 0 | O66: 0 | P66: 0
E67: Totex profile - Cost Sharing - 5 year percentage - TTT | F67: =$H$66 -> 0 | G67: %
E69: =E$67 -> Totex profile - Cost Sharing - 5 year percentage - TTT | F69: =F$67 -> 0 | G69: =G$67 -> %
E70: TTT Totex profile - Cost Sharing 100% check | F70: =IF(OR(F69 = 1, F69 = 0), 0, 1) -> 0 | G70: Check
E72: =InpActive!E178 -> Net totex available for cost sharing - TTT - Real | F72: =InpActive!F178 -> 0 | G72: =InpActive!G178 -> £m
E73: =E$66 -> Totex profile - Cost Sharing - TTT | F73: 0 | G73: % | H73: 0 | I73: 0 | J73: 0 | K73: 0 | L73: 0 | M73: 0 | N73: 0 | O73: 0 | P73: 0
E74: Net totex available for cost sharing profiled - TTT - Real | G74: £m | H74: =SUM(J74:P74) -> 0 | J74: =J73 * $F72 -> 0 | K74: 0 | L74: 0 | M74: 0 | N74: 0 | O74: 0 | P74: 0
E76: =E$74 -> Net totex available for cost sharing profiled - TTT - Real | F76: 0 | G76: £m | H76: 0 | I76: 0 | J76: 0 | K76: 0 | L76: 0 | M76: 0 | N76: 0 | O76: 0 | P76: 0
E77: =E$40 -> Variance to forecast totex for wage adjustment - TTT | F77: 0 | G77: £m | H77: 0 | I77: 0 | J77: 0 | K77: 0 | L77: 0 | M77: 0 | N77: 0 | O77: 0 | P77: 0
E78: =InpActive!E180 -> Total final WINEP reconciliation - TTT - real | F78: =InpActive!F180 -> 0 | G78: =InpActive!G180 -> £m | H78: =InpActive!H180 -> 0 | I78: =InpActive!I180 -> 0 | J78: =InpActive!J180 -> 0 | K78: =InpActive!K180 -> 0 | L78: =InpActive!L180 -> 0 | M78: =InpActive!M180 -> 0 | N78: =InpActive!N180 -> 0 | O78: =InpActive!O180 -> 0 | P78: =InpActive!P180 -> 0
E79: Net totex available for cost sharing after adjustments profiled - TTT - Real | G79: £m | H79: =SUM(J79:P79) -> 0 | J79: =SUM(J76:J78) -> 0 | K79: 0 | L79: 0 | M79: 0 | N79: 0 | O79: 0 | P79: 0
D81: Variance to forecast net totex for cost sharing
E82: =E$61 -> Actual net totex for cost sharing reconciliation - TTT - Real | F82: 0 | G82: £m | H82: 0 | I82: 0 | J82: 0 | K82: 0 | L82: 0 | M82: 0 | N82: 0 | O82: 0 | P82: 0
E83: =E$79 -> Net totex available for cost sharing after adjustments profiled - TTT - Real | F83: 0 | G83: £m | H83: 0 | I83: 0 | J83: 0 | K83: 0 | L83: 0 | M83: 0 | N83: 0 | O83: 0 | P83: 0
E84: Variance to forecast net totex for cost sharing - TTT - Real | G84: £m | H84: =SUM(J84:P84) -> 0 | J84: =J82 - J83 -> 0 | K84: 0 | L84: 0 | M84: 0 | N84: 0 | O84: 0 | P84: 0
D86: Variance to forecast net totex for cost sharing - Time adjusted
E88: =E$84 -> Variance to forecast net totex for cost sharing - TTT - Real | F88: 0 | G88: £m | H88: 0 | I88: 0 | J88: 0 | K88: 0 | L88: 0 | M88: 0 | N88: 0 | O88: 0 | P88: 0
E89: =E$46 -> Time value of money factor - TTT | F89: 0 | G89: Factor | H89: 0 | I89: 0 | J89: 1 | K89: 1 | L89: 1 | M89: 1 | N89: 1 | O89: 1 | P89: 1
E90: Time adjusted variance to forecast net totex for cost sharing - TTT | G90: £m | H90: =SUM(J90:P90) -> 0 | J90: =J88 * J89 -> 0 | K90: 0 | L90: 0 | M90: 0 | N90: 0 | O90: 0 | P90: 0
E91: Total variance to forecast net totex for cost sharing - TTT | F91: =$H90 -> 0 | G91: £m
D93: Under / Overperformance on net totex for cost sharing
E95: =E$91 -> Total variance to forecast net totex for cost sharing - TTT | F95: =F$91 -> 0 | G95: =G$91 -> £m
E96: =InpActive!E$268 -> Outperformance Rate - TTT | F96: =InpActive!F$268 -> 0 | G96: =InpActive!G$268 -> %
E97: =InpActive!E$269 -> Underperformance Rate - TTT | F97: =InpActive!F$269 -> 0 | G97: =InpActive!G$269 -> %
E98: ="Active Sharing Rate - "& INDEX(E96:E97,MATCH(F98,F96:F97,0)) -> Active Sharing Rate - Outperformance Rate - TTT | F98: =IF(F95<0,F96,F97) -> 0 | G98: %
E100: =E$91 -> Total variance to forecast net totex for cost sharing - TTT | F100: =F$91 -> 0 | G100: =G$91 -> £m
E101: =E$98 -> Active Sharing Rate - Outperformance Rate - TTT | F101: =F$98 -> 0 | G101: =G$98 -> %
E102: Active adjustment for cost sharing - Net totex for cost sharing - TTT - Real | F102: =F100 * (1-F101) -> 0 | G102: £m
E104: =E102 -> Active adjustment for cost sharing - Net totex for cost sharing - TTT - Real | F104: =F102 -> 0 | G104: =G102 -> £m
E105: =E51 -> (Under)/Overfunded wage related totex at PR19 - TTT | F105: =F51 -> 0 | G105: =G51 -> £m
E106: Total adjustment for cost sharing after ex ante allowance - TTT - Real | F106: =F104 - F105 -> 0 | G106: £m
C108: Cost sharing adjustment RCV/Revenue Split
E110: =E$106 -> Total adjustment for cost sharing after ex ante allowance - TTT - Real | F110: =F$106 -> 0 | G110: =G$106 -> £m
E111: =InpActive!E$182 -> Weighted average PAYG rate - TTT | F111: =InpActive!F$182 -> 0 | G111: =InpActive!G$182 -> %
E112: Cost sharing revenue adjustment - TTT - Real | F112: =F110 * $F$111 -> 0 | G112: £m
E114: =E$106 -> Total adjustment for cost sharing after ex ante allowance - TTT - Real | F114: =F$106 -> 0 | G114: =G$106 -> £m
E115: =InpActive!E$182 -> Weighted average PAYG rate - TTT | F115: =InpActive!F$182 -> 0 | G115: =InpActive!G$182 -> %
E116: Cost sharing RCV adjustment - TTT - Real | F116: =F114 * (1 - $F$115) -> 0 | G116: £m
A119: END OF SHEET

Sheet Green Recovery
A1: =RIGHT(CELL("filename", $A$1), LEN(CELL("filename", $A$1)) - SEARCH("]", CELL("filename", $A$1))) -> 
E2: =Time!E$22 -> Model Period BEG | J2: =Time!J$22 -> 2019-04-01 | K2: =Time!K$22 -> 2020-04-01 | L2: =Time!L$22 -> 2021-04-01 | M2: =Time!M$22 -> 2022-04-01 | N2: =Time!N$22 -> 2023-04-01 | O2: =Time!O$22 -> 2024-04-01 | P2: =Time!P$22 -> 2025-04-01
E3: =Time!E$23 -> Model Period END | F3: =Check!F$8 -> 0 | G3: Error chks | J3: =Time!J$23 -> 2020-03-31 | K3: =Time!K$23 -> 2021-03-31 | L3: =Time!L$23 -> 2022-03-31 | M3: =Time!M$23 -> 2023-03-31 | N3: =Time!N$23 -> 2024-03-31 | O3: =Time!O$23 -> 2025-03-31 | P3: =Time!P$23 -> 2026-03-31
E4: =Time!E$59 -> Pre Forecast vs Forecast | J4: =Time!J$59 -> Pre Fcst | K4: =Time!K$59 -> Forecast | L4: =Time!L$59 -> Forecast | M4: =Time!M$59 -> Forecast | N4: =Time!N$59 -> Forecast | O4: =Time!O$59 -> Forecast | P4: =Time!P$59 -> Post-Fcst
E5: =Time!E$101 -> Financial Year Ending | J5: =Time!J$101 -> 2020 | K5: =Time!K$101 -> 2021 | L5: =Time!L$101 -> 2022 | M5: =Time!M$101 -> 2023 | N5: =Time!N$101 -> 2024 | O5: =Time!O$101 -> 2025 | P5: =Time!P$101 -> 2026
E6: =Time!E$11 -> Model column counter | F6: Constant | G6: Unit | H6: Total | J6: =Time!J$11 -> 1 | K6: =Time!K$11 -> 2 | L6: =Time!L$11 -> 3 | M6: =Time!M$11 -> 4 | N6: =Time!N$11 -> 5 | O6: =Time!O$11 -> 6 | P6: =Time!P$11 -> 7
A9: ACTIVE GREEN RECOVERY COST SHARING RATE
C11: Active Sharing Rates -WR/WN
E13: =E37 -> Variance to green recovery expenditure - WR - real | F13: =F37 -> 0 | G13: =G37 -> £m
E14: =E73 -> Variance to green recovery expenditure - WN - real | F14: =F73 -> 0 | G14: =G73 -> £m
E15: =E108 -> Variance to green recovery expenditure - WWN - real | F15: 0 | G15: £m
E16: Total Variance to green recovery expenditure - real | F16: =SUM(F13:F15) -> 0 | G16: £m
E18: =E$16 -> Total Variance to green recovery expenditure - real | F18: =F$16 -> 0 | G18: £m
E19: =InpActive!E$204 -> Green Recovery Outperformance Rate | F19: =InpActive!F$204 -> 0.1 | G19: =InpActive!G$204 -> %
E20: =InpActive!E$205 -> Green Recovery Underperformance Rate | F20: =InpActive!F$205 -> 0.5 | G20: =InpActive!G$205 -> %
E21: ="Active Sharing Rate - "& INDEX(E19:E20,MATCH(F21,F19:F20,0)) -> Active Sharing Rate - Green Recovery Underperformance Rate | F21: =IF(F18<0,F19,F20) -> 0.5 | G21: %
A24: WATER RESOURCES
E26: =InpActive!E$189 -> Actual Green Recovery Expenditure - WR - nominal | F26: =InpActive!F$189 -> 0 | G26: =InpActive!G$189 -> £m | H26: =InpActive!H$189 -> 0 | I26: =InpActive!I$189 -> 0 | J26: =InpActive!J$189 -> 0 | K26: =InpActive!K$189 -> 0 | L26: =InpActive!L$189 -> 0 | M26: =InpActive!M$189 -> 0 | N26: =InpActive!N$189 -> 0 | O26: =InpActive!O$189 -> 0 | P26: =InpActive!P$189 -> 0
E27: =Index!E$43 -> CPI(H): Fin year average - inflate from base year 2017-18 average - CALC | F27: =Index!F$43 -> 0 | G27: =Index!G$43 -> % | H27: =Index!H$43 -> 0 | I27: =Index!I$43 -> 0 | J27: =Index!J$43 -> 1.038621462 | K27: =Index!K$43 -> 1.04693747 | L27: =Index!L$43 -> 1.085399008 | M27: =Index!M$43 -> 1.180633296 | N27: =Index!N$43 -> 1.246121862 | O27: =Index!O$43 -> 1.278826163 | P27: =Index!P$43 -> 1.304173996
E28: Actual Green Recovery Expenditure - WR - real | G28: £m | H28: =SUM(J28:P28) -> 0 | J28: =J26 / J27 -> 0 | K28: =K26 / K27 -> 0 | L28: =L26 / L27 -> 0 | M28: 0 | N28: 0 | O28: 0 | P28: 0
E30: =E28 -> Actual Green Recovery Expenditure - WR - real | F30: =F28 -> 0 | G30: £m | H30: 0 | I30: 0 | J30: 0 | K30: =K28 -> 0 | L30: 0 | M30: 0 | N30: 0 | O30: 0 | P30: 0
E31: =Time!E$54 -> Forecast Period Flag | F31: =Time!F$54 -> 0 | G31: =Time!G$54 -> flag | H31: =Time!H$54 -> 5 | I31: =Time!I$54 -> 0 | J31: =Time!J$54 -> 0 | K31: =Time!K$54 -> 1 | L31: =Time!L$54 -> 1 | M31: =Time!M$54 -> 1 | N31: =Time!N$54 -> 1 | O31: =Time!O$54 -> 1 | P31: =Time!P$54 -> 0
E32: Actual Green Recovery Expenditure for cost sharing - WR - real | G32: £m | H32: =SUM(J32:P32) -> 0 | J32: =J30 * J31 -> 0 | K32: =K30 * K31 -> 0 | L32: 0 | M32: 0 | N32: 0 | O32: 0 | P32: 0
D34: Variance to forecast totex for green recovery expenditure
E35: =E$32 -> Actual Green Recovery Expenditure for cost sharing - WR - real | F35: 0 | G35: £m | H35: 0 | I35: 0 | J35: 0 | K35: 0 | L35: =L$32 -> 0 | M35: 0 | N35: 0 | O35: 0 | P35: 0
E36: =InpActive!E$190 -> Total adjusted cost allowance - WR - real | F36: =InpActive!F$190 -> 0 | G36: =InpActive!G$190 -> £m | H36: =InpActive!H$190 -> 0 | I36: =InpActive!I$190 -> 0 | J36: =InpActive!J$190 -> 0 | K36: =InpActive!K$190 -> 0 | L36: =InpActive!L$190 -> 0 | M36: =InpActive!M$190 -> 0 | N36: =InpActive!N$190 -> 0 | O36: =InpActive!O$190 -> 0 | P36: =InpActive!P$190 -> 0
E37: Variance to green recovery expenditure - WR - real | F37: =H35 - H36 -> 0 | G37: £m | H37: =SUM(J37:P37) -> 0
E39: =E$32 -> Actual Green Recovery Expenditure for cost sharing - WR - real | F39: 0 | G39: £m | H39: 0 | I39: 0 | J39: 0 | K39: 0 | L39: 0 | M39: 0 | N39: 0 | O39: 0 | P39: 0
E40: =E37 -> Variance to green recovery expenditure - WR - real | F40: =F37 -> 0 | G40: =G37 -> £m
E41: Apportioned variance to GRE - WR - real | G41: £m | H41: =SUM(J41:O41) -> 0 | J41: =IF($F$40=0,0, $F$40 * (J39/SUM($K$39:$O$39))) -> 0 | K41: =IF($F$40=0,0, $F$40 * (K39/SUM($K$39:$O$39))) -> 0 | L41: =IF($F$40=0,0, $F$40 * (L39/SUM($K$39:$O$39))) -> 0 | M41: 0 | N41: 0 | O41: 0 | P41: 0
D43: Variance to forecast totex for green recovery expenditure - Time adjusted
E44: =InpActive!E$280 -> Financing cost index | F44: =InpActive!F$280 -> 0 | G44: =InpActive!G$280 -> Index | H44: =InpActive!H$280 -> 0 | I44: =InpActive!I$280 -> 0 | J44: =InpActive!J$280 -> 0 | K44: =InpActive!K$280 -> 4 | L44: =InpActive!L$280 -> 3 | M44: =InpActive!M$280 -> 2 | N44: =InpActive!N$280 -> 1 | O44: =InpActive!O$280 -> 0 | P44: =InpActive!P$280 -> 0
E45: =InpActive!E$282 -> Real WACC CPIH Deflated - WR | F45: =InpActive!F$282 -> 0.0292 | G45: =InpActive!G$282 -> %
E46: Time value of money factor - WR | G46: Factor | J46: =(1+$F45) ^ J44 -> 1 | K46: =(1+$F45) ^ K44 -> 1.122016155 | L46: 1.090182817 | M46: 1.05925264 | N46: 1.0292 | O46: 1 | P46: 1
E48: =E$41 -> Apportioned variance to GRE - WR - real | F48: 0 | G48: £m | H48: 0 | I48: 0 | J48: 0 | K48: 0 | L48: 0 | M48: 0 | N48: 0 | O48: 0 | P48: 0
E49: =E$46 -> Time value of money factor - WR | F49: 0 | G49: Factor | H49: 0 | I49: 0 | J49: 1 | K49: 1.122016155 | L49: 1.090182817 | M49: 1.05925264 | N49: 1.0292 | O49: 1 | P49: 1
E50: Time adjusted variance to green recovery expenditure - WR - real | G50: £m | H50: =SUM(J50:P50) -> 0 | J50: =J48 * J49 -> 0 | K50: =K48 * K49 -> 0 | L50: =L48 * L49 -> 0 | M50: 0 | N50: 0 | O50: 0 | P50: 0
E51: Total variance to green recovery expenditure - WR - real | F51: =$H50 -> 0 | G51: £m
D53: Under / Overperformance on green recovery expenditure
E55: =E$51 -> Total variance to green recovery expenditure - WR - real | F55: =F$51 -> 0 | G55: =G$51 -> £m
E56: =E$21 -> Active Sharing Rate - Green Recovery Underperformance Rate | F56: =F$21 -> 0.5 | G56: %
E57: Active RCV adjustment for cost sharing - Green Recovery Expenditure - WR - Real | F57: =F55 * (1-F56) -> 0 | G57: £m
A60: WATER NETWORK
E62: =InpActive!E$194 -> Actual Green Recovery Expenditure - WN - nominal | F62: =InpActive!F$194 -> 0 | G62: =InpActive!G$194 -> £m | H62: =InpActive!H$194 -> 0 | I62: =InpActive!I$194 -> 0 | J62: =InpActive!J$194 -> 0 | K62: =InpActive!K$194 -> 0 | L62: =InpActive!L$194 -> 0 | M62: =InpActive!M$194 -> 0 | N62: =InpActive!N$194 -> 0 | O62: =InpActive!O$194 -> 0 | P62: =InpActive!P$194 -> 0
E63: =Index!E$43 -> CPI(H): Fin year average - inflate from base year 2017-18 average - CALC | F63: =Index!F$43 -> 0 | G63: =Index!G$43 -> % | H63: =Index!H$43 -> 0 | I63: =Index!I$43 -> 0 | J63: =Index!J$43 -> 1.038621462 | K63: =Index!K$43 -> 1.04693747 | L63: =Index!L$43 -> 1.085399008 | M63: =Index!M$43 -> 1.180633296 | N63: =Index!N$43 -> 1.246121862 | O63: =Index!O$43 -> 1.278826163 | P63: =Index!P$43 -> 1.304173996
E64: Actual Green Recovery Expenditure - WN - real | G64: £m | H64: =SUM(J64:P64) -> 0 | J64: =J62 / J63 -> 0 | K64: =K62 / K63 -> 0 | L64: =L62 / L63 -> 0 | M64: 0 | N64: 0 | O64: 0 | P64: 0
E66: =E64 -> Actual Green Recovery Expenditure - WN - real | F66: =F64 -> 0 | G66: £m | H66: 0 | I66: 0 | J66: 0 | K66: =K64 -> 0 | L66: 0 | M66: 0 | N66: 0 | O66: 0 | P66: 0
E67: =Time!E$54 -> Forecast Period Flag | F67: =Time!F$54 -> 0 | G67: =Time!G$54 -> flag | H67: =Time!H$54 -> 5 | I67: =Time!I$54 -> 0 | J67: =Time!J$54 -> 0 | K67: =Time!K$54 -> 1 | L67: =Time!L$54 -> 1 | M67: =Time!M$54 -> 1 | N67: =Time!N$54 -> 1 | O67: =Time!O$54 -> 1 | P67: =Time!P$54 -> 0
E68: Actual Green Recovery Expenditure for cost sharing - WN - real | G68: £m | H68: =SUM(J68:P68) -> 0 | J68: =J66 * J67 -> 0 | K68: =K66 * K67 -> 0 | L68: 0 | M68: 0 | N68: 0 | O68: 0 | P68: 0
D70: Variance to forecast totex for green recovery expenditure
E71: =E$68 -> Actual Green Recovery Expenditure for cost sharing - WN - real | F71: 0 | G71: £m | H71: 0 | I71: 0 | J71: 0 | K71: 0 | L71: 0 | M71: 0 | N71: 0 | O71: 0 | P71: 0
E72: =InpActive!E$195 -> Total adjusted cost allowance - WN - real | F72: =InpActive!F$195 -> 0 | G72: =InpActive!G$195 -> £m | H72: =InpActive!H$195 -> 0 | I72: =InpActive!I$195 -> 0 | J72: =InpActive!J$195 -> 0 | K72: =InpActive!K$195 -> 0 | L72: =InpActive!L$195 -> 0 | M72: =InpActive!M$195 -> 0 | N72: =InpActive!N$195 -> 0 | O72: =InpActive!O$195 -> 0 | P72: =InpActive!P$195 -> 0
E73: Variance to green recovery expenditure - WN - real | F73: =H71 - H72 -> 0 | G73: £m | H73: =SUM(J73:O73) -> 0
E75: =E$68 -> Actual Green Recovery Expenditure for cost sharing - WN - real | F75: 0 | G75: £m | H75: 0 | I75: 0 | J75: 0 | K75: 0 | L75: 0 | M75: 0 | N75: 0 | O75: 0 | P75: 0
E76: =E73 -> Variance to green recovery expenditure - WN - real | F76: =F73 -> 0 | G76: £m
E77: Apportioned variance to GRE - WN - real | G77: £m | H77: =SUM(J77:O77) -> 0 | J77: =IF($F$76 = 0, 0, $F$76*(J75/SUM($K$75:$O$75))) -> 0 | K77: 0 | L77: 0 | M77: 0 | N77: 0 | O77: 0 | P77: 0
D79: Variance to forecast totex for green recovery expenditure - Time adjusted
E80: =InpActive!E$280 -> Financing cost index | F80: =InpActive!F$280 -> 0 | G80: =InpActive!G$280 -> Index | H80: =InpActive!H$280 -> 0 | I80: =InpActive!I$280 -> 0 | J80: =InpActive!J$280 -> 0 | K80: =InpActive!K$280 -> 4 | L80: =InpActive!L$280 -> 3 | M80: =InpActive!M$280 -> 2 | N80: =InpActive!N$280 -> 1 | O80: =InpActive!O$280 -> 0 | P80: =InpActive!P$280 -> 0
E81: =InpActive!E$283 -> Real WACC CPIH Deflated - WN | F81: =InpActive!F$283 -> 0.0292 | G81: =InpActive!G$283 -> %
E82: Time value of money factor - WN | G82: Factor | J82: =(1+$F81) ^ J80 -> 1 | K82: =(1+$F81) ^ K80 -> 1.122016155 | L82: 1.090182817 | M82: 1.05925264 | N82: 1.0292 | O82: 1 | P82: 1
E84: =E$77 -> Apportioned variance to GRE - WN - real | F84: 0 | G84: £m | H84: 0 | I84: 0 | J84: 0 | K84: 0 | L84: 0 | M84: 0 | N84: 0 | O84: 0 | P84: 0
E85: =E$82 -> Time value of money factor - WN | F85: 0 | G85: Factor | H85: 0 | I85: 0 | J85: 1 | K85: 1.122016155 | L85: 1.090182817 | M85: 1.05925264 | N85: 1.0292 | O85: 1 | P85: 1
E86: Time adjusted variance to green recovery expenditure - WN - real | G86: £m | H86: =SUM(J86:P86) -> 0 | J86: =J84 * J85 -> 0 | K86: =K84 * K85 -> 0 | L86: 0 | M86: =M84 * M85 -> 0 | N86: 0 | O86: 0 | P86: 0
E87: Total variance to green recovery expenditure - WN - real | F87: =$H86 -> 0 | G87: £m
D89: Under / Overperformance on green recovery expenditure
E91: =E$87 -> Total variance to green recovery expenditure - WN - real | F91: =F$87 -> 0 | G91: £m
E92: =E$21 -> Active Sharing Rate - Green Recovery Underperformance Rate | F92: =F$21 -> 0.5 | G92: %
E93: Active RCV adjustment for cost sharing - Green Recovery Expenditure - WN - Real | F93: =F91 * (1-F92) -> 0 | G93: £m
A95: WASTEWATER NETWORK
E97: =InpActive!E$199 -> Actual Green Recovery Expenditure - WWN - nominal | F97: =InpActive!F$199 -> 0 | G97: =InpActive!G$199 -> £m | H97: =InpActive!H$199 -> 0 | I97: =InpActive!I$199 -> 0 | J97: =InpActive!J$199 -> 0 | K97: =InpActive!K$199 -> 0 | L97: =InpActive!L$199 -> 0 | M97: =InpActive!M$199 -> 0 | N97: =InpActive!N$199 -> 0 | O97: =InpActive!O$199 -> 0 | P97: =InpActive!P$199 -> 0
E98: =Index!E$43 -> CPI(H): Fin year average - inflate from base year 2017-18 average - CALC | F98: =Index!F$43 -> 0 | G98: =Index!G$43 -> % | H98: =Index!H$43 -> 0 | I98: =Index!I$43 -> 0 | J98: =Index!J$43 -> 1.038621462 | K98: =Index!K$43 -> 1.04693747 | L98: =Index!L$43 -> 1.085399008 | M98: =Index!M$43 -> 1.180633296 | N98: =Index!N$43 -> 1.246121862 | O98: =Index!O$43 -> 1.278826163 | P98: =Index!P$43 -> 1.304173996
E99: Actual Green Recovery Expenditure - WWN - real | G99: £m | H99: =SUM(J99:P99) -> 0 | J99: =J97 / J98 -> 0 | K99: =K97 / K98 -> 0 | L99: =L97 / L98 -> 0 | M99: 0 | N99: 0 | O99: 0 | P99: 0
E101: =E99 -> Actual Green Recovery Expenditure - WWN - real | F101: =F99 -> 0 | G101: £m | H101: 0 | I101: 0 | J101: 0 | K101: =K99 -> 0 | L101: 0 | M101: 0 | N101: 0 | O101: 0 | P101: 0
E102: =Time!E$54 -> Forecast Period Flag | F102: =Time!F$54 -> 0 | G102: =Time!G$54 -> flag | H102: =Time!H$54 -> 5 | I102: =Time!I$54 -> 0 | J102: =Time!J$54 -> 0 | K102: =Time!K$54 -> 1 | L102: =Time!L$54 -> 1 | M102: =Time!M$54 -> 1 | N102: =Time!N$54 -> 1 | O102: =Time!O$54 -> 1 | P102: =Time!P$54 -> 0
E103: Actual Green Recovery Expenditure for cost sharing - WWN - real | G103: £m | H103: =SUM(J103:P103) -> 0 | J103: =J101 * J102 -> 0 | K103: =K101 * K102 -> 0 | L103: 0 | M103: 0 | N103: 0 | O103: 0 | P103: 0
D105: Variance to forecast totex for green recovery expenditure
E106: =E$103 -> Actual Green Recovery Expenditure for cost sharing - WWN - real | F106: 0 | G106: £m | H106: 0 | I106: 0 | J106: 0 | K106: 0 | L106: 0 | M106: 0 | N106: 0 | O106: 0 | P106: 0
E107: =InpActive!E$200 -> Total adjusted cost allowance - WWN - real | F107: =InpActive!F$200 -> 0 | G107: =InpActive!G$200 -> £m | H107: =InpActive!H$200 -> 0 | I107: =InpActive!I$200 -> 0 | J107: =InpActive!J$200 -> 0 | K107: =InpActive!K$200 -> 0 | L107: =InpActive!L$200 -> 0 | M107: =InpActive!M$200 -> 0 | N107: =InpActive!N$200 -> 0 | O107: =InpActive!O$200 -> 0 | P107: =InpActive!P$200 -> 0
E108: Variance to green recovery expenditure - WWN - real | F108: =H106 - H107 -> 0 | G108: £m
E110: =E$106 -> Actual Green Recovery Expenditure for cost sharing - WWN - real | F110: 0 | G110: £m | H110: 0 | I110: 0 | J110: 0 | K110: 0 | L110: 0 | M110: 0 | N110: 0 | O110: 0 | P110: 0
E111: =E108 -> Variance to green recovery expenditure - WWN - real | F111: =F108 -> 0 | G111: £m
E112: Apportioned variance to GRE - WWN - real | G112: £m | H112: =SUM(J112:O112) -> 0 | J112: =IF($F$111 = 0, 0, $F$111*(J110/SUM($K$110:$O$110))) -> 0 | K112: 0 | L112: 0 | M112: 0 | N112: 0 | O112: 0 | P112: 0
D115: Variance to forecast totex for green recovery expenditure - Time adjusted
E116: =InpActive!E$280 -> Financing cost index | F116: =InpActive!F$280 -> 0 | G116: =InpActive!G$280 -> Index | H116: =InpActive!H$280 -> 0 | I116: =InpActive!I$280 -> 0 | J116: =InpActive!J$280 -> 0 | K116: =InpActive!K$280 -> 4 | L116: =InpActive!L$280 -> 3 | M116: =InpActive!M$280 -> 2 | N116: =InpActive!N$280 -> 1 | O116: =InpActive!O$280 -> 0 | P116: =InpActive!P$280 -> 0
E117: =InpActive!E$284 -> Real WACC CPIH Deflated - WWN | F117: =InpActive!F$284 -> 0 | G117: =InpActive!G$284 -> %
E118: Time value of money factor - WWN | G118: Factor | J118: =(1+$F117) ^ J116 -> 1 | K118: =(1+$F117) ^ K116 -> 1 | L118: =(1+$F117) ^ L116 -> 1 | M118: 1 | N118: 1 | O118: 1 | P118: 1
E120: =E112 -> Apportioned variance to GRE - WWN - real | F120: =F112 -> 0 | G120: £m | H120: 0 | I120: 0 | J120: 0 | K120: =K112 -> 0 | L120: 0 | M120: 0 | N120: 0 | O120: 0 | P120: 0
E121: =E$118 -> Time value of money factor - WWN | F121: 0 | G121: Factor | H121: 0 | I121: 0 | J121: 1 | K121: 1 | L121: 1 | M121: 1 | N121: 1 | O121: 1 | P121: 1
E122: Time adjusted variance to green recovery expenditure - WWN - real | G122: £m | H122: =SUM(J122:P122) -> 0 | J122: =J120 * J121 -> 0 | K122: =K120 * K121 -> 0 | L122: 0 | M122: 0 | N122: 0 | O122: 0 | P122: 0
E123: Total variance to green recovery expenditure - WWN - real | F123: =$H122 -> 0 | G123: £m
D125: Under / Overperformance on green recovery expenditure
E127: =E$123 -> Total variance to green recovery expenditure - WWN - real | F127: =F$123 -> 0 | G127: £m
E128: =E$21 -> Active Sharing Rate - Green Recovery Underperformance Rate | F128: =F$21 -> 0.5 | G128: %
E129: Active RCV adjustment for cost sharing - Green Recovery Expenditure - WWN - Real | F129: =F127 * (1-F128) -> 0 | G129: £m
A131: END OF SHEET

Sheet Outputs-->

Sheet Outputs
A1: =RIGHT(CELL("filename", $A$1), LEN(CELL("filename", $A$1)) - SEARCH("]", CELL("filename", $A$1))) -> 
E2: =Time!E$22 -> Model Period BEG | J2: =Time!J$22 -> 2019-04-01 | K2: =Time!K$22 -> 2020-04-01 | L2: =Time!L$22 -> 2021-04-01 | M2: =Time!M$22 -> 2022-04-01 | N2: =Time!N$22 -> 2023-04-01 | O2: =Time!O$22 -> 2024-04-01 | P2: =Time!P$22 -> 2025-04-01
E3: =Time!E$23 -> Model Period END | F3: =Check!F$8 -> 0 | G3: Error chks | J3: =Time!J$23 -> 2020-03-31 | K3: =Time!K$23 -> 2021-03-31 | L3: =Time!L$23 -> 2022-03-31 | M3: =Time!M$23 -> 2023-03-31 | N3: =Time!N$23 -> 2024-03-31 | O3: =Time!O$23 -> 2025-03-31 | P3: =Time!P$23 -> 2026-03-31
E4: =Time!E$59 -> Pre Forecast vs Forecast | J4: =Time!J$59 -> Pre Fcst | K4: =Time!K$59 -> Forecast | L4: =Time!L$59 -> Forecast | M4: =Time!M$59 -> Forecast | N4: =Time!N$59 -> Forecast | O4: =Time!O$59 -> Forecast | P4: =Time!P$59 -> Post-Fcst
E5: =Time!E$101 -> Financial Year Ending | J5: =Time!J$101 -> 2020 | K5: =Time!K$101 -> 2021 | L5: =Time!L$101 -> 2022 | M5: =Time!M$101 -> 2023 | N5: =Time!N$101 -> 2024 | O5: =Time!O$101 -> 2025 | P5: =Time!P$101 -> 2026
E6: =Time!E$11 -> Model column counter | F6: Constant | G6: Unit | H6: Total | J6: =Time!J$11 -> 1 | K6: =Time!K$11 -> 2 | L6: =Time!L$11 -> 3 | M6: =Time!M$11 -> 4 | N6: =Time!N$11 -> 5 | O6: =Time!O$11 -> 6 | P6: =Time!P$11 -> 7
A8: WATER RESOURCES
B10: Cost sharing
E11: ='Cost sharing calculations'!E$171 -> Total adjustment for cost sharing after ex ante allowance & wage adjustment - WR - Real | F11: ='Cost sharing calculations'!F$171 -> 0.4597885942 | G11: ='Cost sharing calculations'!G$171 -> £m
E12: ='Cost sharing calculations'!E$189 -> Wholesaler bad debt adjustment - WR | F12: ='Cost sharing calculations'!F$189 -> 0 | G12: ='Cost sharing calculations'!G$189 -> £m
E13: ='Cost sharing calculations'!E$199 -> Cost sharing revenue adjustment - WR - Real | F13: ='Cost sharing calculations'!F$199 -> 0.3747007591 | G13: ='Cost sharing calculations'!G$199 -> £m
E14: ='Cost sharing calculations'!E$203 -> Cost sharing RCV adjustment - WR - Real | F14: ='Cost sharing calculations'!F$203 -> 0.08508783509 | G14: ='Cost sharing calculations'!G$203 -> £m
E15: Water Resources cost sharing 100% check | F15: =IF(SUM(F11:F12) <> SUM(F13:F14), 1, 0) -> 0 | G15: Check
B17: Abstracttion & Business Rates uncertainty mechanism
E18: ='Abstraction & Rates'!E82 -> Active adjustment for abstraction charges & business rates uncertainty mechanism - WR - Real | F18: ='Abstraction & Rates'!F82 -> -0.05595531715 | G18: ='Abstraction & Rates'!G82 -> £m
E19: ='Abstraction & Rates'!E86 -> Revenue adjustment business rates and abstraction - WR - Real | F19: ='Abstraction & Rates'!F86 -> -0.04560030431 | G19: ='Abstraction & Rates'!G86 -> £m
E20: ='Abstraction & Rates'!E90 -> RCV adjustment business rates and abstraction - WR - Real | F20: ='Abstraction & Rates'!F90 -> -0.01035501284 | G20: ='Abstraction & Rates'!G90 -> £m
B22: Revenue adjustment
E23: ='Cost sharing calculations'!E$199 -> Cost sharing revenue adjustment - WR - Real | F23: ='Cost sharing calculations'!F$199 -> 0.3747007591 | G23: ='Cost sharing calculations'!G$199 -> £m
E24: ='Abstraction & Rates'!E86 -> Revenue adjustment business rates and abstraction - WR - Real | F24: ='Abstraction & Rates'!F86 -> -0.04560030431 | G24: ='Abstraction & Rates'!G86 -> £m
E25: Total Revenue adjustment for cost sharing - WR - Real | F25: =SUM(F23:F24) -> 0.3291004548 | G25: £m
B27: RCV adjustment
E28: ='Cost sharing calculations'!E$203 -> Cost sharing RCV adjustment - WR - Real | F28: ='Cost sharing calculations'!F$203 -> 0.08508783509 | G28: ='Cost sharing calculations'!G$203 -> £m
E29: ='Abstraction & Rates'!E90 -> RCV adjustment business rates and abstraction - WR - Real | F29: ='Abstraction & Rates'!F90 -> -0.01035501284 | G29: ='Abstraction & Rates'!G90 -> £m
E30: ='Green Recovery'!E$57 -> Active RCV adjustment for cost sharing - Green Recovery Expenditure - WR - Real | F30: ='Green Recovery'!F$57 -> 0 | G30: ='Green Recovery'!G$57 -> £m
E31: Total RCV adjustment for cost sharing - WR - Real | F31: =SUM(F28:F30) -> 0.07473282225 | G31: £m
A34: WATER NETWORK
B36: Cost sharing
E37: ='Cost sharing calculations'!E$330 -> Total adjustment for cost sharing after ex ante allowance - WN - Real | F37: ='Cost sharing calculations'!F$330 -> 14.59617052 | G37: ='Cost sharing calculations'!G$330 -> £m
E38: ='Cost sharing calculations'!E$348 -> Wholesaler bad debt adjustment - WN | F38: ='Cost sharing calculations'!F$348 -> 0 | G38: ='Cost sharing calculations'!G$348 -> £m
E39: ='Cost sharing calculations'!E$358 -> Cost sharing revenue adjustment - WN - Real | F39: ='Cost sharing calculations'!F$358 -> 7.187125629 | G39: ='Cost sharing calculations'!G$358 -> £m
E40: ='Cost sharing calculations'!E$362 -> Cost sharing RCV adjustment - WN - Real | F40: ='Cost sharing calculations'!F$362 -> 7.409044891 | G40: ='Cost sharing calculations'!G$362 -> £m
E41: Water Network cost sharing 100% check | F41: =IF(SUM(F37:F38) <> SUM(F39:F40), 1, 0) -> 0 | G41: Check
B43: Abstracttion & Business Rates uncertainty mechanism
E44: ='Abstraction & Rates'!E$166 -> Active adjustment for abstraction charges & business rates uncertainty mechanism - WR - Real | F44: ='Abstraction & Rates'!F$166 -> -1.107044062 | G44: ='Abstraction & Rates'!G$166 -> £m
E45: ='Abstraction & Rates'!E$170 -> Revenue adjustment business rates and abstraction - WN - Real | F45: ='Abstraction & Rates'!F$170 -> -0.5451063167 | G45: ='Abstraction & Rates'!G$170 -> £m
E46: ='Abstraction & Rates'!E$174 -> RCV adjustment business rates and abstraction - WN - Real | F46: ='Abstraction & Rates'!F$174 -> -0.5619377453 | G46: ='Abstraction & Rates'!G$174 -> £m
B48: Revenue adjustment
E49: ='Cost sharing calculations'!E$358 -> Cost sharing revenue adjustment - WN - Real | F49: ='Cost sharing calculations'!F$358 -> 7.187125629 | G49: ='Cost sharing calculations'!G$358 -> £m
E50: ='Abstraction & Rates'!E170 -> Revenue adjustment business rates and abstraction - WN - Real | F50: ='Abstraction & Rates'!F170 -> -0.5451063167 | G50: ='Abstraction & Rates'!G170 -> £m
E51: Total Revenue adjustment for cost sharing - WN - Real | F51: =SUM(F49:F50) -> 6.642019312 | G51: £m
B53: RCV adjustment
E54: ='Cost sharing calculations'!E$362 -> Cost sharing RCV adjustment - WN - Real | F54: ='Cost sharing calculations'!F$362 -> 7.409044891 | G54: ='Cost sharing calculations'!G$362 -> £m
E55: ='Abstraction & Rates'!E174 -> RCV adjustment business rates and abstraction - WN - Real | F55: ='Abstraction & Rates'!F174 -> -0.5619377453 | G55: ='Abstraction & Rates'!G174 -> £m
E56: ='Green Recovery'!E93 -> Active RCV adjustment for cost sharing - Green Recovery Expenditure - WN - Real | F56: ='Green Recovery'!F93 -> 0 | G56: ='Green Recovery'!G93 -> £m
E57: Total RCV adjustment for cost sharing - WN - Real | F57: =SUM(F54:F56) -> 6.847107146 | G57: £m
A60: WASTEWATER NETWORK
B62: Cost sharing
E63: ='Cost sharing calculations'!E$496 -> Total adjustment for cost sharing after ex ante allowance - WWN - Real | F63: ='Cost sharing calculations'!F$496 -> 0 | G63: ='Cost sharing calculations'!G$496 -> £m
E64: ='Cost sharing calculations'!E$514 -> Wholesaler bad debt adjustment - WWN | F64: ='Cost sharing calculations'!F$514 -> 0 | G64: ='Cost sharing calculations'!G$514 -> £m
E65: ='Cost sharing calculations'!E$524 -> Cost sharing revenue adjustment - WWN - Real | F65: ='Cost sharing calculations'!F$524 -> 0 | G65: ='Cost sharing calculations'!G$524 -> £m
E66: ='Cost sharing calculations'!E$528 -> Cost sharing RCV adjustment - WWN - Real | F66: ='Cost sharing calculations'!F$528 -> 0 | G66: ='Cost sharing calculations'!G$528 -> £m
E67: Wastewater Network cost sharing 100% check | F67: =IF(SUM(F63:F64) <> SUM(F65:F66), 1, 0) -> 0 | G67: Check
B69: Abstracttion & Business Rates uncertainty mechanism
E70: ='Abstraction & Rates'!E$211 -> Active adjustment for business rates uncertainty mechanism - WWN - Real | F70: ='Abstraction & Rates'!F$211 -> 0 | G70: ='Abstraction & Rates'!G$211 -> £m
E71: ='Abstraction & Rates'!E$215 -> Revenue adjustment business rates - WWN - Real | F71: ='Abstraction & Rates'!F$215 -> 0 | G71: ='Abstraction & Rates'!G$215 -> £m
E72: ='Abstraction & Rates'!E$219 -> RCV adjustment business rates - WWN - Real | F72: ='Abstraction & Rates'!F$219 -> 0 | G72: ='Abstraction & Rates'!G$219 -> £m
B74: Revenue adjustment
E75: ='Cost sharing calculations'!E$524 -> Cost sharing revenue adjustment - WWN - Real | F75: ='Cost sharing calculations'!F$524 -> 0 | G75: ='Cost sharing calculations'!G$524 -> £m
E76: ='Abstraction & Rates'!E215 -> Revenue adjustment business rates - WWN - Real | F76: ='Abstraction & Rates'!F215 -> 0 | G76: ='Abstraction & Rates'!G215 -> £m
E77: Total Revenue adjustment for cost sharing - WWN - Real | F77: =SUM(F75:F76) -> 0 | G77: £m
B79: RCV adjustment
E80: ='Cost sharing calculations'!E$528 -> Cost sharing RCV adjustment - WWN - Real | F80: ='Cost sharing calculations'!F$528 -> 0 | G80: ='Cost sharing calculations'!G$528 -> £m
E81: ='Abstraction & Rates'!E219 -> RCV adjustment business rates - WWN - Real | F81: ='Abstraction & Rates'!F219 -> 0 | G81: ='Abstraction & Rates'!G219 -> £m
E82: ='Green Recovery'!E$129 -> Active RCV adjustment for cost sharing - Green Recovery Expenditure - WWN - Real | F82: ='Green Recovery'!F$129 -> 0 | G82: ='Green Recovery'!G$129 -> £m
E83: Total RCV adjustment for cost sharing - WWN - Real | F83: =SUM(F80:F82) -> 0 | G83: £m
A85: BIORESOURCES
B87: Wage growth adjustment
E88: =Bioresources!E$55 -> Total adjustment for wage related totex - BIO - Real | F88: =Bioresources!F$55 -> 0 | G88: =Bioresources!G$55 -> £m
B90: Abstracttion & Business Rates uncertainty mechanism
E91: ='Abstraction & Rates'!E$256 -> Active adjustment for business rates uncertainty mechanism - BIO - Real | F91: ='Abstraction & Rates'!F$256 -> 0 | G91: ='Abstraction & Rates'!G$256 -> £m
E92: ='Abstraction & Rates'!E$260 -> Revenue adjustment business rates - BIO - Real | F92: ='Abstraction & Rates'!F$260 -> 0 | G92: ='Abstraction & Rates'!G$260 -> £m
E93: ='Abstraction & Rates'!E$264 -> RCV adjustment business rates - BIO - Real | F93: ='Abstraction & Rates'!F$264 -> 0 | G93: ='Abstraction & Rates'!G$264 -> £m
B95: Revenue adjustment
E96: =Bioresources!E83 -> Cost sharing Revenue adjustment - BIO - Real | F96: =Bioresources!F83 -> 0 | G96: =Bioresources!G83 -> £m
E97: ='Abstraction & Rates'!E260 -> Revenue adjustment business rates - BIO - Real | F97: ='Abstraction & Rates'!F260 -> 0 | G97: ='Abstraction & Rates'!G260 -> £m
E98: Total Revenue adjustment for cost sharing - BIO - Real | F98: =SUM(F96:F97) -> 0 | G98: £m
B100: RCV adjustment
E101: =Bioresources!E87 -> Cost sharing RCV adjustment - BIO - Real | F101: =Bioresources!F87 -> 0 | G101: =Bioresources!G87 -> £m
E102: ='Abstraction & Rates'!E264 -> RCV adjustment business rates - BIO - Real | F102: ='Abstraction & Rates'!F264 -> 0 | G102: ='Abstraction & Rates'!G264 -> £m
E103: Total RCV adjustment for cost sharing - BIO - Real | F103: =SUM(F101:F102) -> 0 | G103: £m
A106: TIDEWAY
B108: Revenue adjustment
E109: ='Thames Tideway Tunnel'!E112 -> Cost sharing revenue adjustment - TTT - Real | F109: ='Thames Tideway Tunnel'!F112 -> 0 | G109: ='Thames Tideway Tunnel'!G112 -> £m
B111: RCV adjustment
E112: ='Thames Tideway Tunnel'!E116 -> Cost sharing RCV adjustment - TTT - Real | F112: ='Thames Tideway Tunnel'!F116 -> 0 | G112: ='Thames Tideway Tunnel'!G116 -> £m
A115: END OF SHEET

Sheet Integrity checks-->

Sheet Check
A1: =RIGHT(CELL("filename", $A$1), LEN(CELL("filename", $A$1)) - SEARCH("]", CELL("filename", $A$1))) -> 
E2: =Time!E$22 -> Model Period BEG | J2: =Time!J$22 -> 2019-04-01 | K2: =Time!K$22 -> 2020-04-01 | L2: =Time!L$22 -> 2021-04-01 | M2: =Time!M$22 -> 2022-04-01 | N2: =Time!N$22 -> 2023-04-01 | O2: =Time!O$22 -> 2024-04-01 | P2: =Time!P$22 -> 2025-04-01
E3: =Time!E$23 -> Model Period END | F3: =Check!F$8 -> 0 | G3: Error chks | J3: =Time!J$23 -> 2020-03-31 | K3: =Time!K$23 -> 2021-03-31 | L3: =Time!L$23 -> 2022-03-31 | M3: =Time!M$23 -> 2023-03-31 | N3: =Time!N$23 -> 2024-03-31 | O3: =Time!O$23 -> 2025-03-31 | P3: =Time!P$23 -> 2026-03-31
E4: =Time!E$59 -> Pre Forecast vs Forecast | J4: =Time!J$59 -> Pre Fcst | K4: =Time!K$59 -> Forecast | L4: =Time!L$59 -> Forecast | M4: =Time!M$59 -> Forecast | N4: =Time!N$59 -> Forecast | O4: =Time!O$59 -> Forecast | P4: =Time!P$59 -> Post-Fcst
E5: =Time!E$101 -> Financial Year Ending | J5: =Time!J$101 -> 2020 | K5: =Time!K$101 -> 2021 | L5: =Time!L$101 -> 2022 | M5: =Time!M$101 -> 2023 | N5: =Time!N$101 -> 2024 | O5: =Time!O$101 -> 2025 | P5: =Time!P$101 -> 2026
E6: =Time!E$11 -> Model column counter | F6: Constant | G6: Unit | H6: Total | J6: =Time!J$11 -> 1 | K6: =Time!K$11 -> 2 | L6: =Time!L$11 -> 3 | M6: =Time!M$11 -> 4 | N6: =Time!N$11 -> 5 | O6: =Time!O$11 -> 6 | P6: =Time!P$11 -> 7
E8: Total error checks | F8: =SUM(F10:F23) -> 0 | G8: check
A10: [Do not delete]
E12: ='Cost sharing calculations'!E63 -> WR Totex profile 100% check | F12: ='Cost sharing calculations'!F63 -> 0 | G12: ='Cost sharing calculations'!G63 -> Check
E13: ='Cost sharing calculations'!E110 -> WR Totex profile - Cost sharing 100% check | F13: ='Cost sharing calculations'!F110 -> 0 | G13: ='Cost sharing calculations'!G110 -> Check
E14: ='Cost sharing calculations'!E221 -> WN Totex profile - Base costs 100% check | F14: ='Cost sharing calculations'!F221 -> 0 | G14: ='Cost sharing calculations'!G221 -> Check
E15: ='Cost sharing calculations'!E268 -> WN Totex profile - Cost Sharing 100% check | F15: ='Cost sharing calculations'!F268 -> 0 | G15: ='Cost sharing calculations'!G268 -> Check
E16: ='Cost sharing calculations'!E381 -> WWN Totex profile 100% check | F16: ='Cost sharing calculations'!F381 -> 0 | G16: ='Cost sharing calculations'!G381 -> Check
E17: ='Cost sharing calculations'!E428 -> WWN Totex profile - Cost Sharing 100% check | F17: ='Cost sharing calculations'!F428 -> 0 | G17: ='Cost sharing calculations'!G428 -> Check
E18: =Bioresources!E24 -> WWN Totex profile 100% check | F18: =Bioresources!F24 -> 0 | G18: =Bioresources!G24 -> Check
E19: =Outputs!E15 -> Water Resources cost sharing 100% check | F19: =Outputs!F15 -> 0 | G19: =Outputs!G15 -> Check
E20: =Outputs!E41 -> Water Network cost sharing 100% check | F20: =Outputs!F41 -> 0 | G20: =Outputs!G41 -> Check
E21: =Outputs!E67 -> Wastewater Network cost sharing 100% check | F21: =Outputs!F67 -> 0 | G21: =Outputs!G67 -> Check
A23: [Do not delete]
A25: END OF SHEET
